Workbook

Sheet Main
B10: 2018-12-27
B12: Sheet No. | C12: Template Name | D12: Summary
B13: 1 | C13: Future Intra | D13: For Intraday trading in F&O segment
B14: 2 | C14: Cash Intra | D14: For Intraday trading in cash market segment
B15: 3 | C15: Mid-cap Intra | D15: For Intraday trading in Mid-cap stocks
B16: 4 | C16: Bulk Deals | D16: Reveals Bulk Deals carried on NSE & BSE
B17: 5 | C17: Call Tracker

Sheet Future Intra
M5: Back to Main Page
A6: FOR INTRA DAY TRADING | L6: =Main!B10 -> 2018-12-27
A9: Sr.no | B9: Sector | C9: Scrip | D9: CLOSE RATE | E9: Pivot Point | F9: Supports | I9: Resistances
B10: Sector | D10: Point | E10: Point | F10: S1 | G10: S2 | H10: S3 | I10: R1 | J10: R2 | K10: R3 | L10: HIGH | M10: LOW | N10: OI | O10: % Change in OI
A11: 1 | B11: Index | C11: BANKNIFTY | D11: 27031.70 | E11: 26847.10 | F11: 26624.20 | G11: 26216.70 | H11: 25993.80 | I11: 27254.60 | J11: 27477.50 | K11: 27885.00 | L11: 27070 | M11: 26439.6 | N11: 1808460 | O11: -0.65%
A12: 2 | B12: Index | C12: NIFTY | D12: 10748.50 | E12: 10681.85 | F12: 10603.05 | G12: 10457.60 | H12: 10378.80 | I12: 10827.30 | J12: 10906.10 | K12: 11051.55 | L12: 10760.65 | M12: 10536.4 | N12: 28917675 | O12: 11.92%
A13: 3 | B13: Index | C13: NIFTYIT | D13: 14168.00 | E13: 14127.00 | F13: 14052.00 | G13: 13936.00 | H13: 13861.00 | I13: 14243.00 | J13: 14318.00 | K13: 14434.00 | L13: 14202 | M13: 14011 | N13: 22850 | O13: 2.70%
A14: 4 | B14: Index | C14: NIFTYMID50 | D14: 4813.20 | E14: 1604.40 | F14: 3208.80 | G14: 1604.40 | H14: 3208.80 | I14: 3208.80 | J14: 1604.40 | K14: 3208.80 | L14: 0 | M14: 0 | N14: 591580 | O14: 0.00%
A15: 5 | B15: Cement | C15: ACC | D15: 1480.80 | E15: 1462.22 | F15: 1440.48 | G15: 1400.17 | H15: 1378.43 | I15: 1502.53 | J15: 1524.27 | K15: 1564.58 | L15: 1483.95 | M15: 1421.9 | N15: 1494400 | O15: 1.36%
A16: 6 | B16: Others | C16: ADANIENT | D16: 161.20 | E16: 159.87 | F16: 156.83 | G16: 152.47 | H16: 149.43 | I16: 164.23 | J16: 167.27 | K16: 171.63 | L16: 162.9 | M16: 155.5 | N16: 38692000 | O16: -2.98%
A17: 7 | B17: Others | C17: ADANIPORTS | D17: 376.85 | E17: 371.13 | F17: 363.72 | G17: 350.58 | H17: 343.17 | I17: 384.27 | J17: 391.68 | K17: 404.82 | L17: 378.55 | M17: 358 | N17: 25077500 | O17: 3.18%
A18: 8 | B18: Power | C18: ADANIPOWER | D18: 51.00 | E18: 50.78 | F18: 49.87 | G18: 48.73 | H18: 47.82 | I18: 51.92 | J18: 52.83 | K18: 53.97 | L18: 51.7 | M18: 49.65 | N18: 163700000 | O18: -5.65%
A19: 9 | B19: Pharma | C19: AJANTPHARM | D19: 1127.75 | E19: 1122.67 | F19: 1110.33 | G19: 1092.92 | H19: 1080.58 | I19: 1140.08 | J19: 1152.42 | K19: 1169.83 | L19: 1135 | M19: 1105.25 | N19: 553000 | O19: 1.28%
A20: 10 | B20: Banking | C20: ALBK | D20: 46.15 | E20: 45.57 | F20: 44.63 | G20: 43.12 | H20: 42.18 | I20: 47.08 | J20: 48.02 | K20: 49.53 | L20: 46.5 | M20: 44.05 | N20: 19876000 | O20: -2.01%
A21: 11 | B21: Automobile | C21: AMARAJABAT | D21: 733.80 | E21: 735.20 | F21: 726.50 | G21: 719.20 | H21: 710.50 | I21: 742.50 | J21: 751.20 | K21: 758.50 | L21: 743.9 | M21: 727.9 | N21: 1185100 | O21: 3.17%
A22: 12 | B22: Cement | C22: AMBUJACEM | D22: 220.80 | E22: 217.58 | F22: 213.42 | G22: 206.03 | H22: 201.87 | I22: 224.97 | J22: 229.13 | K22: 236.52 | L22: 221.75 | M22: 210.2 | N22: 16615000 | O22: -4.31%
A23: 13 | B23: Others | C23: APOLLOHOSP | D23: 1267.90 | E23: 1260.07 | F23: 1245.13 | G23: 1222.37 | H23: 1207.43 | I23: 1282.83 | J23: 1297.77 | K23: 1320.53 | L23: 1275 | M23: 1237.3 | N23: 1004500 | O23: 4.96%
A24: 14 | B24: Automobile | C24: APOLLOTYRE | D24: 233.70 | E24: 231.53 | F24: 228.22 | G24: 222.73 | H24: 219.42 | I24: 237.02 | J24: 240.33 | K24: 245.82 | L24: 234.85 | M24: 226.05 | N24: 9894000 | O24: -2.22%
A25: 15 | B25: Textile | C25: ARVIND | D25: 97.35 | E25: 97.28 | F25: 95.52 | G25: 93.68 | H25: 91.92 | I25: 99.12 | J25: 100.88 | K25: 102.72 | L25: 99.05 | M25: 95.45 | N25: 7244000 | O25: 0.39%
A26: 16 | B26: Automobile | C26: ASHOKLEY | D26: 104.10 | E26: 103.52 | F26: 102.43 | G26: 100.77 | H26: 99.68 | I26: 105.18 | J26: 106.27 | K26: 107.93 | L26: 104.6 | M26: 101.85 | N26: 61600000 | O26: -0.66%
A27: 17 | B27: FMCG | C27: ASIANPAINT | D27: 1366.45 | E27: 1364.62 | F27: 1352.18 | G27: 1337.92 | H27: 1325.48 | I27: 1378.88 | J27: 1391.32 | K27: 1405.58 | L27: 1377.05 | M27: 1350.35 | N27: 6004200 | O27: 5.44%
A28: 18 | B28: Pharma | C28: AUROPHARMA | D28: 719.50 | E28: 713.10 | F28: 705.00 | G28: 690.50 | H28: 682.40 | I28: 727.60 | J28: 735.70 | K28: 750.20 | L28: 721.2 | M28: 698.6 | N28: 24388000 | O28: -0.41%
A29: 19 | B29: Banking | C29: AXISBANK | D29: 620.55 | E29: 616.47 | F29: 608.43 | G29: 596.32 | H29: 588.28 | I29: 628.58 | J29: 636.62 | K29: 648.73 | L29: 624.5 | M29: 604.35 | N29: 39926400 | O29: 0.57%
A30: 20 | B30: Automobile | C30: BAJAJ-AUTO | D30: 2742.50 | E30: 2723.72 | F30: 2692.48 | G30: 2642.47 | H30: 2611.23 | I30: 2773.73 | J30: 2804.97 | K30: 2854.98 | L30: 2754.95 | M30: 2673.7 | N30: 2379750 | O30: 4.46%
A31: 21 | B31: Others | C31: BAJAJFINSV | D31: 6452.30 | E31: 6362.80 | F31: 6250.50 | G31: 6048.70 | H31: 5936.40 | I31: 6564.60 | J31: 6676.90 | K31: 6878.70 | L31: 6475.1 | M31: 6161 | N31: 675875 | O31: 2.31%
A32: 22 | B32: Finance | C32: BAJFINANCE | D32: 2574.05 | E32: 2556.67 | F32: 2525.38 | G32: 2476.72 | H32: 2445.43 | I32: 2605.33 | J32: 2636.62 | K32: 2685.28 | L32: 2587.95 | M32: 2508 | N32: 6273250 | O32: 3.95%
A33: 23 | B33: Others | C33: BALKRISIND | D33: 909.85 | E33: 905.13 | F33: 895.32 | G33: 880.78 | H33: 870.97 | I33: 919.67 | J33: 929.48 | K33: 944.02 | L33: 914.95 | M33: 890.6 | N33: 3020000 | O33: -0.63%
A34: 24 | B34: Banking | C34: BANKBARODA | D34: 117.75 | E34: 116.45 | F34: 114.15 | G34: 110.55 | H34: 108.25 | I34: 120.05 | J34: 122.35 | K34: 125.95 | L34: 118.75 | M34: 112.85 | N34: 69244000 | O34: 2.58%
A35: 25 | B35: Banking | C35: BANKINDIA | D35: 100.95 | E35: 99.90 | F35: 98.10 | G35: 95.25 | H35: 93.45 | I35: 102.75 | J35: 104.55 | K35: 107.40 | L35: 101.7 | M35: 97.05 | N35: 27096000 | O35: 3.11%
A36: 26 | B36: FMCG | C36: BATAINDIA | D36: 1100.00 | E36: 1094.75 | F36: 1081.20 | G36: 1062.40 | H36: 1048.85 | I36: 1113.55 | J36: 1127.10 | K36: 1145.90 | L36: 1108.3 | M36: 1075.95 | N36: 2354000 | O36: -3.47%
A37: 27 | B37: Capital_Goods | C37: BEL | D37: 88.80 | E37: 87.88 | F37: 86.17 | G37: 83.53 | H37: 81.82 | I37: 90.52 | J37: 92.23 | K37: 94.87 | L37: 89.6 | M37: 85.25 | N37: 43307850 | O37: -1.87%
A38: 28 | B38: Infrastructure | C38: BEML | D38: 901.65 | E38: 886.83 | F38: 867.57 | G38: 833.48 | H38: 814.22 | I38: 920.92 | J38: 940.18 | K38: 974.27 | L38: 906.1 | M38: 852.75 | N38: 1729900 | O38: -0.78%
A39: 29 | B39: Others | C39: BERGEPAINT | D39: 328.45 | E39: 327.42 | F39: 321.38 | G39: 314.32 | H39: 308.28 | I39: 334.48 | J39: 340.52 | K39: 347.58 | L39: 333.45 | M39: 320.35 | N39: 2325400 | O39: -2.49%
A40: 30 | B40: Finance | C40: BHARATFIN | D40: 987.90 | E40: 979.98 | F40: 965.67 | G40: 943.43 | H40: 929.12 | I40: 1002.22 | J40: 1016.53 | K40: 1038.77 | L40: 994.3 | M40: 957.75 | N40: 5491500 | O40: -1.27%
A41: 31 | B41: Automobile | C41: BHARATFORG | D41: 506.30 | E41: 503.50 | F41: 497.80 | G41: 489.30 | H41: 483.60 | I41: 512.00 | J41: 517.70 | K41: 526.20 | L41: 509.2 | M41: 495 | N41: 10860000 | O41: -2.74%
A42: 32 | B42: Telecom | C42: BHARTIARTL | D42: 320.50 | E42: 315.48 | F42: 307.32 | G42: 294.13 | H42: 285.97 | I42: 328.67 | J42: 336.83 | K42: 350.02 | L42: 323.65 | M42: 302.3 | N42: 40592600 | O42: -6.98%
A43: 33 | B43: Capital_Goods | C43: BHEL | D43: 71.55 | E43: 70.90 | F43: 69.95 | G43: 68.35 | H43: 67.40 | I43: 72.50 | J43: 73.45 | K43: 75.05 | L43: 71.85 | M43: 69.3 | N43: 60952500 | O43: -4.65%
A44: 34 | B44: Pharma | C44: BIOCON | D44: 615.85 | E44: 611.45 | F44: 604.95 | G44: 594.05 | H44: 587.55 | I44: 622.35 | J44: 628.85 | K44: 639.75 | L44: 617.95 | M44: 600.55 | N44: 5512500 | O44: -6.42%
A45: 35 | B45: Automobile | C45: BOSCHLTD | D45: 19566.15 | E45: 19505.38 | F45: 19310.77 | G45: 19055.38 | H45: 18860.77 | I45: 19760.77 | J45: 19955.38 | K45: 20210.77 | L45: 19700 | M45: 19250 | N45: 145050 | O45: -9.58%
A46: 36 | B46: Oil_Gas | C46: BPCL | D46: 367.25 | E46: 366.00 | F46: 360.25 | G46: 353.25 | H46: 347.50 | I46: 373.00 | J46: 378.75 | K46: 385.75 | L46: 371.75 | M46: 359 | N46: 15613200 | O46: -8.15%
A47: 37 | B47: FMCG | C47: BRITANNIA | D47: 3093.05 | E47: 3081.87 | F47: 3052.18 | G47: 3011.32 | H47: 2981.63 | I47: 3122.73 | J47: 3152.42 | K47: 3193.28 | L47: 3111.55 | M47: 3041 | N47: 2962600 | O47: 4.31%
A48: 38 | B48: Pharma | C48: CADILAHC | D48: 340.15 | E48: 339.43 | F48: 337.17 | G48: 334.18 | H48: 331.92 | I48: 342.42 | J48: 344.68 | K48: 347.67 | L48: 341.7 | M48: 336.45 | N48: 8995200 | O48: -3.25%
A49: 39 | B49: Banking | C49: CANBK | D49: 271.25 | E49: 268.20 | F49: 262.75 | G49: 254.25 | H49: 248.80 | I49: 276.70 | J49: 282.15 | K49: 290.65 | L49: 273.65 | M49: 259.7 | N49: 11426000 | O49: -0.52%
A50: 40 | B50: Others | C50: CANFINHOME | D50: 289.55 | E50: 283.75 | F50: 274.30 | G50: 259.05 | H50: 249.60 | I50: 299.00 | J50: 308.45 | K50: 323.70 | L50: 293.2 | M50: 268.5 | N50: 4709450 | O50: -8.52%
A51: 41 | B51: Finance | C51: CAPF | D51: 593.05 | E51: 590.43 | F51: 582.92 | G51: 572.78 | H51: 565.27 | I51: 600.57 | J51: 608.08 | K51: 618.22 | L51: 597.95 | M51: 580.3 | N51: 4300900 | O51: -14.11%
A52: 42 | B52: Oil_Gas | C52: CASTROLIND | D52: 152.65 | E52: 152.38 | F52: 150.77 | G52: 148.88 | H52: 147.27 | I52: 154.27 | J52: 155.88 | K52: 157.77 | L52: 154 | M52: 150.5 | N52: 7439600 | O52: 3.33%
A53: 43 | B53: Automobile | C53: CEATLTD | D53: 1267.50 | E53: 1254.97 | F53: 1233.58 | G53: 1199.67 | H53: 1178.28 | I53: 1288.88 | J53: 1310.27 | K53: 1344.18 | L53: 1276.35 | M53: 1221.05 | N53: 888600 | O53: -2.28%
A54: 44 | B54: Textile | C54: CENTURYTEX | D54: 898.45 | E54: 893.82 | F54: 879.43 | G54: 860.42 | H54: 846.03 | I54: 912.83 | J54: 927.22 | K54: 946.23 | L54: 908.2 | M54: 874.8 | N54: 4638350 | O54: 1.14%
A55: 45 | B55: Power | C55: CESC | D55: 669.75 | E55: 665.52 | F55: 657.13 | G55: 644.52 | H55: 636.13 | I55: 678.13 | J55: 686.52 | K55: 699.13 | L55: 673.9 | M55: 652.9 | N55: 1983300 | O55: 6.15%
A56: 46 | B56: Power | C56: CGPOWER | D56: 44.20 | E56: 43.58 | F56: 42.67 | G56: 41.13 | H56: 40.22 | I56: 45.12 | J56: 46.03 | K56: 47.57 | L56: 44.5 | M56: 42.05 | N56: 46008000 | O56: -4.84%
A57: 47 | B57: Others | C57: CHENNPETRO | D57: 279.90 | E57: 281.07 | F57: 274.53 | G57: 269.17 | H57: 262.63 | I57: 286.43 | J57: 292.97 | K57: 298.33 | L57: 287.6 | M57: 275.7 | N57: 1264200 | O57: -6.46%
A58: 48 | B58: Others | C58: CHOLAFIN | D58: 1226.25 | E58: 1206.45 | F58: 1181.50 | G58: 1136.75 | H58: 1111.80 | I58: 1251.20 | J58: 1276.15 | K58: 1320.90 | L58: 1231.4 | M58: 1161.7 | N58: 1370000 | O58: 11.02%
A59: 49 | B59: Pharma | C59: CIPLA | D59: 515.05 | E59: 514.13 | F59: 508.22 | G59: 501.38 | H59: 495.47 | I59: 520.97 | J59: 526.88 | K59: 533.72 | L59: 520.05 | M59: 507.3 | N59: 8331000 | O59: 1.02%
A60: 50 | B60: Others | C60: COALINDIA | D60: 247.00 | E60: 247.85 | F60: 245.25 | G60: 243.50 | H60: 240.90 | I60: 249.60 | J60: 252.20 | K60: 253.95 | L60: 250.45 | M60: 246.1 | N60: 32623800 | O60: 0.22%
A61: 51 | B61: FMCG | C61: COLPAL | D61: 1304.10 | E61: 1304.93 | F61: 1293.97 | G61: 1283.83 | H61: 1272.87 | I61: 1315.07 | J61: 1326.03 | K61: 1336.17 | L61: 1315.9 | M61: 1294.8 | N61: 1624700 | O61: -6.18%
A62: 52 | B62: Others | C62: CONCOR | D62: 652.30 | E62: 647.73 | F62: 640.47 | G62: 628.63 | H62: 621.37 | I62: 659.57 | J62: 666.83 | K62: 678.67 | L62: 655 | M62: 635.9 | N62: 4022500 | O62: 0.59%
A63: 53 | B63: Capital_Goods | C63: CUMMINSIND | D63: 803.25 | E63: 795.15 | F63: 780.85 | G63: 758.45 | H63: 744.15 | I63: 817.55 | J63: 831.85 | K63: 854.25 | L63: 809.45 | M63: 772.75 | N63: 1855700 | O63: -8.74%
A64: 54 | B64: FMCG | C64: DABUR | D64: 423.70 | E64: 422.98 | F64: 416.17 | G64: 408.63 | H64: 401.82 | I64: 430.52 | J64: 437.33 | K64: 444.87 | L64: 429.8 | M64: 415.45 | N64: 11432500 | O64: 3.66%
A65: 55 | B65: Banking | C65: DCBBANK | D65: 163.20 | E65: 161.87 | F65: 159.73 | G65: 156.27 | H65: 154.13 | I65: 165.33 | J65: 167.47 | K65: 170.93 | L65: 164 | M65: 158.4 | N65: 4495500 | O65: -2.73%
A66: 56 | B66: Finance | C66: DHFL | D66: 238.55 | E66: 235.12 | F66: 230.23 | G66: 221.92 | H66: 217.03 | I66: 243.43 | J66: 248.32 | K66: 256.63 | L66: 240 | M66: 226.8 | N66: 21367500 | O66: 0.83%
A67: 57 | B67: Media | C67: DISHTV | D67: 37.45 | E67: 37.10 | F67: 36.15 | G67: 34.85 | H67: 33.90 | I67: 38.40 | J67: 39.35 | K67: 40.65 | L67: 38.05 | M67: 35.8 | N67: 60216000 | O67: -5.58%
A68: 58 | B68: Pharma | C68: DIVISLAB | D68: 1457.05 | E68: 1449.88 | F68: 1438.17 | G68: 1419.28 | H68: 1407.57 | I68: 1468.77 | J68: 1480.48 | K68: 1499.37 | L68: 1461.6 | M68: 1431 | N68: 3878000 | O68: 2.07%
A69: 59 | B69: Realty | C69: DLF | D69: 177.90 | E69: 176.30 | F69: 173.10 | G69: 168.30 | H69: 165.10 | I69: 181.10 | J69: 184.30 | K69: 189.10 | L69: 179.5 | M69: 171.5 | N69: 24996400 | O69: -3.90%
A70: 60 | B70: Pharma | C70: DRREDDY | D70: 2624.90 | E70: 2611.22 | F70: 2590.23 | G70: 2555.57 | H70: 2534.58 | I70: 2645.88 | J70: 2666.87 | K70: 2701.53 | L70: 2632.2 | M70: 2576.55 | N70: 3785750 | O70: -1.53%
A71: 61 | B71: Automobile | C71: EICHERMOT | D71: 23125.25 | E71: 23102.73 | F71: 22703.12 | G71: 22280.98 | H71: 21881.37 | I71: 23524.87 | J71: 23924.48 | K71: 24346.62 | L71: 23502.35 | M71: 22680.6 | N71: 289525 | O71: 2.23%
A72: 62 | B72: Infrastructure | C72: ENGINERSIN | D72: 126.60 | E72: 125.27 | F72: 122.53 | G72: 118.47 | H72: 115.73 | I72: 129.33 | J72: 132.07 | K72: 136.13 | L72: 128 | M72: 121.2 | N72: 10361000 | O72: 12.49%
A73: 63 | B73: Finance | C73: EQUITAS | D73: 126.10 | E73: 124.42 | F73: 122.08 | G73: 118.07 | H73: 115.73 | I73: 128.43 | J73: 130.77 | K73: 134.78 | L73: 126.75 | M73: 120.4 | N73: 9308000 | O73: -1.06%
A74: 64 | B74: Automobile | C74: ESCORTS | D74: 682.55 | E74: 676.05 | F74: 666.00 | G74: 649.45 | H74: 639.40 | I74: 692.60 | J74: 702.65 | K74: 719.20 | L74: 686.1 | M74: 659.5 | N74: 4560600 | O74: -1.68%
A75: 65 | B75: Automobile | C75: EXIDEIND | D75: 261.60 | E75: 258.18 | F75: 254.22 | G75: 246.83 | H75: 242.87 | I75: 265.57 | J75: 269.53 | K75: 276.92 | L75: 262.15 | M75: 250.8 | N75: 5646000 | O75: -7.56%
A76: 66 | B76: Banking | C76: FEDERALBNK | D76: 92.80 | E76: 92.75 | F76: 91.55 | G76: 90.30 | H76: 89.10 | I76: 94.00 | J76: 95.20 | K76: 96.45 | L76: 93.95 | M76: 91.5 | N76: 46418500 | O76: 6.05%
A77: 67 | B77: Oil_Gas | C77: GAIL | D77: 353.90 | E77: 350.10 | F77: 345.55 | G77: 337.20 | H77: 332.65 | I77: 358.45 | J77: 363.00 | K77: 371.35 | L77: 354.65 | M77: 341.75 | N77: 23026878 | O77: 4.83%
A78: 68 | B78: Pharma | C78: GLENMARK | D78: 672.90 | E78: 670.87 | F78: 665.53 | G78: 658.17 | H78: 652.83 | I78: 678.23 | J78: 683.57 | K78: 690.93 | L78: 676.2 | M78: 663.5 | N78: 4075000 | O78: 3.19%
A79: 69 | B79: Infrastructure | C79: GMRINFRA | D79: 16.20 | E79: 15.97 | F79: 15.63 | G79: 15.07 | H79: 14.73 | I79: 16.53 | J79: 16.87 | K79: 17.43 | L79: 16.3 | M79: 15.4 | N79: 211500000 | O79: 9.84%
A80: 70 | B80: Others | C80: GODFRYPHLP | D80: 837.75 | E80: 831.10 | F80: 777.20 | G80: 716.65 | H80: 662.75 | I80: 891.65 | J80: 945.55 | K80: 1006.10 | L80: 885 | M80: 770.55 | N80: 583100 | O80: -5.13%
A81: 71 | B81: FMCG | C81: GODREJCP | D81: 801.45 | E81: 796.40 | F81: 787.30 | G81: 773.15 | H81: 764.05 | I81: 810.55 | J81: 819.65 | K81: 833.80 | L81: 805.5 | M81: 782.25 | N81: 4842000 | O81: -1.18%
A82: 72 | B82: FMCG | C82: GODREJIND | D82: 522.30 | E82: 517.22 | F82: 510.58 | G82: 498.87 | H82: 492.23 | I82: 528.93 | J82: 535.57 | K82: 547.28 | L82: 523.85 | M82: 505.5 | N82: 2308500 | O82: -5.29%
A83: 73 | B83: Cement | C83: GRASIM | D83: 821.45 | E83: 813.17 | F83: 803.63 | G83: 785.82 | H83: 776.28 | I83: 830.98 | J83: 840.52 | K83: 858.33 | L83: 822.7 | M83: 795.35 | N83: 10327500 | O83: 1.88%
A84: 74 | B84: Others | C84: GSFC | D84: 109.45 | E84: 108.90 | F84: 107.40 | G84: 105.35 | H84: 103.85 | I84: 110.95 | J84: 112.45 | K84: 114.50 | L84: 110.4 | M84: 106.85 | N84: 15383600 | O84: -4.23%
A85: 75 | B85: Others | C85: HAVELLS | D85: 678.30 | E85: 671.80 | F85: 663.10 | G85: 647.90 | H85: 639.20 | I85: 687.00 | J85: 695.70 | K85: 710.90 | L85: 680.5 | M85: 656.6 | N85: 5076000 | O85: -3.31%
A86: 76 | B86: Technology | C86: HCLTECH | D86: 944.65 | E86: 941.63 | F86: 934.67 | G86: 924.68 | H86: 917.72 | I86: 951.62 | J86: 958.58 | K86: 968.57 | L86: 948.6 | M86: 931.65 | N86: 10400600 | O86: 3.21%
A87: 77 | B87: Finance | C87: HDFC | D87: 1938.00 | E87: 1923.43 | F87: 1902.87 | G87: 1867.73 | H87: 1847.17 | I87: 1958.57 | J87: 1979.13 | K87: 2014.27 | L87: 1944 | M87: 1888.3 | N87: 27434500 | O87: 1.32%
A88: 78 | B88: Banking | C88: HDFCBANK | D88: 2124.75 | E88: 2109.23 | F88: 2089.87 | G88: 2054.98 | H88: 2035.62 | I88: 2144.12 | J88: 2163.48 | K88: 2198.37 | L88: 2128.6 | M88: 2074.35 | N88: 14981000 | O88: 7.80%
A89: 79 | B89: Automobile | C89: HEROMOTOCO | D89: 3181.55 | E89: 3178.33 | F89: 3143.22 | G89: 3104.88 | H89: 3069.77 | I89: 3216.67 | J89: 3251.78 | K89: 3290.12 | L89: 3213.45 | M89: 3140 | N89: 1400200 | O89: 3.20%
A90: 80 | B90: Technology | C90: HEXAWARE | D90: 316.25 | E90: 313.48 | F90: 309.72 | G90: 303.18 | H90: 299.42 | I90: 320.02 | J90: 323.78 | K90: 330.32 | L90: 317.25 | M90: 306.95 | N90: 2911500 | O90: -16.70%
A91: 81 | B91: Metals | C91: HINDALCO | D91: 218.70 | E91: 216.95 | F91: 214.45 | G91: 210.20 | H91: 207.70 | I91: 221.20 | J91: 223.70 | K91: 227.95 | L91: 219.45 | M91: 212.7 | N91: 31479000 | O91: 1.73%
A92: 82 | B92: Oil_Gas | C92: HINDPETRO | D92: 249.30 | E92: 248.48 | F92: 245.62 | G92: 241.93 | H92: 239.07 | I92: 252.17 | J92: 255.03 | K92: 258.72 | L92: 251.35 | M92: 244.8 | N92: 24810450 | O92: 4.67%
A93: 83 | B93: FMCG | C93: HINDUNILVR | D93: 1795.65 | E93: 1780.18 | F93: 1759.52 | G93: 1723.38 | H93: 1702.72 | I93: 1816.32 | J93: 1836.98 | K93: 1873.12 | L93: 1800.85 | M93: 1744.05 | N93: 10677600 | O93: 0.14%
A94: 84 | B94: Metals | C94: HINDZINC | D94: 271.95 | E94: 270.83 | F94: 268.87 | G94: 265.78 | H94: 263.82 | I94: 273.92 | J94: 275.88 | K94: 278.97 | L94: 272.8 | M94: 267.75 | N94: 5862400 | O94: -4.78%
A95: 85 | B95: Finance | C95: IBULHSGFIN | D95: 832.15 | E95: 819.73 | F95: 802.67 | G95: 773.18 | H95: 756.12 | I95: 849.22 | J95: 866.28 | K95: 895.77 | L95: 836.8 | M95: 790.25 | N95: 18795000 | O95: -1.19%
A96: 86 | B96: Banking | C96: ICICIBANK | D96: 355.95 | E96: 353.87 | F96: 350.53 | G96: 345.12 | H96: 341.78 | I96: 359.28 | J96: 362.62 | K96: 368.03 | L96: 357.2 | M96: 348.45 | N96: 87736000 | O96: 0.49%
A97: 87 | B97: Others | C97: ICICIPRULI | D97: 322.30 | E97: 320.42 | F97: 317.08 | G97: 311.87 | H97: 308.53 | I97: 325.63 | J97: 328.97 | K97: 334.18 | L97: 323.75 | M97: 315.2 | N97: 3942600 | O97: -2.43%
A98: 88 | B98: Banking | C98: IDBI | D98: 61.30 | E98: 61.25 | F98: 61.05 | G98: 60.80 | H98: 60.60 | I98: 61.50 | J98: 61.70 | K98: 61.95 | L98: 61.45 | M98: 61 | N98: 35550000 | O98: -3.58%
A99: 89 | B99: Telecom | C99: IDEA | D99: 37.25 | E99: 37.00 | F99: 36.55 | G99: 35.85 | H99: 35.40 | I99: 37.70 | J99: 38.15 | K99: 38.85 | L99: 37.45 | M99: 36.3 | N99: 163259000 | O99: 0.08%
A100: 90 | B100: Finance | C100: IDFC | D100: 43.45 | E100: 43.03 | F100: 42.37 | G100: 41.28 | H100: 40.62 | I100: 44.12 | J100: 44.78 | K100: 45.87 | L100: 43.7 | M100: 41.95 | N100: 133016400 | O100: 2.16%
A101: 91 | B101: Banking | C101: IDFCBANK | D101: 43.10 | E101: 42.92 | F101: 42.38 | G101: 41.67 | H101: 41.13 | I101: 43.63 | J101: 44.17 | K101: 44.88 | L101: 43.45 | M101: 42.2 | N101: 164103000 | O101: 3.50%
A102: 92 | B102: Finance | C102: IFCI | D102: 14.70 | E102: 14.47 | F102: 14.13 | G102: 13.57 | H102: 13.23 | I102: 15.03 | J102: 15.37 | K102: 15.93 | L102: 14.8 | M102: 13.9 | N102: 51080000 | O102: -0.05%
A103: 93 | B103: Oil_Gas | C103: IGL | D103: 262.15 | E103: 261.47 | F103: 259.03 | G103: 255.92 | H103: 253.48 | I103: 264.58 | J103: 267.02 | K103: 270.13 | L103: 263.9 | M103: 258.35 | N103: 7051000 | O103: 16.49%
A104: 94 | B104: Cement | C104: INDIACEM | D104: 93.45 | E104: 92.05 | F104: 90.40 | G104: 87.35 | H104: 85.70 | I104: 95.10 | J104: 96.75 | K104: 99.80 | L104: 93.7 | M104: 89 | N104: 16762000 | O104: -7.88%
A105: 95 | B105: Banking | C105: INDIANB | D105: 240.60 | E105: 238.13 | F105: 234.47 | G105: 228.33 | H105: 224.67 | I105: 244.27 | J105: 247.93 | K105: 254.07 | L105: 241.8 | M105: 232 | N105: 4132000 | O105: -10.52%
A106: 96 | B106: Others | C106: INDIGO | D106: 1159.85 | E106: 1160.72 | F106: 1144.43 | G106: 1129.02 | H106: 1112.73 | I106: 1176.13 | J106: 1192.42 | K106: 1207.83 | L106: 1177 | M106: 1145.3 | N106: 3000600 | O106: -4.34%
A107: 97 | B107: Banking | C107: INDUSINDBK | D107: 1561.25 | E107: 1552.15 | F107: 1530.90 | G107: 1500.55 | H107: 1479.30 | I107: 1582.50 | J107: 1603.75 | K107: 1634.10 | L107: 1573.4 | M107: 1521.8 | N107: 6850800 | O107: 7.85%
A108: 98 | B108: Technology | C108: INFIBEAM | D108: 46.10 | E108: 45.92 | F108: 44.78 | G108: 43.47 | H108: 42.33 | I108: 47.23 | J108: 48.37 | K108: 49.68 | L108: 47.05 | M108: 44.6 | N108: 13820000 | O108: -3.19%
A109: 99 | B109: Telecom | C109: INFRATEL | D109: 263.30 | E109: 262.42 | F109: 259.58 | G109: 255.87 | H109: 253.03 | I109: 266.13 | J109: 268.97 | K109: 272.68 | L109: 265.25 | M109: 258.7 | N109: 11910000 | O109: 6.90%
A110: 100 | B110: Technology | C110: INFY | D110: 645.05 | E110: 643.07 | F110: 638.98 | G110: 632.92 | H110: 628.83 | I110: 649.13 | J110: 653.22 | K110: 659.28 | L110: 647.15 | M110: 637 | N110: 51134400 | O110: 2.41%
A111: 101 | B111: Oil_Gas | C111: IOC | D111: 135.05 | E111: 135.73 | F111: 133.97 | G111: 132.88 | H111: 131.12 | I111: 136.82 | J111: 138.58 | K111: 139.67 | L111: 137.5 | M111: 134.65 | N111: 74195000 | O111: -0.89%
A112: 102 | B112: Infrastructure | C112: IRB | D112: 160.80 | E112: 158.83 | F112: 156.27 | G112: 151.73 | H112: 149.17 | I112: 163.37 | J112: 165.93 | K112: 170.47 | L112: 161.4 | M112: 154.3 | N112: 7516600 | O112: -4.47%
A113: 103 | B113: FMCG | C113: ITC | D113: 277.35 | E113: 277.05 | F113: 275.05 | G113: 272.75 | H113: 270.75 | I113: 279.35 | J113: 281.35 | K113: 283.65 | L113: 279.05 | M113: 274.75 | N113: 82548000 | O113: 4.44%
A114: 104 | B114: Others | C114: JETAIRWAYS | D114: 269.40 | E114: 262.28 | F114: 251.87 | G114: 234.33 | H114: 223.92 | I114: 279.82 | J114: 290.23 | K114: 307.77 | L114: 272.7 | M114: 244.75 | N114: 5915400 | O114: 8.99%
A115: 105 | B115: Metals | C115: JINDALSTEL | D115: 162.50 | E115: 159.72 | F115: 155.88 | G115: 149.27 | H115: 145.43 | I115: 166.33 | J115: 170.17 | K115: 176.78 | L115: 163.55 | M115: 153.1 | N115: 25296750 | O115: -7.21%
A116: 106 | B116: Others | C116: JISLJALEQS | D116: 66.75 | E116: 66.50 | F116: 65.35 | G116: 63.95 | H116: 62.80 | I116: 67.90 | J116: 69.05 | K116: 70.45 | L116: 67.65 | M116: 65.1 | N116: 36801000 | O116: -0.34%
A117: 107 | B117: Realty | C117: JPASSOCIAT | D117: 7.15 | E117: 7.05 | F117: 6.90 | G117: 6.65 | H117: 6.50 | I117: 7.30 | J117: 7.45 | K117: 7.70 | L117: 7.2 | M117: 6.8 | N117: 121170000 | O117: -2.07%
A118: 108 | B118: Metals | C118: JSWSTEEL | D118: 297.05 | E118: 294.47 | F118: 291.13 | G118: 285.22 | H118: 281.88 | I118: 300.38 | J118: 303.72 | K118: 309.63 | L118: 297.8 | M118: 288.55 | N118: 56961000 | O118: 13.49%
A119: 109 | B119: Others | C119: JUBLFOOD | D119: 1233.80 | E119: 1207.28 | F119: 1175.27 | G119: 1116.73 | H119: 1084.72 | I119: 1265.82 | J119: 1297.83 | K119: 1356.37 | L119: 1239.3 | M119: 1148.75 | N119: 2640500 | O119: 6.13%
A120: 110 | B120: Others | C120: JUSTDIAL | D120: 487.30 | E120: 480.20 | F120: 469.35 | G120: 451.40 | H120: 440.55 | I120: 498.15 | J120: 509.00 | K120: 526.95 | L120: 491.05 | M120: 462.25 | N120: 2524200 | O120: -4.70%
A121: 111 | B121: Others | C121: KAJARIACER | D121: 490.35 | E121: 484.72 | F121: 477.93 | G121: 465.52 | H121: 458.73 | I121: 497.13 | J121: 503.92 | K121: 516.33 | L121: 491.5 | M121: 472.3 | N121: 2652600 | O121: -1.69%
A122: 112 | B122: Banking | C122: KOTAKBANK | D122: 1251.05 | E122: 1239.72 | F122: 1225.43 | G122: 1199.82 | H122: 1185.53 | I122: 1265.33 | J122: 1279.62 | K122: 1305.23 | L122: 1254 | M122: 1214.1 | N122: 13318400 | O122: 3.35%
A123: 113 | B123: Technology | C123: KPIT | D123: 216.50 | E123: 216.50 | F123: 214.25 | G123: 212.00 | H123: 209.75 | I123: 218.75 | J123: 221.00 | K123: 223.25 | L123: 218.75 | M123: 214.25 | N123: 5357250 | O123: -11.12%
A124: 114 | B124: Others | C124: KSCL | D124: 565.40 | E124: 564.73 | F124: 555.37 | G124: 545.33 | H124: 535.97 | I124: 574.77 | J124: 584.13 | K124: 594.17 | L124: 574.1 | M124: 554.7 | N124: 1183500 | O124: -6.18%
A125: 115 | B125: Banking | C125: KTKBANK | D125: 109.90 | E125: 108.80 | F125: 106.60 | G125: 103.30 | H125: 101.10 | I125: 112.10 | J125: 114.30 | K125: 117.60 | L125: 111 | M125: 105.5 | N125: 15473000 | O125: -3.81%
A126: 116 | B126: Finance | C126: L&TFH | D126: 154.65 | E126: 153.37 | F126: 150.43 | G126: 146.22 | H126: 143.28 | I126: 157.58 | J126: 160.52 | K126: 164.73 | L126: 156.3 | M126: 149.15 | N126: 21213000 | O126: 5.32%
A127: 117 | B127: Finance | C127: LICHSGFIN | D127: 487.10 | E127: 480.47 | F127: 471.98 | G127: 456.87 | H127: 448.38 | I127: 495.58 | J127: 504.07 | K127: 519.18 | L127: 488.95 | M127: 465.35 | N127: 8493100 | O127: -2.97%
A128: 118 | B128: Capital_Goods | C128: LT | D128: 1424.65 | E128: 1413.92 | F128: 1395.08 | G128: 1365.52 | H128: 1346.68 | I128: 1443.48 | J128: 1462.32 | K128: 1491.88 | L128: 1432.75 | M128: 1384.35 | N128: 10941750 | O128: 2.78%
A129: 119 | B129: Pharma | C129: LUPIN | D129: 834.85 | E129: 831.30 | F129: 820.70 | G129: 806.55 | H129: 795.95 | I129: 845.45 | J129: 856.05 | K129: 870.20 | L129: 841.9 | M129: 817.15 | N129: 9477300 | O129: -3.28%
A130: 120 | B130: Automobile | C130: M&M | D130: 789.10 | E130: 785.10 | F130: 776.15 | G130: 763.20 | H130: 754.25 | I130: 798.05 | J130: 807.00 | K130: 819.95 | L130: 794.05 | M130: 772.15 | N130: 13517000 | O130: 1.55%
A131: 121 | B131: Finance | C131: M&MFIN | D131: 474.65 | E131: 471.85 | F131: 463.50 | G131: 452.35 | H131: 444.00 | I131: 483.00 | J131: 491.35 | K131: 502.50 | L131: 480.2 | M131: 460.7 | N131: 11956250 | O131: 3.35%
A132: 122 | B132: Others | C132: MANAPPURAM | D132: 91.20 | E132: 89.80 | F132: 88.00 | G132: 84.80 | H132: 83.00 | I132: 93.00 | J132: 94.80 | K132: 98.00 | L132: 91.6 | M132: 86.6 | N132: 13836000 | O132: 5.06%
A133: 123 | B133: FMCG | C133: MARICO | D133: 368.70 | E133: 367.02 | F133: 362.93 | G133: 357.17 | H133: 353.08 | I133: 372.78 | J133: 376.87 | K133: 382.63 | L133: 371.1 | M133: 361.25 | N133: 8530600 | O133: -1.62%
A134: 124 | B134: Automobile | C134: MARUTI | D134: 7580.40 | E134: 7534.42 | F134: 7454.33 | G134: 7328.27 | H134: 7248.18 | I134: 7660.48 | J134: 7740.57 | K134: 7866.63 | L134: 7614.5 | M134: 7408.35 | N134: 2258550 | O134: -0.47%
A135: 125 | B135: FMCG | C135: MCDOWELL-N | D135: 620.15 | E135: 611.27 | F135: 598.93 | G135: 577.72 | H135: 565.38 | I135: 632.48 | J135: 644.82 | K135: 666.03 | L135: 623.6 | M135: 590.05 | N135: 11391250 | O135: 0.75%
A136: 126 | B136: Others | C136: MCX | D136: 710.15 | E136: 710.65 | F136: 703.25 | G136: 696.35 | H136: 688.95 | I136: 717.55 | J136: 724.95 | K136: 731.85 | L136: 718.05 | M136: 703.75 | N136: 2464700 | O136: -3.69%
A137: 127 | B137: Finance | C137: MFSL | D137: 445.65 | E137: 439.05 | F137: 430.00 | G137: 414.35 | H137: 405.30 | I137: 454.70 | J137: 463.75 | K137: 479.40 | L137: 448.1 | M137: 423.4 | N137: 2620800 | O137: -1.62%
A138: 128 | B138: Others | C138: MGL | D138: 873.60 | E138: 874.33 | F138: 863.42 | G138: 853.23 | H138: 842.32 | I138: 884.52 | J138: 895.43 | K138: 905.62 | L138: 885.25 | M138: 864.15 | N138: 1005600 | O138: -4.72%
A139: 129 | B139: Technology | C139: MINDTREE | D139: 854.50 | E139: 844.02 | F139: 828.78 | G139: 803.07 | H139: 787.83 | I139: 869.73 | J139: 884.97 | K139: 910.68 | L139: 859.25 | M139: 818.3 | N139: 2540400 | O139: -2.37%
A140: 130 | B140: Automobile | C140: MOTHERSUMI | D140: 163.85 | E140: 162.87 | F140: 159.58 | G140: 155.32 | H140: 152.03 | I140: 167.13 | J140: 170.42 | K140: 174.68 | L140: 166.15 | M140: 158.6 | N140: 25022400 | O140: -4.27%
A141: 131 | B141: Automobile | C141: MRF | D141: 66997.95 | E141: 66507.73 | F141: 65490.47 | G141: 63982.98 | H141: 62965.72 | I141: 68015.22 | J141: 69032.48 | K141: 70539.97 | L141: 67525 | M141: 65000.25 | N141: 28000 | O141: -6.60%
A142: 132 | B142: Others | C142: MRPL | D142: 75.30 | E142: 74.23 | F142: 72.77 | G142: 70.23 | H142: 68.77 | I142: 76.77 | J142: 78.23 | K142: 80.77 | L142: 75.7 | M142: 71.7 | N142: 6348000 | O142: -4.29%
A143: 133 | B143: Finance | C143: MUTHOOTFIN | D143: 499.15 | E143: 495.33 | F143: 486.42 | G143: 473.68 | H143: 464.77 | I143: 508.07 | J143: 516.98 | K143: 529.72 | L143: 504.25 | M143: 482.6 | N143: 3189000 | O143: -4.83%
A144: 134 | B144: Others | C144: NATIONALUM | D144: 62.90 | E144: 62.42 | F144: 61.63 | G144: 60.37 | H144: 59.58 | I144: 63.68 | J144: 64.47 | K144: 65.73 | L144: 63.2 | M144: 61.15 | N144: 32928000 | O144: -1.58%
A145: 135 | B145: Others | C145: NBCC | D145: 54.60 | E145: 54.03 | F145: 52.87 | G145: 51.13 | H145: 49.97 | I145: 55.77 | J145: 56.93 | K145: 58.67 | L145: 55.2 | M145: 52.3 | N145: 38458000 | O145: 2.72%
A146: 136 | B146: Infrastructure | C146: NCC | D146: 84.10 | E146: 82.95 | F146: 81.65 | G146: 79.20 | H146: 77.90 | I146: 85.40 | J146: 86.70 | K146: 89.15 | L146: 84.25 | M146: 80.5 | N146: 48896000 | O146: -1.63%
A147: 137 | B147: Others | C147: NESTLEIND | D147: 10804.95 | E147: 10852.80 | F147: 10705.95 | G147: 10606.95 | H147: 10460.10 | I147: 10951.80 | J147: 11098.65 | K147: 11197.65 | L147: 10999.65 | M147: 10753.8 | N147: 309900 | O147: 2.13%
A148: 138 | B148: Power | C148: NHPC | D148: 26.05 | E148: 26.02 | F148: 25.88 | G148: 25.72 | H148: 25.58 | I148: 26.18 | J148: 26.32 | K148: 26.48 | L148: 26.15 | M148: 25.85 | N148: 23409000 | O148: -4.52%
A149: 139 | B149: Technology | C149: NIITTECH | D149: 1123.80 | E149: 1117.78 | F149: 1106.02 | G149: 1088.23 | H149: 1076.47 | I149: 1135.57 | J149: 1147.33 | K149: 1165.12 | L149: 1129.55 | M149: 1100 | N149: 1704750 | O149: -6.81%
A150: 140 | B150: Metals | C150: NMDC | D150: 94.60 | E150: 94.28 | F150: 93.17 | G150: 91.73 | H150: 90.62 | I150: 95.72 | J150: 96.83 | K150: 98.27 | L150: 95.4 | M150: 92.85 | N150: 24246000 | O150: 7.59%
A151: 141 | B151: Power | C151: NTPC | D151: 145.85 | E151: 146.18 | F151: 143.92 | G151: 141.98 | H151: 139.72 | I151: 148.12 | J151: 150.38 | K151: 152.32 | L151: 148.45 | M151: 144.25 | N151: 51008000 | O151: 0.28%
A152: 142 | B152: Technology | C152: OFSS | D152: 3571.90 | E152: 3575.68 | F152: 3519.37 | G152: 3466.83 | H152: 3410.52 | I152: 3628.22 | J152: 3684.53 | K152: 3737.07 | L152: 3632 | M152: 3523.15 | N152: 175800 | O152: -4.01%
A153: 143 | B153: Oil_Gas | C153: OIL | D153: 172.95 | E153: 173.50 | F153: 171.70 | G153: 170.45 | H153: 168.65 | I153: 174.75 | J153: 176.55 | K153: 177.80 | L153: 175.3 | M153: 172.25 | N153: 9109320 | O153: -0.52%
A154: 144 | B154: Oil_Gas | C154: ONGC | D154: 146.70 | E154: 147.25 | F154: 145.00 | G154: 143.30 | H154: 141.05 | I154: 148.95 | J154: 151.20 | K154: 152.90 | L154: 149.5 | M154: 145.55 | N154: 60982500 | O154: -3.08%
A155: 145 | B155: Banking | C155: ORIENTBANK | D155: 95.10 | E155: 95.05 | F155: 92.20 | G155: 89.30 | H155: 86.45 | I155: 97.95 | J155: 100.80 | K155: 103.70 | L155: 97.9 | M155: 92.15 | N155: 14063000 | O155: -5.62%
A156: 146 | B156: Textile | C156: PAGEIND | D156: 23610.40 | E156: 23599.77 | F156: 23220.73 | G156: 22831.07 | H156: 22452.03 | I156: 23989.43 | J156: 24368.47 | K156: 24758.13 | L156: 23978.8 | M156: 23210.1 | N156: 144700 | O156: -3.76%
A157: 147 | B157: Others | C157: PCJEWELLER | D157: 81.40 | E157: 81.18 | F157: 79.47 | G157: 77.53 | H157: 75.82 | I157: 83.12 | J157: 84.83 | K157: 86.77 | L157: 82.9 | M157: 79.25 | N157: 8097500 | O157: -16.34%
A158: 148 | B158: Pharma | C158: PEL | D158: 2317.25 | E158: 2293.93 | F158: 2257.92 | G158: 2198.58 | H158: 2162.57 | I158: 2353.27 | J158: 2389.28 | K158: 2448.62 | L158: 2329.95 | M158: 2234.6 | N158: 2878060 | O158: -0.31%
A159: 149 | B159: Oil_Gas | C159: PETRONET | D159: 223.05 | E159: 222.58 | F159: 220.52 | G159: 217.98 | H159: 215.92 | I159: 225.12 | J159: 227.18 | K159: 229.72 | L159: 224.65 | M159: 220.05 | N159: 14859000 | O159: 7.42%
A160: 150 | B160: Finance | C160: PFC | D160: 100.00 | E160: 99.65 | F160: 98.35 | G160: 96.70 | H160: 95.40 | I160: 101.30 | J160: 102.60 | K160: 104.25 | L160: 100.95 | M160: 98 | N160: 46854600 | O160: -0.58%
A161: 151 | B161: FMCG | C161: PIDILITIND | D161: 1106.50 | E161: 1104.20 | F161: 1092.30 | G161: 1078.10 | H161: 1066.20 | I161: 1118.40 | J161: 1130.30 | K161: 1144.50 | L161: 1116.1 | M161: 1090 | N161: 3426000 | O161: -6.27%
A162: 152 | B162: Banking | C162: PNB | D162: 77.90 | E162: 77.03 | F162: 75.62 | G162: 73.33 | H162: 71.92 | I162: 79.32 | J162: 80.73 | K162: 83.02 | L162: 78.45 | M162: 74.75 | N162: 114815000 | O162: -2.55%
A163: 153 | B163: Power | C163: POWERGRID | D163: 195.55 | E163: 194.55 | F163: 192.50 | G163: 189.45 | H163: 187.40 | I163: 197.60 | J163: 199.65 | K163: 202.70 | L163: 196.6 | M163: 191.5 | N163: 43436000 | O163: -1.35%
A164: 154 | B164: Power | C164: PTC | D164: 89.05 | E164: 88.18 | F164: 86.32 | G164: 83.58 | H164: 81.72 | I164: 90.92 | J164: 92.78 | K164: 95.52 | L164: 90.05 | M164: 85.45 | N164: 6736000 | O164: -2.43%
A165: 155 | B165: Others | C165: PVR | D165: 1550.70 | E165: 1541.13 | F165: 1526.07 | G165: 1501.43 | H165: 1486.37 | I165: 1565.77 | J165: 1580.83 | K165: 1605.47 | L165: 1556.2 | M165: 1516.5 | N165: 1364000 | O165: -7.64%
A166: 156 | B166: Cement | C166: RAMCOCEM | D166: 620.90 | E166: 618.15 | F166: 610.90 | G166: 600.90 | H166: 593.65 | I166: 628.15 | J166: 635.40 | K166: 645.40 | L166: 625.4 | M166: 608.15 | N166: 700000 | O166: 0.23%
A167: 157 | B167: Others | C167: RAYMOND | D167: 835.65 | E167: 829.73 | F167: 818.92 | G167: 802.18 | H167: 791.37 | I167: 846.47 | J167: 857.28 | K167: 874.02 | L167: 840.55 | M167: 813 | N167: 3956000 | O167: -3.19%
A168: 158 | B168: Banking | C168: RBLBANK | D168: 560.40 | E168: 559.45 | F168: 550.95 | G168: 541.50 | H168: 533.00 | I168: 568.90 | J168: 577.40 | K168: 586.85 | L168: 567.95 | M168: 550 | N168: 7200000 | O168: -3.82%
A169: 159 | B169: Telecom | C169: RCOM | D169: 14.35 | E169: 14.22 | F169: 13.98 | G169: 13.62 | H169: 13.38 | I169: 14.58 | J169: 14.82 | K169: 15.18 | L169: 14.45 | M169: 13.85 | N169: 94552000 | O169: -5.64%
A170: 160 | B170: Power | C170: RECLTD | D170: 115.55 | E170: 114.15 | F170: 112.10 | G170: 108.65 | H170: 106.60 | I170: 117.60 | J170: 119.65 | K170: 123.10 | L170: 116.2 | M170: 110.7 | N170: 48822000 | O170: 3.08%
A171: 161 | B171: Finance | C171: RELCAPITAL | D171: 212.60 | E171: 211.33 | F171: 207.92 | G171: 203.23 | H171: 199.82 | I171: 216.02 | J171: 219.43 | K171: 224.12 | L171: 214.75 | M171: 206.65 | N171: 13231500 | O171: 2.44%
A172: 162 | B172: Oil_Gas | C172: RELIANCE | D172: 1098.60 | E172: 1088.70 | F172: 1076.40 | G172: 1054.20 | H172: 1041.90 | I172: 1110.90 | J172: 1123.20 | K172: 1145.40 | L172: 1101 | M172: 1066.5 | N172: 52510000 | O172: 7.40%
A173: 163 | B173: Power | C173: RELINFRA | D173: 304.15 | E173: 304.10 | F173: 300.30 | G173: 296.45 | H173: 292.65 | I173: 307.95 | J173: 311.75 | K173: 315.60 | L173: 307.9 | M173: 300.25 | N173: 10000900 | O173: 0.26%
A174: 164 | B174: Others | C174: REPCOHOME | D174: 401.95 | E174: 394.85 | F174: 382.65 | G174: 363.35 | H174: 351.15 | I174: 414.15 | J174: 426.35 | K174: 445.65 | L174: 407.05 | M174: 375.55 | N174: 1723900 | O174: -5.56%
A175: 165 | B175: Power | C175: RPOWER | D175: 27.70 | E175: 27.42 | F175: 26.98 | G175: 26.27 | H175: 25.83 | I175: 28.13 | J175: 28.57 | K175: 29.28 | L175: 27.85 | M175: 26.7 | N175: 48657000 | O175: -1.57%
A176: 166 | B176: Metals | C176: SAIL | D176: 52.50 | E176: 51.90 | F176: 51.15 | G176: 49.80 | H176: 49.05 | I176: 53.25 | J176: 54.00 | K176: 55.35 | L176: 52.65 | M176: 50.55 | N176: 93840000 | O176: 1.77%
A177: 167 | B177: Banking | C177: SBIN | D177: 294.70 | E177: 292.42 | F177: 289.58 | G177: 284.47 | H177: 281.63 | I177: 297.53 | J177: 300.37 | K177: 305.48 | L177: 295.25 | M177: 287.3 | N177: 82335000 | O177: -0.54%
A178: 168 | B178: Cement | C178: SHREECEM | D178: 17099.25 | E178: 16919.73 | F178: 16539.52 | G178: 15979.78 | H178: 15599.57 | I178: 17479.47 | J178: 17859.68 | K178: 18419.42 | L178: 17299.95 | M178: 16360 | N178: 107000 | O178: -0.60%
A179: 169 | B179: Capital_Goods | C179: SIEMENS | D179: 1037.25 | E179: 1021.25 | F179: 996.50 | G179: 955.75 | H179: 931.00 | I179: 1062.00 | J179: 1086.75 | K179: 1127.50 | L179: 1046 | M179: 980.5 | N179: 2153700 | O179: -7.51%
A180: 170 | B180: Banking | C180: SOUTHBANK | D180: 15.20 | E180: 15.08 | F180: 14.92 | G180: 14.63 | H180: 14.47 | I180: 15.37 | J180: 15.53 | K180: 15.82 | L180: 15.25 | M180: 14.8 | N180: 158645967 | O180: 0.25%
A181: 171 | B181: Others | C181: SREINFRA | D181: 34.75 | E181: 34.37 | F181: 33.73 | G181: 32.72 | H181: 32.08 | I181: 35.38 | J181: 36.02 | K181: 37.03 | L181: 35 | M181: 33.35 | N181: 14745000 | O181: -0.81%
A182: 172 | B182: Textile | C182: SRF | D182: 1969.10 | E182: 1956.05 | F182: 1922.10 | G182: 1875.10 | H182: 1841.15 | I182: 2003.05 | J182: 2037.00 | K182: 2084.00 | L182: 1990 | M182: 1909.05 | N182: 799000 | O182: -0.50%
A183: 173 | B183: Finance | C183: SRTRANSFIN | D183: 1221.95 | E183: 1210.67 | F183: 1189.98 | G183: 1158.02 | H183: 1137.33 | I183: 1242.63 | J183: 1263.32 | K183: 1295.28 | L183: 1231.35 | M183: 1178.7 | N183: 3872400 | O183: -2.14%
A184: 174 | B184: Pharma | C184: STAR | D184: 460.30 | E184: 457.03 | F184: 450.17 | G184: 440.03 | H184: 433.17 | I184: 467.17 | J184: 474.03 | K184: 484.17 | L184: 463.9 | M184: 446.9 | N184: 3954600 | O184: -0.65%
A185: 175 | B185: Pharma | C185: SUNPHARMA | D185: 414.85 | E185: 415.85 | F185: 409.00 | G185: 403.15 | H185: 396.30 | I185: 421.70 | J185: 428.55 | K185: 434.40 | L185: 422.7 | M185: 410 | N185: 59584800 | O185: 1.14%
A186: 176 | B186: Media | C186: SUNTV | D186: 575.80 | E186: 570.13 | F186: 561.32 | G186: 546.83 | H186: 538.02 | I186: 584.62 | J186: 593.43 | K186: 607.92 | L186: 578.95 | M186: 555.65 | N186: 6915000 | O186: 0.12%
A187: 177 | B187: Power | C187: SUZLON | D187: 5.40 | E187: 5.40 | F187: 5.25 | G187: 5.10 | H187: 4.95 | I187: 5.55 | J187: 5.70 | K187: 5.85 | L187: 5.55 | M187: 5.25 | N187: 342763000 | O187: 5.62%
A188: 178 | B188: Banking | C188: SYNDIBANK | D188: 37.85 | E188: 37.47 | F188: 36.88 | G188: 35.92 | H188: 35.33 | I188: 38.43 | J188: 39.02 | K188: 39.98 | L188: 38.05 | M188: 36.5 | N188: 24786000 | O188: 3.00%
A189: 179 | B189: Fertilisers | C189: TATACHEM | D189: 701.70 | E189: 699.73 | F189: 688.97 | G189: 676.23 | H189: 665.47 | I189: 712.47 | J189: 723.23 | K189: 735.97 | L189: 710.5 | M189: 687 | N189: 2707500 | O189: -10.69%
A190: 180 | B190: Telecom | C190: TATACOMM | D190: 511.35 | E190: 512.57 | F190: 505.13 | G190: 498.92 | H190: 491.48 | I190: 518.78 | J190: 526.22 | K190: 532.43 | L190: 520 | M190: 506.35 | N190: 2700200 | O190: -3.34%
A191: 181 | B191: Technology | C191: TATAELXSI | D191: 991.60 | E191: 986.08 | F191: 976.47 | G191: 961.33 | H191: 951.72 | I191: 1001.22 | J191: 1010.83 | K191: 1025.97 | L191: 995.7 | M191: 970.95 | N191: 1502000 | O191: -1.96%
A192: 182 | B192: FMCG | C192: TATAGLOBAL | D192: 218.00 | E192: 216.42 | F192: 213.38 | G192: 208.77 | H192: 205.73 | I192: 221.03 | J192: 224.07 | K192: 228.68 | L192: 219.45 | M192: 211.8 | N192: 15563250 | O192: 3.63%
A193: 183 | B193: Automobile | C193: TATAMOTORS | D193: 171.30 | E193: 170.42 | F193: 168.38 | G193: 165.47 | H193: 163.43 | I193: 173.33 | J193: 175.37 | K193: 178.28 | L193: 172.45 | M193: 167.5 | N193: 63312000 | O193: 3.72%
A194: 184 | B194: Automobile | C194: TATAMTRDVR | D194: 93.25 | E194: 92.93 | F194: 91.82 | G194: 90.38 | H194: 89.27 | I194: 94.37 | J194: 95.48 | K194: 96.92 | L194: 94.05 | M194: 91.5 | N194: 29656400 | O194: 0.64%
A195: 185 | B195: Power | C195: TATAPOWER | D195: 76.15 | E195: 75.93 | F195: 75.12 | G195: 74.08 | H195: 73.27 | I195: 76.97 | J195: 77.78 | K195: 78.82 | L195: 76.75 | M195: 74.9 | N195: 56493000 | O195: 4.62%
A196: 186 | B196: Metals | C196: TATASTEEL | D196: 514.35 | E196: 512.58 | F196: 506.82 | G196: 499.28 | H196: 493.52 | I196: 520.12 | J196: 525.88 | K196: 533.42 | L196: 518.35 | M196: 505.05 | N196: 32930257 | O196: -1.73%
A197: 187 | B197: Technology | C197: TCS | D197: 1892.20 | E197: 1895.25 | F197: 1867.60 | G197: 1843.00 | H197: 1815.35 | I197: 1919.85 | J197: 1947.50 | K197: 1972.10 | L197: 1922.9 | M197: 1870.65 | N197: 12813000 | O197: 1.33%
A198: 188 | B198: Technology | C198: TECHM | D198: 694.70 | E198: 692.30 | F198: 687.60 | G198: 680.50 | H198: 675.80 | I198: 699.40 | J198: 704.10 | K198: 711.20 | L198: 697 | M198: 685.2 | N198: 13669200 | O198: -0.42%
A199: 189 | B199: FMCG | C199: TITAN | D199: 890.85 | E199: 886.93 | F199: 873.92 | G199: 856.98 | H199: 843.97 | I199: 903.87 | J199: 916.88 | K199: 933.82 | L199: 899.95 | M199: 870 | N199: 15666000 | O199: 3.45%
A200: 190 | B200: Pharma | C200: TORNTPHARM | D200: 1753.95 | E200: 1749.32 | F200: 1725.63 | G200: 1697.32 | H200: 1673.63 | I200: 1777.63 | J200: 1801.32 | K200: 1829.63 | L200: 1773 | M200: 1721 | N200: 434000 | O200: 4.08%
A201: 191 | B201: Power | C201: TORNTPOWER | D201: 256.90 | E201: 256.77 | F201: 253.03 | G201: 249.17 | H201: 245.43 | I201: 260.63 | J201: 264.37 | K201: 268.23 | L201: 260.5 | M201: 252.9 | N201: 2328000 | O201: 5.58%
A202: 192 | B202: Media | C202: TV18BRDCST | D202: 36.20 | E202: 35.95 | F202: 35.45 | G202: 34.70 | H202: 34.20 | I202: 36.70 | J202: 37.20 | K202: 37.95 | L202: 36.45 | M202: 35.2 | N202: 55089000 | O202: -0.60%
A203: 193 | B203: Automobile | C203: TVSMOTOR | D203: 560.60 | E203: 560.65 | F203: 553.95 | G203: 547.30 | H203: 540.60 | I203: 567.30 | J203: 574.00 | K203: 580.65 | L203: 567.35 | M203: 554 | N203: 6727000 | O203: 3.97%
A204: 194 | B204: FMCG | C204: UBL | D204: 1360.00 | E204: 1347.88 | F204: 1328.12 | G204: 1296.23 | H204: 1276.47 | I204: 1379.77 | J204: 1399.53 | K204: 1431.42 | L204: 1367.65 | M204: 1316 | N204: 2084600 | O204: -13.33%
A205: 195 | B205: Finance | C205: UJJIVAN | D205: 275.55 | E205: 272.20 | F205: 267.00 | G205: 258.45 | H205: 253.25 | I205: 280.75 | J205: 285.95 | K205: 294.50 | L205: 277.4 | M205: 263.65 | N205: 4148800 | O205: -11.35%
A206: 196 | B206: Cement | C206: ULTRACEMCO | D206: 3998.55 | E206: 3955.63 | F206: 3903.92 | G206: 3809.28 | H206: 3757.57 | I206: 4050.27 | J206: 4101.98 | K206: 4196.62 | L206: 4007.35 | M206: 3861 | N206: 1927600 | O206: 2.56%
... 24 more rows

Sheet Cash Intra
M5: Back to Main Page
A6: FOR INTRA DAY TRADING | K6: =Main!B10 -> 2018-12-27
A8: Sr.no | B8: Scrip | C8: CLOSE RATE | D8: Pivot Point | E8: Supports | H8: Resistances
C9: Point | E9: S1 | F9: S2 | G9: S3 | H9: R1 | I9: R2 | J9: R3 | K9: HIGH | L9: LOW | M9: Total Trade Quanity in Lakhs
A10: 1 | B10: Nifty 50 | C10: 10729.85 | D10: 10670.63 | E10: 10593.77 | F10: 10457.68 | G10: 10380.82 | H10: 10806.72 | I10: 10883.58 | J10: 11019.67 | K10: 10747.5 | L10: 10534.55
A11: 2 | B11: Nifty Bank | C11: 26986.8 | D11: 26808.03 | E11: 26586.92 | F11: 26187.03 | G11: 25965.92 | H11: 27207.92 | I11: 27429.03 | J11: 27828.92 | K11: 27029.15 | L11: 26408.15
A12: 3 | B12: Nifty CPSE | C12: 2034.65 | D12: 2036.33 | E12: 2017.47 | F12: 2000.28 | G12: 1981.42 | H12: 2053.52 | I12: 2072.38 | J12: 2089.57 | K12: 2055.2 | L12: 2019.15
A13: 4 | B13: Nifty Infra | C13: 3139.35 | D13: 3116.43 | E13: 3084.92 | F13: 3030.48 | G13: 2998.97 | H13: 3170.87 | I13: 3202.38 | J13: 3256.82 | K13: 3147.95 | L13: 3062
A14: 5 | B14: Nifty IT | C14: 14158.9 | D14: 14135.50 | E14: 14041.80 | F14: 13924.70 | G14: 13831.00 | H14: 14252.60 | I14: 14346.30 | J14: 14463.40 | K14: 14229.2 | L14: 14018.4
A15: 6 | B15: Nifty PSE | C15: 3334.8 | D15: 3328.97 | E15: 3305.43 | F15: 3276.07 | G15: 3252.53 | H15: 3358.33 | I15: 3381.87 | J15: 3411.23 | K15: 3352.5 | L15: 3299.6
A16: 7 | B16: Nifty Midcap 50 | C16: 4825.95 | D16: 4794.22 | E16: 4751.98 | F16: 4678.02 | G16: 4635.78 | H16: 4868.18 | I16: 4910.42 | J16: 4984.38 | K16: 4836.45 | L16: 4720.25
A17: 8 | B17: ABB | C17: 1295.3 | D17: 1299.43 | E17: 1280.87 | F17: 1266.43 | G17: 1247.87 | H17: 1313.87 | I17: 1332.43 | J17: 1346.87 | K17: 1318 | L17: 1285 | M17: 1.25511
A18: 9 | B18: ACC | C18: 1479.4 | D18: 1462.17 | E18: 1438.33 | F18: 1397.27 | G18: 1373.43 | H18: 1503.23 | I18: 1527.07 | J18: 1568.13 | K18: 1486 | L18: 1421.1 | M18: 5.97239
A19: 10 | B19: AIAENG | C19: 1637.55 | D19: 1621.88 | E19: 1593.77 | F19: 1549.98 | G19: 1521.87 | H19: 1665.67 | I19: 1693.78 | J19: 1737.57 | K19: 1650 | L19: 1578.1 | M19: 0.17285
A20: 11 | B20: AUBANK | C20: 592.05 | D20: 592.80 | E20: 581.75 | F20: 571.45 | G20: 560.40 | H20: 603.10 | I20: 614.15 | J20: 624.45 | K20: 603.85 | L20: 582.5 | M20: 2.9456
A21: 12 | B21: ADANIENT | C21: 161.25 | D21: 160.15 | E21: 156.20 | F21: 151.15 | G21: 147.20 | H21: 165.20 | I21: 169.15 | J21: 174.20 | K21: 164.1 | L21: 155.1 | M21: 40.65516
A22: 13 | B22: ADANIPORTS | C22: 376.55 | D22: 370.85 | E22: 363.20 | F22: 349.85 | G22: 342.20 | H22: 384.20 | I22: 391.85 | J22: 405.20 | K22: 378.5 | L22: 357.5 | M22: 45.1902
A23: 14 | B23: ADANIPOWER | C23: 50.85 | D23: 50.75 | E23: 49.60 | F23: 48.35 | G23: 47.20 | H23: 52.00 | I23: 53.15 | J23: 54.40 | K23: 51.9 | L23: 49.5 | M23: 123.24109
A24: 15 | B24: ABFRL | C24: 205.9 | D24: 206.05 | E24: 201.50 | F24: 197.10 | G24: 192.55 | H24: 210.45 | I24: 215.00 | J24: 219.40 | K24: 210.6 | L24: 201.65 | M24: 7.23425
A25: 16 | B25: AJANTPHARM | C25: 1128.55 | D25: 1124.82 | E25: 1110.28 | F25: 1092.02 | G25: 1077.48 | H25: 1143.08 | I25: 1157.62 | J25: 1175.88 | K25: 1139.35 | L25: 1106.55 | M25: 2.26562
A26: 17 | B26: ALKEM | C26: 1874.55 | D26: 1866.18 | E26: 1848.37 | F26: 1822.18 | G26: 1804.37 | H26: 1892.37 | I26: 1910.18 | J26: 1936.37 | K26: 1884 | L26: 1840 | M26: 0.16728
A27: 18 | B27: AMARAJABAT | C27: 731.8 | D27: 734.65 | E27: 725.10 | F27: 718.40 | G27: 708.85 | H27: 741.35 | I27: 750.90 | J27: 757.60 | K27: 744.2 | L27: 727.95 | M27: 5.04209
A28: 19 | B28: AMBUJACEM | C28: 221.1 | D28: 217.67 | E28: 213.33 | F28: 205.57 | G28: 201.23 | H28: 225.43 | I28: 229.77 | J28: 237.53 | K28: 222 | L28: 209.9 | M28: 33.03641
A29: 20 | B29: APOLLOHOSP | C29: 1264.15 | D29: 1258.67 | E29: 1243.33 | F29: 1222.52 | G29: 1207.18 | H29: 1279.48 | I29: 1294.82 | J29: 1315.63 | K29: 1274 | L29: 1237.85 | M29: 2.75494
A30: 21 | B30: APOLLOTYRE | C30: 233.35 | D30: 231.40 | E30: 227.55 | F30: 221.75 | G30: 217.90 | H30: 237.20 | I30: 241.05 | J30: 246.85 | K30: 235.25 | L30: 225.6 | M30: 24.17738
A31: 22 | B31: ARVIND | C31: 97.1 | D31: 97.20 | E31: 95.40 | F31: 93.70 | G31: 91.90 | H31: 98.90 | I31: 100.70 | J31: 102.40 | K31: 99 | L31: 95.5 | M31: 28.01614
A32: 23 | B32: ASHOKLEY | C32: 103.9 | D32: 103.40 | E32: 102.50 | F32: 101.10 | G32: 100.20 | H32: 104.80 | I32: 105.70 | J32: 107.10 | K32: 104.3 | L32: 102 | M32: 105.59085
A33: 24 | B33: ASIANPAINT | C33: 1363 | D33: 1361.77 | E33: 1348.63 | F33: 1334.27 | G33: 1321.13 | H33: 1376.13 | I33: 1389.27 | J33: 1403.63 | K33: 1374.9 | L33: 1347.4 | M33: 17.90087
A34: 25 | B34: AUROPHARMA | C34: 718.5 | D34: 712.12 | E34: 703.48 | F34: 688.47 | G34: 679.83 | H34: 727.13 | I34: 735.77 | J34: 750.78 | K34: 720.75 | L34: 697.1 | M34: 30.96253
A35: 26 | B35: DMART | C35: 1554.85 | D35: 1539.68 | E35: 1516.47 | F35: 1478.08 | G35: 1454.87 | H35: 1578.07 | I35: 1601.28 | J35: 1639.67 | K35: 1562.9 | L35: 1501.3 | M35: 5.44718
A36: 27 | B36: AXISBANK | C36: 619.5 | D36: 615.53 | E36: 607.42 | F36: 595.33 | G36: 587.22 | H36: 627.62 | I36: 635.73 | J36: 647.82 | K36: 623.65 | L36: 603.45 | M36: 65.19211
A37: 28 | B37: BAJAJ-AUTO | C37: 2734.6 | D37: 2718.13 | E37: 2686.47 | F37: 2638.33 | G37: 2606.67 | H37: 2766.27 | I37: 2797.93 | J37: 2846.07 | K37: 2749.8 | L37: 2670 | M37: 4.10582
A38: 29 | B38: BAJFINANCE | C38: 2567.4 | D38: 2551.35 | E38: 2519.75 | F38: 2472.10 | G38: 2440.50 | H38: 2599.00 | I38: 2630.60 | J38: 2678.25 | K38: 2582.95 | L38: 2503.7 | M38: 16.62068
A39: 30 | B39: BAJAJFINSV | C39: 6439.05 | D39: 6351.35 | E39: 6237.70 | F39: 6036.35 | G39: 5922.70 | H39: 6552.70 | I39: 6666.35 | J39: 6867.70 | K39: 6465 | L39: 6150 | M39: 2.7261
A40: 31 | B40: BALKRISIND | C40: 907.6 | D40: 904.32 | E40: 893.63 | F40: 879.67 | G40: 868.98 | H40: 918.28 | I40: 928.97 | J40: 942.93 | K40: 915 | L40: 890.35 | M40: 4.14195
A41: 32 | B41: BANKBARODA | C41: 117.7 | D41: 116.50 | E41: 114.10 | F41: 110.50 | G41: 108.10 | H41: 120.10 | I41: 122.50 | J41: 126.10 | K41: 118.9 | L41: 112.9 | M41: 138.05517
A42: 33 | B42: BANKINDIA | C42: 100.65 | D42: 99.75 | E42: 97.95 | F42: 95.25 | G42: 93.45 | H42: 102.45 | I42: 104.25 | J42: 106.95 | K42: 101.55 | L42: 97.05 | M42: 170.19629
A43: 34 | B43: BATAINDIA | C43: 1096.65 | D43: 1093.27 | E43: 1078.63 | F43: 1060.62 | G43: 1045.98 | H43: 1111.28 | I43: 1125.92 | J43: 1143.93 | K43: 1107.9 | L43: 1075.25 | M43: 6.65666
A44: 35 | B44: BERGEPAINT | C44: 328.3 | D44: 327.13 | E44: 321.27 | F44: 314.23 | G44: 308.37 | H44: 334.17 | I44: 340.03 | J44: 347.07 | K44: 333 | L44: 320.1 | M44: 9.90882
A45: 36 | B45: BEL | C45: 88.7 | D45: 87.82 | E45: 86.13 | F45: 83.57 | G45: 81.88 | H45: 90.38 | I45: 92.07 | J45: 94.63 | K45: 89.5 | L45: 85.25 | M45: 126.11262
A46: 37 | B46: BHARATFIN | C46: 990.7 | D46: 983.10 | E46: 965.20 | F46: 939.70 | G46: 921.80 | H46: 1008.60 | I46: 1026.50 | J46: 1052.00 | K46: 1001 | L46: 957.6 | M46: 7.03858
A47: 38 | B47: BHARATFORG | C47: 505.45 | D47: 502.72 | E47: 496.93 | F47: 488.42 | G47: 482.63 | H47: 511.23 | I47: 517.02 | J47: 525.53 | K47: 508.5 | L47: 494.2 | M47: 11.42633
A48: 39 | B48: BHEL | C48: 71.55 | D48: 70.88 | E48: 69.92 | F48: 68.28 | G48: 67.32 | H48: 72.52 | I48: 73.48 | J48: 75.12 | K48: 71.85 | L48: 69.25 | M48: 135.78782
A49: 40 | B49: BPCL | C49: 366.35 | D49: 365.28 | E49: 359.27 | F49: 352.18 | G49: 346.17 | H49: 372.37 | I49: 378.38 | J49: 385.47 | K49: 371.3 | L49: 358.2 | M49: 64.77931
A50: 41 | B50: BHARTIARTL | C50: 320.45 | D50: 315.35 | E50: 307.70 | F50: 294.95 | G50: 287.30 | H50: 328.10 | I50: 335.75 | J50: 348.50 | K50: 323 | L50: 302.6 | M50: 75.4097
A51: 42 | B51: INFRATEL | C51: 262.6 | D51: 261.95 | E51: 258.90 | F51: 255.20 | G51: 252.15 | H51: 265.65 | I51: 268.70 | J51: 272.40 | K51: 265 | L51: 258.25 | M51: 12.82658
A52: 43 | B52: BIOCON | C52: 614.7 | D52: 610.90 | E52: 604.80 | F52: 594.90 | G52: 588.80 | H52: 620.80 | I52: 626.90 | J52: 636.80 | K52: 617 | L52: 601 | M52: 12.66619
A53: 44 | B53: BOSCHLTD | C53: 19526.55 | D53: 19445.77 | E53: 19251.53 | F53: 18976.52 | G53: 18782.28 | H53: 19720.78 | I53: 19915.02 | J53: 20190.03 | K53: 19640 | L53: 19170.75 | M53: 0.10735
A54: 45 | B54: BRITANNIA | C54: 3088.95 | D54: 3081.32 | E54: 3048.63 | F54: 3008.32 | G54: 2975.63 | H54: 3121.63 | I54: 3154.32 | J54: 3194.63 | K54: 3114 | L54: 3041 | M54: 1.59442
A55: 46 | B55: CRISIL | C55: 1619.1 | D55: 1602.38 | E55: 1564.77 | F55: 1510.43 | G55: 1472.82 | H55: 1656.72 | I55: 1694.33 | J55: 1748.67 | K55: 1640 | L55: 1548.05 | M55: 0.03954
A56: 47 | B56: CADILAHC | C56: 339.4 | D56: 339.32 | E56: 336.28 | F56: 333.17 | G56: 330.13 | H56: 342.43 | I56: 345.47 | J56: 348.58 | K56: 342.35 | L56: 336.2 | M56: 5.22052
A57: 48 | B57: CANBK | C57: 270.9 | D57: 268.03 | E57: 262.52 | F57: 254.13 | G57: 248.62 | H57: 276.42 | I57: 281.93 | J57: 290.32 | K57: 273.55 | L57: 259.65 | M57: 47.15909
A58: 49 | B58: CASTROLIND | C58: 152.35 | D58: 152.05 | E58: 150.30 | F58: 148.25 | G58: 146.50 | H58: 154.10 | I58: 155.85 | J58: 157.90 | K58: 153.8 | L58: 150 | M58: 13.17088
A59: 50 | B59: CENTRALBK | C59: 34.1 | D59: 33.75 | E59: 32.35 | F59: 30.60 | G59: 29.20 | H59: 35.50 | I59: 36.90 | J59: 38.65 | K59: 35.15 | L59: 32 | M59: 5.55727
A60: 51 | B60: CENTURYTEX | C60: 896.6 | D60: 891.98 | E60: 876.97 | F60: 857.33 | G60: 842.32 | H60: 911.62 | I60: 926.63 | J60: 946.27 | K60: 907 | L60: 872.35 | M60: 7.34872
A61: 52 | B61: CHOLAFIN | C61: 1222.8 | D61: 1203.58 | E61: 1178.12 | F61: 1133.43 | G61: 1107.97 | H61: 1248.27 | I61: 1273.73 | J61: 1318.42 | K61: 1229.05 | L61: 1158.9 | M61: 7.09282
A62: 53 | B62: CIPLA | C62: 514.3 | D62: 513.53 | E62: 508.07 | F62: 501.83 | G62: 496.37 | H62: 519.77 | I62: 525.23 | J62: 531.47 | K62: 519 | L62: 507.3 | M62: 13.1856
A63: 54 | B63: COALINDIA | C63: 247.05 | D63: 247.82 | E63: 245.23 | F63: 243.42 | G63: 240.83 | H63: 249.63 | I63: 252.22 | J63: 254.03 | K63: 250.4 | L63: 246 | M63: 50.69728
A64: 55 | B64: COLPAL | C64: 1302.15 | D64: 1303.72 | E64: 1291.48 | F64: 1280.82 | G64: 1268.58 | H64: 1314.38 | I64: 1326.62 | J64: 1337.28 | K64: 1315.95 | L64: 1293.05 | M64: 5.22671
A65: 56 | B65: CONCOR | C65: 652.6 | D65: 648.48 | E65: 640.22 | F65: 627.83 | G65: 619.57 | H65: 660.87 | I65: 669.13 | J65: 681.52 | K65: 656.75 | L65: 636.1 | M65: 6.49225
A66: 57 | B66: COROMANDEL | C66: 445.45 | D66: 441.80 | E66: 430.60 | F66: 415.75 | G66: 404.55 | H66: 456.65 | I66: 467.85 | J66: 482.70 | K66: 453 | L66: 426.95 | M66: 1.40745
A67: 58 | B67: CROMPTON | C67: 227.2 | D67: 225.28 | E67: 220.02 | F67: 212.83 | G67: 207.57 | H67: 232.47 | I67: 237.73 | J67: 244.92 | K67: 230.55 | L67: 218.1 | M67: 5.05954
A68: 59 | B68: CUMMINSIND | C68: 802.7 | D68: 794.93 | E68: 780.07 | F68: 757.43 | G68: 742.57 | H68: 817.57 | I68: 832.43 | J68: 855.07 | K68: 809.8 | L68: 772.3 | M68: 5.94851
A69: 60 | B69: DLF | C69: 177.6 | D69: 176.38 | E69: 173.02 | F69: 168.43 | G69: 165.07 | H69: 180.97 | I69: 184.33 | J69: 188.92 | K69: 179.75 | L69: 171.8 | M69: 75.74429
A70: 61 | B70: DABUR | C70: 422.6 | D70: 422.20 | E70: 414.60 | F70: 406.60 | G70: 399.00 | H70: 430.20 | I70: 437.80 | J70: 445.80 | K70: 429.8 | L70: 414.2 | M70: 73.49664
A71: 62 | B71: DHFL | C71: 237.95 | D71: 234.60 | E71: 229.90 | F71: 221.85 | G71: 217.15 | H71: 242.65 | I71: 247.35 | J71: 255.40 | K71: 239.3 | L71: 226.55 | M71: 105.61279
A72: 63 | B72: DISHTV | C72: 37.3 | D72: 37.00 | E72: 36.00 | F72: 34.70 | G72: 33.70 | H72: 38.30 | I72: 39.30 | J72: 40.60 | K72: 38 | L72: 35.7 | M72: 53.13069
A73: 64 | B73: DIVISLAB | C73: 1455.8 | D73: 1447.62 | E73: 1436.23 | F73: 1416.67 | G73: 1405.28 | H73: 1467.18 | I73: 1478.57 | J73: 1498.13 | K73: 1459 | L73: 1428.05 | M73: 3.45177
A74: 65 | B74: LALPATHLAB | C74: 929.75 | D74: 930.95 | E74: 919.80 | F74: 909.85 | G74: 898.70 | H74: 940.90 | I74: 952.05 | J74: 962.00 | K74: 942.1 | L74: 921 | M74: 0.31094
A75: 66 | B75: DRREDDY | C75: 2622.3 | D75: 2608.50 | E75: 2589.00 | F75: 2555.70 | G75: 2536.20 | H75: 2641.80 | I75: 2661.30 | J75: 2694.60 | K75: 2628 | L75: 2575.2 | M75: 7.53624
A76: 67 | B76: EDELWEISS | C76: 185.95 | D76: 184.48 | E76: 180.07 | F76: 174.18 | G76: 169.77 | H76: 190.37 | I76: 194.78 | J76: 200.67 | K76: 188.9 | L76: 178.6 | M76: 11.18125
A77: 68 | B77: EICHERMOT | C77: 23081.35 | D77: 23077.12 | E77: 22704.23 | F77: 22327.12 | G77: 21954.23 | H77: 23454.23 | I77: 23827.12 | J77: 24204.23 | K77: 23450 | L77: 22700 | M77: 0.55049
A78: 69 | B78: EMAMILTD | C78: 405.15 | D78: 403.07 | E78: 398.08 | F78: 391.02 | G78: 386.03 | H78: 410.13 | I78: 415.12 | J78: 422.18 | K78: 408.05 | L78: 396 | M78: 2.00046
A79: 70 | B79: ENDURANCE | C79: 1159.3 | D79: 1157.42 | E79: 1146.88 | F79: 1134.47 | G79: 1123.93 | H79: 1169.83 | I79: 1180.37 | J79: 1192.78 | K79: 1167.95 | L79: 1145 | M79: 0.08127
A80: 71 | B80: ENGINERSIN | C80: 126.7 | D80: 125.07 | E80: 122.78 | F80: 118.87 | G80: 116.58 | H80: 128.98 | I80: 131.27 | J80: 135.18 | K80: 127.35 | L80: 121.15 | M80: 19.13499
A81: 72 | B81: EXIDEIND | C81: 261.8 | D81: 258.27 | E81: 253.88 | F81: 245.97 | G81: 241.58 | H81: 266.18 | I81: 270.57 | J81: 278.48 | K81: 262.65 | L81: 250.35 | M81: 14.67191
A82: 73 | B82: FEDERALBNK | C82: 92.45 | D82: 92.53 | E82: 91.22 | F82: 89.98 | G82: 88.67 | H82: 93.77 | I82: 95.08 | J82: 96.32 | K82: 93.85 | L82: 91.3 | M82: 139.47969
A83: 74 | B83: GAIL | C83: 353.4 | D83: 349.93 | E83: 345.47 | F83: 337.53 | G83: 333.07 | H83: 357.87 | I83: 362.33 | J83: 370.27 | K83: 354.4 | L83: 342 | M83: 19.12786
A84: 75 | B84: GMRINFRA | C84: 16.2 | D84: 15.98 | E84: 15.67 | F84: 15.13 | G84: 14.82 | H84: 16.52 | I84: 16.83 | J84: 17.37 | K84: 16.3 | L84: 15.45 | M84: 191.33761
A85: 76 | B85: GSKCONS | C85: 7492.25 | D85: 7464.07 | E85: 7398.18 | F85: 7304.12 | G85: 7238.23 | H85: 7558.13 | I85: 7624.02 | J85: 7718.08 | K85: 7529.95 | L85: 7370 | M85: 0.44312
A86: 77 | B86: GLAXO | C86: 1497.1 | D86: 1479.03 | E86: 1438.07 | F86: 1379.03 | G86: 1338.07 | H86: 1538.07 | I86: 1579.03 | J86: 1638.07 | K86: 1520 | L86: 1420 | M86: 0.17872
A87: 78 | B87: GLENMARK | C87: 671.05 | D87: 669.95 | E87: 663.90 | F87: 656.75 | G87: 650.70 | H87: 677.10 | I87: 683.15 | J87: 690.30 | K87: 676 | L87: 662.8 | M87: 5.90655
A88: 79 | B88: GODREJCP | C88: 799.3 | D88: 794.45 | E88: 785.65 | F88: 772.00 | G88: 763.20 | H88: 808.10 | I88: 816.90 | J88: 830.55 | K88: 803.25 | L88: 780.8 | M88: 5.65588
A89: 80 | B89: GODREJIND | C89: 522.5 | D89: 517.28 | E89: 510.22 | F89: 497.93 | G89: 490.87 | H89: 529.57 | I89: 536.63 | J89: 548.92 | K89: 524.35 | L89: 505 | M89: 2.33747
A90: 81 | B90: GRUH | C90: 309.95 | D90: 307.67 | E90: 300.33 | F90: 290.72 | G90: 283.38 | H90: 317.28 | I90: 324.62 | J90: 334.23 | K90: 315 | L90: 298.05 | M90: 5.94678
A91: 82 | B91: GPPL | C91: 103.5 | D91: 103.02 | E91: 101.03 | F91: 98.57 | G91: 96.58 | H91: 105.48 | I91: 107.47 | J91: 109.93 | K91: 105 | L91: 100.55 | M91: 0.93405
A92: 83 | B92: GSPL | C92: 174.85 | D92: 174.90 | E92: 173.75 | F92: 172.65 | G92: 171.50 | H92: 176.00 | I92: 177.15 | J92: 178.25 | K92: 176.05 | L92: 173.8 | M92: 0.69383
A93: 84 | B93: HCLTECH | C93: 942.8 | D93: 940.50 | E93: 933.30 | F93: 923.80 | G93: 916.60 | H93: 950.00 | I93: 957.20 | J93: 966.70 | K93: 947.7 | L93: 931 | M93: 12.17032
A94: 85 | B94: HDFCBANK | C94: 2122.35 | D94: 2106.12 | E94: 2085.23 | F94: 2048.12 | G94: 2027.23 | H94: 2143.23 | I94: 2164.12 | J94: 2201.23 | K94: 2127 | L94: 2069 | M94: 19.00479
A95: 86 | B95: HAVELLS | C95: 677.2 | D95: 670.48 | E95: 661.72 | F95: 646.23 | G95: 637.47 | H95: 685.97 | I95: 694.73 | J95: 710.22 | K95: 679.25 | L95: 655 | M95: 10.32249
A96: 87 | B96: HEROMOTOCO | C96: 3175.2 | D96: 3174.42 | E96: 3136.83 | F96: 3098.47 | G96: 3060.88 | H96: 3212.78 | I96: 3250.37 | J96: 3288.73 | K96: 3212 | L96: 3136.05 | M96: 5.06895
A97: 88 | B97: HEXAWARE | C97: 315.75 | D97: 313.37 | E97: 309.78 | F97: 303.82 | G97: 300.23 | H97: 319.33 | I97: 322.92 | J97: 328.88 | K97: 316.95 | L97: 307.4 | M97: 7.41835
A98: 89 | B98: HINDALCO | C98: 218.6 | D98: 217.10 | E98: 214.40 | F98: 210.20 | G98: 207.50 | H98: 221.30 | I98: 224.00 | J98: 228.20 | K98: 219.8 | L98: 212.9 | M98: 65.54865
A99: 90 | B99: HINDPETRO | C99: 248.85 | D99: 248.17 | E99: 245.48 | F99: 242.12 | G99: 239.43 | H99: 251.53 | I99: 254.22 | J99: 257.58 | K99: 250.85 | L99: 244.8 | M99: 75.82841
A100: 91 | B100: HINDUNILVR | C100: 1791.6 | D100: 1777.17 | E100: 1755.68 | F100: 1719.77 | G100: 1698.28 | H100: 1813.08 | I100: 1834.57 | J100: 1870.48 | K100: 1798.65 | L100: 1741.25 | M100: 22.12019
A101: 92 | B101: HINDZINC | C101: 271.45 | D101: 270.30 | E101: 268.35 | F101: 265.25 | G101: 263.30 | H101: 273.40 | I101: 275.35 | J101: 278.45 | K101: 272.25 | L101: 267.2 | M101: 4.80264
A102: 93 | B102: HUDCO | C102: 43.1 | D102: 43.00 | E102: 42.60 | F102: 42.10 | G102: 41.70 | H102: 43.50 | I102: 43.90 | J102: 44.40 | K102: 43.4 | L102: 42.5 | M102: 4.42465
A103: 94 | B103: HDFC | C103: 1933.35 | D103: 1920.42 | E103: 1896.13 | F103: 1858.92 | G103: 1834.63 | H103: 1957.63 | I103: 1981.92 | J103: 2019.13 | K103: 1944.7 | L103: 1883.2 | M103: 15.36116
A104: 95 | B104: ITC | C104: 276.65 | D104: 276.75 | E104: 274.70 | F104: 272.75 | G104: 270.70 | H104: 278.70 | I104: 280.75 | J104: 282.70 | K104: 278.8 | L104: 274.8 | M104: 84.94118
A105: 96 | B105: ICICIBANK | C105: 355.85 | D105: 353.63 | E105: 350.37 | F105: 344.88 | G105: 341.62 | H105: 359.12 | I105: 362.38 | J105: 367.87 | K105: 356.9 | L105: 348.15 | M105: 86.95108
A106: 97 | B106: ICICIPRULI | C106: 321.45 | D106: 320.23 | E106: 316.72 | F106: 311.98 | G106: 308.47 | H106: 324.97 | I106: 328.48 | J106: 333.22 | K106: 323.75 | L106: 315.5 | M106: 4.35303
A107: 98 | B107: IDBI | C107: 61.2 | D107: 61.23 | E107: 61.07 | F107: 60.93 | G107: 60.77 | H107: 61.37 | I107: 61.53 | J107: 61.67 | K107: 61.4 | L107: 61.1 | M107: 15.976
A108: 99 | B108: IDFCBANK | C108: 43.1 | D108: 42.93 | E108: 42.37 | F108: 41.63 | G108: 41.07 | H108: 43.67 | I108: 44.23 | J108: 44.97 | K108: 43.5 | L108: 42.2 | M108: 162.797
A109: 100 | B109: IDFC | C109: 43.45 | D109: 43.03 | E109: 42.42 | F109: 41.38 | G109: 40.77 | H109: 44.07 | I109: 44.68 | J109: 45.72 | K109: 43.65 | L109: 42 | M109: 34.37635
A110: 101 | B110: IRB | C110: 160.6 | D110: 158.70 | E110: 156.15 | F110: 151.70 | G110: 149.15 | H110: 163.15 | I110: 165.70 | J110: 170.15 | K110: 161.25 | L110: 154.25 | M110: 21.52709
A111: 102 | B111: IDEA | C111: 37.25 | D111: 37.03 | E111: 36.57 | F111: 35.88 | G111: 35.42 | H111: 37.72 | I111: 38.18 | J111: 38.87 | K111: 37.5 | L111: 36.35 | M111: 169.22399
A112: 103 | B112: IBULHSGFIN | C112: 830.5 | D112: 818.80 | E112: 801.70 | F112: 772.90 | G112: 755.80 | H112: 847.60 | I112: 864.70 | J112: 893.50 | K112: 835.9 | L112: 790 | M112: 94.12362
A113: 104 | B113: INDIANB | C113: 240.15 | D113: 237.72 | E113: 234.18 | F113: 228.22 | G113: 224.68 | H113: 243.68 | I113: 247.22 | J113: 253.18 | K113: 241.25 | L113: 231.75 | M113: 10.2207
A114: 105 | B114: INDHOTEL | C114: 147.6 | D114: 147.07 | E114: 145.23 | F114: 142.87 | G114: 141.03 | H114: 149.43 | I114: 151.27 | J114: 153.63 | K114: 148.9 | L114: 144.7 | M114: 3.30011
A115: 106 | B115: IOC | C115: 134.65 | D115: 135.38 | E115: 133.57 | F115: 132.48 | G115: 130.67 | H115: 136.47 | I115: 138.28 | J115: 139.37 | K115: 137.2 | L115: 134.3 | M115: 185.64231
A116: 107 | B116: IGL | C116: 262.5 | D116: 261.68 | E116: 259.22 | F116: 255.93 | G116: 253.47 | H116: 264.97 | I116: 267.43 | J116: 270.72 | K116: 264.15 | L116: 258.4 | M116: 17.79257
A117: 108 | B117: INDUSINDBK | C117: 1556.45 | D117: 1547.23 | E117: 1529.52 | F117: 1502.58 | G117: 1484.87 | H117: 1574.17 | I117: 1591.88 | J117: 1618.82 | K117: 1564.95 | L117: 1520.3 | M117: 17.12424
A118: 109 | B118: NAUKRI | C118: 1516.8 | D118: 1528.32 | E118: 1489.83 | F118: 1462.87 | G118: 1424.38 | H118: 1555.28 | I118: 1593.77 | J118: 1620.73 | K118: 1566.8 | L118: 1501.35 | M118: 0.66909
A119: 110 | B119: INFY | C119: 644.05 | D119: 642.80 | E119: 638.60 | F119: 633.15 | G119: 628.95 | H119: 648.25 | I119: 652.45 | J119: 657.90 | K119: 647 | L119: 637.35 | M119: 61.78552
A120: 111 | B120: INDIGO | C120: 1156.25 | D120: 1157.60 | E120: 1141.20 | F120: 1126.15 | G120: 1109.75 | H120: 1172.65 | I120: 1189.05 | J120: 1204.10 | K120: 1174 | L120: 1142.55 | M120: 14.14688
A121: 112 | B121: IPCALAB | C121: 790.3 | D121: 790.43 | E121: 782.87 | F121: 775.43 | G121: 767.87 | H121: 797.87 | I121: 805.43 | J121: 812.87 | K121: 798 | L121: 783 | M121: 0.39108
A122: 113 | B122: JSWENERGY | C122: 67.6 | D122: 67.52 | E122: 66.68 | F122: 65.77 | G122: 64.93 | H122: 68.43 | I122: 69.27 | J122: 70.18 | K122: 68.35 | L122: 66.6 | M122: 4.91364
A123: 114 | B123: JSWSTEEL | C123: 296.3 | D123: 293.80 | E123: 290.60 | F123: 284.90 | G123: 281.70 | H123: 299.50 | I123: 302.70 | J123: 308.40 | K123: 297 | L123: 288.1 | M123: 56.4989
A124: 115 | B124: JINDALSTEL | C124: 162.3 | D124: 159.72 | E124: 156.08 | F124: 149.87 | G124: 146.23 | H124: 165.93 | I124: 169.57 | J124: 175.78 | K124: 163.35 | L124: 153.5 | M124: 114.17086
A125: 116 | B125: JUBLFOOD | C125: 1232.85 | D125: 1205.62 | E125: 1173.23 | F125: 1113.62 | G125: 1081.23 | H125: 1265.23 | I125: 1297.62 | J125: 1357.23 | K125: 1238 | L125: 1146 | M125: 95.68927
A126: 117 | B126: JUBILANT | C126: 712.1 | D126: 710.60 | E126: 702.50 | F126: 692.90 | G126: 684.80 | H126: 720.20 | I126: 728.30 | J126: 737.90 | K126: 718.7 | L126: 701 | M126: 1.95887
A127: 118 | B127: KARURVYSYA | C127: 85.55 | D127: 85.03 | E127: 84.22 | F127: 82.88 | G127: 82.07 | H127: 86.37 | I127: 87.18 | J127: 88.52 | K127: 85.85 | L127: 83.7 | M127: 3.82226
A128: 119 | B128: KOTAKBANK | C128: 1248.15 | D128: 1236.48 | E128: 1222.17 | F128: 1196.18 | G128: 1181.87 | H128: 1262.47 | I128: 1276.78 | J128: 1302.77 | K128: 1250.8 | L128: 1210.5 | M128: 23.79224
A129: 120 | B129: L&TFH | C129: 154.35 | D129: 153.23 | E129: 150.57 | F129: 146.78 | G129: 144.12 | H129: 157.02 | I129: 159.68 | J129: 163.47 | K129: 155.9 | L129: 149.45 | M129: 61.97173
A130: 121 | B130: LICHSGFIN | C130: 486.45 | D130: 480.00 | E130: 471.65 | F130: 456.85 | G130: 448.50 | H130: 494.80 | I130: 503.15 | J130: 517.95 | K130: 488.35 | L130: 465.2 | M130: 16.61893
A131: 122 | B131: LT | C131: 1422.65 | D131: 1412.98 | E131: 1393.97 | F131: 1365.28 | G131: 1346.27 | H131: 1441.67 | I131: 1460.68 | J131: 1489.37 | K131: 1432 | L131: 1384.3 | M131: 17.12084
A132: 123 | B132: LUPIN | C132: 833.2 | D132: 830.22 | E132: 820.03 | F132: 806.87 | G132: 796.68 | H132: 843.38 | I132: 853.57 | J132: 866.73 | K132: 840.4 | L132: 817.05 | M132: 14.41827
A133: 124 | B133: MRF | C133: 67319.65 | D133: 66642.63 | E133: 65782.27 | F133: 64244.88 | G133: 63384.52 | H133: 68180.02 | I133: 69040.38 | J133: 70577.77 | K133: 67503 | L133: 65105.25 | M133: 0.0992
A134: 125 | B134: MGL | C134: 874.8 | D134: 875.43 | E134: 864.52 | F134: 854.23 | G134: 843.32 | H134: 885.72 | I134: 896.63 | J134: 906.92 | K134: 886.35 | L134: 865.15 | M134: 2.2191
A135: 126 | B135: M&MFIN | C135: 473.7 | D135: 470.87 | E135: 462.38 | F135: 451.07 | G135: 442.58 | H135: 482.18 | I135: 490.67 | J135: 501.98 | K135: 479.35 | L135: 459.55 | M135: 20.63205
A136: 127 | B136: M&M | C136: 787.7 | D136: 784.40 | E136: 775.30 | F136: 762.90 | G136: 753.80 | H136: 796.80 | I136: 805.90 | J136: 818.30 | K136: 793.5 | L136: 772 | M136: 16.837
A137: 128 | B137: MANAPPURAM | C137: 90.9 | D137: 89.63 | E137: 87.77 | F137: 84.63 | G137: 82.77 | H137: 92.77 | I137: 94.63 | J137: 97.77 | K137: 91.5 | L137: 86.5 | M137: 28.23987
A138: 129 | B138: MRPL | C138: 75.4 | D138: 74.37 | E138: 72.83 | F138: 70.27 | G138: 68.73 | H138: 76.93 | I138: 78.47 | J138: 81.03 | K138: 75.9 | L138: 71.8 | M138: 19.81018
A139: 130 | B139: MARICO | C139: 367.75 | D139: 366.17 | E139: 362.23 | F139: 356.72 | G139: 352.78 | H139: 371.68 | I139: 375.62 | J139: 381.13 | K139: 370.1 | L139: 360.65 | M139: 12.25256
A140: 131 | B140: MARUTI | C140: 7569.1 | D140: 7523.70 | E140: 7447.40 | F140: 7325.70 | G140: 7249.40 | H140: 7645.40 | I140: 7721.70 | J140: 7843.40 | K140: 7600 | L140: 7402 | M140: 5.94156
A141: 132 | B141: MFSL | C141: 446.15 | D141: 439.72 | E141: 429.43 | F141: 412.72 | G141: 402.43 | H141: 456.43 | I141: 466.72 | J141: 483.43 | K141: 450 | L141: 423 | M141: 5.40968
A142: 133 | B142: MINDTREE | C142: 854.05 | D142: 843.97 | E142: 828.08 | F142: 802.12 | G142: 786.23 | H142: 869.93 | I142: 885.82 | J142: 911.78 | K142: 859.85 | L142: 818 | M142: 11.2886
A143: 134 | B143: MOTHERSUMI | C143: 163.65 | D143: 162.77 | E143: 159.73 | F143: 155.82 | G143: 152.78 | H143: 166.68 | I143: 169.72 | J143: 173.63 | K143: 165.8 | L143: 158.85 | M143: 50.71014
A144: 135 | B144: MPHASIS | C144: 1014.8 | D144: 1019.12 | E144: 1000.23 | F144: 985.67 | G144: 966.78 | H144: 1033.68 | I144: 1052.57 | J144: 1067.13 | K144: 1038 | L144: 1004.55 | M144: 5.37001
A145: 136 | B145: MUTHOOTFIN | C145: 499.45 | D145: 494.12 | E145: 483.73 | F145: 468.02 | G145: 457.63 | H145: 509.83 | I145: 520.22 | J145: 535.93 | K145: 504.5 | L145: 478.4 | M145: 15.77695
A146: 137 | B146: NATCOPHARM | C146: 675.95 | D146: 681.18 | E146: 664.47 | F146: 652.98 | G146: 636.27 | H146: 692.67 | I146: 709.38 | J146: 720.87 | K146: 697.9 | L146: 669.7 | M146: 1.84124
A147: 138 | B147: NBCC | C147: 54.6 | D147: 54.05 | E147: 52.90 | F147: 51.20 | G147: 50.05 | H147: 55.75 | I147: 56.90 | J147: 58.60 | K147: 55.2 | L147: 52.35 | M147: 131.41359
A148: 139 | B148: NHPC | C148: 26.1 | D148: 26.07 | E148: 25.88 | F148: 25.67 | G148: 25.48 | H148: 26.28 | I148: 26.47 | J148: 26.68 | K148: 26.25 | L148: 25.85 | M148: 62.31087
A149: 140 | B149: NMDC | C149: 94.8 | D149: 94.43 | E149: 93.27 | F149: 91.73 | G149: 90.57 | H149: 95.97 | I149: 97.13 | J149: 98.67 | K149: 95.6 | L149: 92.9 | M149: 26.69829
A150: 141 | B150: NTPC | C150: 145.55 | D150: 146.05 | E150: 143.75 | F150: 141.95 | G150: 139.65 | H150: 147.85 | I150: 150.15 | J150: 151.95 | K150: 148.35 | L150: 144.25 | M150: 86.31989
A151: 142 | B151: NATIONALUM | C151: 62.9 | D151: 62.40 | E151: 61.60 | F151: 60.30 | G151: 59.50 | H151: 63.70 | I151: 64.50 | J151: 65.80 | K151: 63.2 | L151: 61.1 | M151: 62.03571
A152: 143 | B152: OBEROIRLTY | C152: 446.8 | D152: 445.82 | E152: 437.23 | F152: 427.67 | G152: 419.08 | H152: 455.38 | I152: 463.97 | J152: 473.53 | K152: 454.4 | L152: 436.25 | M152: 0.71505
A153: 144 | B153: ONGC | C153: 146.6 | D153: 147.27 | E153: 145.08 | F153: 143.57 | G153: 141.38 | H153: 148.78 | I153: 150.97 | J153: 152.48 | K153: 149.45 | L153: 145.75 | M153: 92.47671
A154: 145 | B154: OIL | C154: 173.6 | D154: 174.07 | E154: 172.53 | F154: 171.47 | G154: 169.93 | H154: 175.13 | I154: 176.67 | J154: 177.73 | K154: 175.6 | L154: 173 | M154: 20.11515
A155: 146 | B155: OFSS | C155: 3562.3 | D155: 3582.03 | E155: 3512.17 | F155: 3462.03 | G155: 3392.17 | H155: 3632.17 | I155: 3702.03 | J155: 3752.17 | K155: 3651.9 | L155: 3531.9 | M155: 0.22296
A156: 147 | B156: PCJEWELLER | C156: 81.15 | D156: 81.05 | E156: 79.30 | F156: 77.45 | G156: 75.70 | H156: 82.90 | I156: 84.65 | J156: 86.50 | K156: 82.8 | L156: 79.2 | M156: 193.43977
A157: 148 | B157: PIIND | C157: 849.6 | D157: 846.13 | E157: 838.27 | F157: 826.93 | G157: 819.07 | H157: 857.47 | I157: 865.33 | J157: 876.67 | K157: 854 | L157: 834.8 | M157: 0.55006
A158: 149 | B158: PNBHOUSING | C158: 923.55 | D158: 930.38 | E158: 911.97 | F158: 900.38 | G158: 881.97 | H158: 941.97 | I158: 960.38 | J158: 971.97 | K158: 948.8 | L158: 918.8 | M158: 1.27245
A159: 150 | B159: PAGEIND | C159: 23609.25 | D159: 23606.77 | E159: 23213.58 | F159: 22817.92 | G159: 22424.73 | H159: 24002.43 | I159: 24395.62 | J159: 24791.28 | K159: 23999.95 | L159: 23211.1 | M159: 0.23295
A160: 151 | B160: PETRONET | C160: 222.6 | D160: 222.50 | E160: 220.20 | F160: 217.80 | G160: 215.50 | H160: 224.90 | I160: 227.20 | J160: 229.60 | K160: 224.8 | L160: 220.1 | M160: 13.94038
A161: 152 | B161: PIDILITIND | C161: 1104 | D161: 1101.68 | E161: 1089.37 | F161: 1074.73 | G161: 1062.42 | H161: 1116.32 | I161: 1128.63 | J161: 1143.27 | K161: 1114 | L161: 1087.05 | M161: 7.10367
A162: 153 | B162: PEL | C162: 2313 | D162: 2290.33 | E162: 2256.67 | F162: 2200.33 | G162: 2166.67 | H162: 2346.67 | I162: 2380.33 | J162: 2436.67 | K162: 2324 | L162: 2234 | M162: 5.85498
A163: 154 | B163: PFC | C163: 100 | D163: 99.70 | E163: 98.50 | F163: 97.00 | G163: 95.80 | H163: 101.20 | I163: 102.40 | J163: 103.90 | K163: 100.9 | L163: 98.2 | M163: 107.56178
A164: 155 | B164: POWERGRID | C164: 195.3 | D164: 194.32 | E164: 192.33 | F164: 189.37 | G164: 187.38 | H164: 197.28 | I164: 199.27 | J164: 202.23 | K164: 196.3 | L164: 191.35 | M164: 26.80899
A165: 156 | B165: PRESTIGE | C165: 205.35 | D165: 204.13 | E165: 200.32 | F165: 195.28 | G165: 191.47 | H165: 209.17 | I165: 212.98 | J165: 218.02 | K165: 207.95 | L165: 199.1 | M165: 0.83876
A166: 157 | B166: PGHH | C166: 9723.7 | D166: 9695.30 | E166: 9603.50 | F166: 9483.30 | G166: 9391.50 | H166: 9815.50 | I166: 9907.30 | J166: 10027.50 | K166: 9787.1 | L166: 9575.1 | M166: 0.01894
A167: 158 | B167: PNB | C167: 77.75 | D167: 76.92 | E167: 75.53 | F167: 73.32 | G167: 71.93 | H167: 79.13 | I167: 80.52 | J167: 82.73 | K167: 78.3 | L167: 74.7 | M167: 228.20304
A168: 159 | B168: RBLBANK | C168: 558.9 | D168: 558.05 | E168: 549.70 | F168: 540.50 | G168: 532.15 | H168: 567.25 | I168: 575.60 | J168: 584.80 | K168: 566.4 | L168: 548.85 | M168: 7.45347
A169: 160 | B169: RAJESHEXPO | C169: 572.1 | D169: 571.78 | E169: 568.57 | F169: 565.03 | G169: 561.82 | H169: 575.32 | I169: 578.53 | J169: 582.07 | K169: 575 | L169: 568.25 | M169: 1.71491
A170: 161 | B170: RELCAPITAL | C170: 212.05 | D170: 211.28 | E170: 207.57 | F170: 203.08 | G170: 199.37 | H170: 215.77 | I170: 219.48 | J170: 223.97 | K170: 215 | L170: 206.8 | M170: 57.86822
A171: 162 | B171: RCOM | C171: 14.3 | D171: 14.18 | E171: 13.92 | F171: 13.53 | G171: 13.27 | H171: 14.57 | I171: 14.83 | J171: 15.22 | K171: 14.45 | L171: 13.8 | M171: 870.89399
A172: 163 | B172: RELIANCE | C172: 1098.35 | D172: 1088.00 | E172: 1076.00 | F172: 1053.65 | G172: 1041.65 | H172: 1110.35 | I172: 1122.35 | J172: 1144.70 | K172: 1100 | L172: 1065.65 | M172: 72.10059
A173: 164 | B173: RELINFRA | C173: 303.4 | D173: 303.73 | E173: 300.07 | F173: 296.73 | G173: 293.07 | H173: 307.07 | I173: 310.73 | J173: 314.07 | K173: 307.4 | L173: 300.4 | M173: 35.19072
A174: 165 | B174: RPOWER | C174: 27.65 | D174: 27.42 | E174: 26.98 | F174: 26.32 | G174: 25.88 | H174: 28.08 | I174: 28.52 | J174: 29.18 | K174: 27.85 | L174: 26.75 | M174: 97.18982
A175: 166 | B175: RECLTD | C175: 115.7 | D175: 114.27 | E175: 112.23 | F175: 108.77 | G175: 106.73 | H175: 117.73 | I175: 119.77 | J175: 123.23 | K175: 116.3 | L175: 110.8 | M175: 132.71858
A176: 167 | B176: SRF | C176: 1967.3 | D176: 1954.10 | E176: 1919.20 | F176: 1871.10 | G176: 1836.20 | H176: 2002.20 | I176: 2037.10 | J176: 2085.20 | K176: 1989 | L176: 1906 | M176: 15.13999
A177: 168 | B177: SHREECEM | C177: 17074.45 | D177: 16903.02 | E177: 16527.03 | F177: 15979.62 | G177: 15603.63 | H177: 17450.43 | I177: 17826.42 | J177: 18373.83 | K177: 17279 | L177: 16355.6 | M177: 0.16252
A178: 169 | B178: SRTRANSFIN | C178: 1220.05 | D178: 1209.25 | E178: 1189.50 | F178: 1158.95 | G178: 1139.20 | H178: 1239.80 | I178: 1259.55 | J178: 1290.10 | K178: 1229 | L178: 1178.7 | M178: 11.67779
A179: 170 | B179: SIEMENS | C179: 1036.15 | D179: 1020.58 | E179: 996.17 | F179: 956.18 | G179: 931.77 | H179: 1060.57 | I179: 1084.98 | J179: 1124.97 | K179: 1045 | L179: 980.6 | M179: 21.18562
A180: 171 | B180: SBIN | C180: 294.15 | D180: 292.10 | E180: 289.20 | F180: 284.25 | G180: 281.35 | H180: 297.05 | I180: 299.95 | J180: 304.90 | K180: 295 | L180: 287.15 | M180: 126.84324
A181: 172 | B181: SAIL | C181: 52.55 | D181: 51.95 | E181: 51.15 | F181: 49.75 | G181: 48.95 | H181: 53.35 | I181: 54.15 | J181: 55.55 | K181: 52.75 | L181: 50.55 | M181: 203.34912
A182: 173 | B182: SPARC | C182: 199.4 | D182: 200.12 | E182: 197.53 | F182: 195.67 | G182: 193.08 | H182: 201.98 | I182: 204.57 | J182: 206.43 | K182: 202.7 | L182: 198.25 | M182: 2.79926
A183: 174 | B183: SUNPHARMA | C183: 413.65 | D183: 415.70 | E183: 407.95 | F183: 402.25 | G183: 394.50 | H183: 421.40 | I183: 429.15 | J183: 434.85 | K183: 423.45 | L183: 410 | M183: 84.06699
A184: 175 | B184: SUNTV | C184: 575.3 | D184: 569.77 | E184: 559.53 | F184: 543.77 | G184: 533.53 | H184: 585.53 | I184: 595.77 | J184: 611.53 | K184: 580 | L184: 554 | M184: 23.05953
A185: 176 | B185: SUZLON | C185: 5.45 | D185: 5.42 | E185: 5.28 | F185: 5.12 | G185: 4.98 | H185: 5.58 | I185: 5.72 | J185: 5.88 | K185: 5.55 | L185: 5.25 | M185: 206.96414
A186: 177 | B186: SYNDIBANK | C186: 37.85 | D186: 37.50 | E186: 36.90 | F186: 35.95 | G186: 35.35 | H186: 38.45 | I186: 39.05 | J186: 40.00 | K186: 38.1 | L186: 36.55 | M186: 42.4928
A187: 178 | B187: SYNGENE | C187: 560.75 | D187: 558.57 | E187: 552.23 | F187: 543.72 | G187: 537.38 | H187: 567.08 | I187: 573.42 | J187: 581.93 | K187: 564.9 | L187: 550.05 | M187: 0.11755
A188: 179 | B188: TV18BRDCST | C188: 36.2 | D188: 35.95 | E188: 35.50 | F188: 34.80 | G188: 34.35 | H188: 36.65 | I188: 37.10 | J188: 37.80 | K188: 36.4 | L188: 35.25 | M188: 33.12949
A189: 180 | B189: TVSMOTOR | C189: 558.8 | D189: 559.48 | E189: 552.02 | F189: 545.23 | G189: 537.77 | H189: 566.27 | I189: 573.73 | J189: 580.52 | K189: 566.95 | L189: 552.7 | M189: 10.57134
A190: 181 | B190: TATACHEM | C190: 701.25 | D190: 700.67 | E190: 687.33 | F190: 673.42 | G190: 660.08 | H190: 714.58 | I190: 727.92 | J190: 741.83 | K190: 714 | L190: 686.75 | M190: 4.61516
A191: 182 | B191: TATACOMM | C191: 510.4 | D191: 512.58 | E191: 503.62 | F191: 496.83 | G191: 487.87 | H191: 519.37 | I191: 528.33 | J191: 535.12 | K191: 521.55 | L191: 505.8 | M191: 3.92429
A192: 183 | B192: TCS | C192: 1889.2 | D192: 1893.75 | E192: 1865.70 | F192: 1842.20 | G192: 1814.15 | H192: 1917.25 | I192: 1945.30 | J192: 1968.80 | K192: 1921.8 | L192: 1870.25 | M192: 24.46614
A193: 184 | B193: TATAGLOBAL | C193: 218.55 | D193: 217.12 | E193: 213.83 | F193: 209.12 | G193: 205.83 | H193: 221.83 | I193: 225.12 | J193: 229.83 | K193: 220.4 | L193: 212.4 | M193: 15.98566
A194: 185 | B194: TATAMTRDVR | C194: 93.05 | D194: 92.85 | E194: 91.75 | F194: 90.45 | G194: 89.35 | H194: 94.15 | I194: 95.25 | J194: 96.55 | K194: 93.95 | L194: 91.55 | M194: 25.09687
A195: 186 | B195: TATAMOTORS | C195: 170.9 | D195: 170.23 | E195: 168.27 | F195: 165.63 | G195: 163.67 | H195: 172.87 | I195: 174.83 | J195: 177.47 | K195: 172.2 | L195: 167.6 | M195: 120.44191
A196: 187 | B196: TATAPOWER | C196: 75.95 | D196: 75.83 | E196: 74.97 | F196: 73.98 | G196: 73.12 | H196: 76.82 | I196: 77.68 | J196: 78.67 | K196: 76.7 | L196: 74.85 | M196: 40.17872
A197: 188 | B197: TATASTEEL | C197: 513.45 | D197: 511.72 | E197: 506.13 | F197: 498.82 | G197: 493.23 | H197: 519.03 | I197: 524.62 | J197: 531.93 | K197: 517.3 | L197: 504.4 | M197: 49.53741
A198: 189 | B198: TECHM | C198: 693.55 | D198: 692.48 | E198: 687.07 | F198: 680.58 | G198: 675.17 | H198: 698.97 | I198: 704.38 | J198: 710.87 | K198: 697.9 | L198: 686 | M198: 18.81689
A199: 190 | B199: RAMCOCEM | C199: 620.5 | D199: 618.27 | E199: 610.53 | F199: 600.57 | G199: 592.83 | H199: 628.23 | I199: 635.97 | J199: 645.93 | K199: 626 | L199: 608.3 | M199: 1.72105
A200: 191 | B200: TITAN | C200: 889.15 | D200: 885.78 | E200: 871.57 | F200: 853.98 | G200: 839.77 | H200: 903.37 | I200: 917.58 | J200: 935.17 | K200: 900 | L200: 868.2 | M200: 38.40772
A201: 192 | B201: TORNTPHARM | C201: 1753.25 | D201: 1746.40 | E201: 1724.85 | F201: 1696.45 | G201: 1674.90 | H201: 1774.80 | I201: 1796.35 | J201: 1824.75 | K201: 1767.95 | L201: 1718 | M201: 1.31513
A202: 193 | B202: TORNTPOWER | C202: 255.85 | D202: 256.02 | E202: 252.18 | F202: 248.52 | G202: 244.68 | H202: 259.68 | I202: 263.52 | J202: 267.18 | K202: 259.85 | L202: 252.35 | M202: 7.89883
A203: 194 | B203: UPL | C203: 750.2 | D203: 743.37 | E203: 734.83 | F203: 719.47 | G203: 710.93 | H203: 758.73 | I203: 767.27 | J203: 782.63 | K203: 751.9 | L203: 728 | M203: 19.95314
A204: 195 | B204: ULTRACEMCO | C204: 3996.1 | D204: 3953.72 | E204: 3899.43 | F204: 3802.77 | G204: 3748.48 | H204: 4050.38 | I204: 4104.67 | J204: 4201.33 | K204: 4008 | L204: 3857.05 | M204: 2.24353
A205: 196 | B205: UNIONBANK | C205: 83.5 | D205: 82.50 | E205: 81.00 | F205: 78.50 | G205: 77.00 | H205: 85.00 | I205: 86.50 | J205: 89.00 | K205: 84 | L205: 80 | M205: 85.20193
... 29 more rows

Sheet MidCap Intra
L5: Back To Main Page
A6: FOR INTRA DAY TRADING | K6: =Main!B10 -> 2018-12-27
A9: Sr.no | B9: Scrip | C9: CLOSE RATE | D9: Pivot Point | E9: Supports | H9: Resistances
C10: Point | E10: S1 | F10: S2 | G10: S3 | H10: R1 | I10: R2 | J10: R3 | K10: HIGH | L10: LOW | M10: Total Trade Quanity in Lakhs
A11: 1 | B11: 3MINDIA | C11: 20597.55 | D11: 20347.18 | E11: 19894.37 | F11: 19191.18 | G11: 18738.37 | H11: 21050.37 | I11: 21503.18 | J11: 22206.37 | K11: 20800 | L11: 19644 | M11: 0.18652
A12: 2 | B12: 8KMILES | C12: 145.4 | D12: 148.42 | E12: 141.73 | F12: 138.07 | G12: 131.38 | H12: 152.08 | I12: 158.77 | J12: 162.43 | K12: 155.1 | L12: 144.75 | M12: 4.5691
A13: 3 | B13: AARTIIND | C13: 1427.25 | D13: 1423.52 | E13: 1402.33 | F13: 1377.42 | G13: 1356.23 | H13: 1448.43 | I13: 1469.62 | J13: 1494.53 | K13: 1444.7 | L13: 1398.6 | M13: 0.50102
A14: 4 | B14: ABAN | C14: 73.2 | D14: 72.75 | E14: 71.75 | F14: 70.30 | G14: 69.30 | H14: 74.20 | I14: 75.20 | J14: 76.65 | K14: 73.75 | L14: 71.3 | M14: 3.51311
A15: 5 | B15: ABB | C15: 1295.3 | D15: 1299.43 | E15: 1280.87 | F15: 1266.43 | G15: 1247.87 | H15: 1313.87 | I15: 1332.43 | J15: 1346.87 | K15: 1318 | L15: 1285 | M15: 1.25511
A16: 6 | B16: ABCAPITAL | C16: 97.1 | D16: 96.83 | E16: 95.92 | F16: 94.73 | G16: 93.82 | H16: 98.02 | I16: 98.93 | J16: 100.12 | K16: 97.75 | L16: 95.65 | M16: 12.99891
A17: 7 | B17: ABFRL | C17: 205.9 | D17: 206.05 | E17: 201.50 | F17: 197.10 | G17: 192.55 | H17: 210.45 | I17: 215.00 | J17: 219.40 | K17: 210.6 | L17: 201.65 | M17: 7.23425
A18: 8 | B18: ACC | C18: 1479.4 | D18: 1462.17 | E18: 1438.33 | F18: 1397.27 | G18: 1373.43 | H18: 1503.23 | I18: 1527.07 | J18: 1568.13 | K18: 1486 | L18: 1421.1 | M18: 5.97239
A19: 9 | B19: ADANIPORTS | C19: 376.55 | D19: 370.85 | E19: 363.20 | F19: 349.85 | G19: 342.20 | H19: 384.20 | I19: 391.85 | J19: 405.20 | K19: 378.5 | L19: 357.5 | M19: 45.1902
A20: 10 | B20: ADANIPOWER | C20: 50.85 | D20: 50.75 | E20: 49.60 | F20: 48.35 | G20: 47.20 | H20: 52.00 | I20: 53.15 | J20: 54.40 | K20: 51.9 | L20: 49.5 | M20: 123.24109
A21: 11 | B21: ADANITRANS | C21: 198.2 | D21: 200.60 | E21: 193.20 | F21: 188.20 | G21: 180.80 | H21: 205.60 | I21: 213.00 | J21: 218.00 | K21: 208 | L21: 195.6 | M21: 4.01682
A22: 12 | B22: ADVENZYMES | C22: 177.3 | D22: 177.92 | E22: 174.83 | F22: 172.37 | G22: 169.28 | H22: 180.38 | I22: 183.47 | J22: 185.93 | K22: 181 | L22: 175.45 | M22: 0.3186
A23: 13 | B23: AEGISCHEM | C23: 194.4 | D23: 191.45 | E23: 188.00 | F23: 181.60 | G23: 178.15 | H23: 197.85 | I23: 201.30 | J23: 207.70 | K23: 194.9 | L23: 185.05 | M23: 0.94947
A24: 14 | B24: AIAENG | C24: 1637.55 | D24: 1621.88 | E24: 1593.77 | F24: 1549.98 | G24: 1521.87 | H24: 1665.67 | I24: 1693.78 | J24: 1737.57 | K24: 1650 | L24: 1578.1 | M24: 0.17285
A25: 15 | B25: AJANTPHARM | C25: 1128.55 | D25: 1124.82 | E25: 1110.28 | F25: 1092.02 | G25: 1077.48 | H25: 1143.08 | I25: 1157.62 | J25: 1175.88 | K25: 1139.35 | L25: 1106.55 | M25: 2.26562
A26: 16 | B26: AKZOINDIA | C26: 1610.4 | D26: 1602.32 | E26: 1588.08 | F26: 1565.77 | G26: 1551.53 | H26: 1624.63 | I26: 1638.87 | J26: 1661.18 | K26: 1616.55 | L26: 1580 | M26: 0.02277
A27: 17 | B27: ALBK | C27: 46.05 | D27: 45.50 | E27: 44.55 | F27: 43.05 | G27: 42.10 | H27: 47.00 | I27: 47.95 | J27: 49.45 | K27: 46.45 | L27: 44 | M27: 64.58966
A28: 18 | B28: ALKEM | C28: 1874.55 | D28: 1866.18 | E28: 1848.37 | F28: 1822.18 | G28: 1804.37 | H28: 1892.37 | I28: 1910.18 | J28: 1936.37 | K28: 1884 | L28: 1840 | M28: 0.16728
A29: 19 | B29: ALLCARGO | C29: 107.5 | D29: 106.35 | E29: 104.75 | F29: 102.00 | G29: 100.40 | H29: 109.10 | I29: 110.70 | J29: 113.45 | K29: 107.95 | L29: 103.6 | M29: 1.15035
A30: 20 | B30: AMARAJABAT | C30: 731.8 | D30: 734.65 | E30: 725.10 | F30: 718.40 | G30: 708.85 | H30: 741.35 | I30: 750.90 | J30: 757.60 | K30: 744.2 | L30: 727.95 | M30: 5.04209
A31: 21 | B31: AMBUJACEM | C31: 221.1 | D31: 217.67 | E31: 213.33 | F31: 205.57 | G31: 201.23 | H31: 225.43 | I31: 229.77 | J31: 237.53 | K31: 222 | L31: 209.9 | M31: 33.03641
A32: 22 | B32: ANDHRABANK | C32: 29.25 | D32: 29.10 | E32: 28.80 | F32: 28.35 | G32: 28.05 | H32: 29.55 | I32: 29.85 | J32: 30.30 | K32: 29.4 | L32: 28.65 | M32: 5.89194
A33: 23 | B33: APLAPOLLO | C33: 1102.25 | D33: 1114.12 | E33: 1088.23 | F33: 1074.22 | G33: 1048.33 | H33: 1128.13 | I33: 1154.02 | J33: 1168.03 | K33: 1140 | L33: 1100.1 | M33: 0.57316
A34: 24 | B34: APLLTD | C34: 564.55 | D34: 567.70 | E34: 557.40 | F34: 550.25 | G34: 539.95 | H34: 574.85 | I34: 585.15 | J34: 592.30 | K34: 578 | L34: 560.55 | M34: 0.23365
A35: 25 | B35: APOLLOHOSP | C35: 1264.15 | D35: 1258.67 | E35: 1243.33 | F35: 1222.52 | G35: 1207.18 | H35: 1279.48 | I35: 1294.82 | J35: 1315.63 | K35: 1274 | L35: 1237.85 | M35: 2.75494
A36: 26 | B36: APOLLOTYRE | C36: 233.35 | D36: 231.40 | E36: 227.55 | F36: 221.75 | G36: 217.90 | H36: 237.20 | I36: 241.05 | J36: 246.85 | K36: 235.25 | L36: 225.6 | M36: 24.17738
A37: 27 | B37: ARVIND | C37: 97.1 | D37: 97.20 | E37: 95.40 | F37: 93.70 | G37: 91.90 | H37: 98.90 | I37: 100.70 | J37: 102.40 | K37: 99 | L37: 95.5 | M37: 28.01614
A38: 28 | B38: ASAHIINDIA | C38: 243.2 | D38: 243.72 | E38: 239.48 | F38: 235.77 | G38: 231.53 | H38: 247.43 | I38: 251.67 | J38: 255.38 | K38: 247.95 | L38: 240 | M38: 0.0802
A39: 29 | B39: ASHOKA | C39: 122.95 | D39: 123.65 | E39: 121.30 | F39: 119.65 | G39: 117.30 | H39: 125.30 | I39: 127.65 | J39: 129.30 | K39: 126 | L39: 122 | M39: 0.58158
A40: 30 | B40: ASHOKLEY | C40: 103.9 | D40: 103.40 | E40: 102.50 | F40: 101.10 | G40: 100.20 | H40: 104.80 | I40: 105.70 | J40: 107.10 | K40: 104.3 | L40: 102 | M40: 105.59085
A41: 31 | B41: ASIANPAINT | C41: 1363 | D41: 1361.77 | E41: 1348.63 | F41: 1334.27 | G41: 1321.13 | H41: 1376.13 | I41: 1389.27 | J41: 1403.63 | K41: 1374.9 | L41: 1347.4 | M41: 17.90087
A42: 32 | B42: ASTRAL | C42: 1079.6 | D42: 1073.98 | E42: 1044.12 | F42: 1008.63 | G42: 978.77 | H42: 1109.47 | I42: 1139.33 | J42: 1174.82 | K42: 1103.85 | L42: 1038.5 | M42: 1.1917
A43: 33 | B43: ATUL | C43: 3434.75 | D43: 3403.92 | E43: 3356.83 | F43: 3278.92 | G43: 3231.83 | H43: 3481.83 | I43: 3528.92 | J43: 3606.83 | K43: 3451 | L43: 3326 | M43: 0.06085
A44: 34 | B44: AUBANK | C44: 592.05 | D44: 592.80 | E44: 581.75 | F44: 571.45 | G44: 560.40 | H44: 603.10 | I44: 614.15 | J44: 624.45 | K44: 603.85 | L44: 582.5 | M44: 2.9456
A45: 35 | B45: AUROPHARMA | C45: 718.5 | D45: 712.12 | E45: 703.48 | F45: 688.47 | G45: 679.83 | H45: 727.13 | I45: 735.77 | J45: 750.78 | K45: 720.75 | L45: 697.1 | M45: 30.96253
A46: 36 | B46: AVANTIFEED | C46: 379.2 | D46: 377.08 | E46: 370.27 | F46: 361.33 | G46: 354.52 | H46: 386.02 | I46: 392.83 | J46: 401.77 | K46: 383.9 | L46: 368.15 | M46: 3.3783
A47: 37 | B47: AXISBANK | C47: 619.5 | D47: 615.53 | E47: 607.42 | F47: 595.33 | G47: 587.22 | H47: 627.62 | I47: 635.73 | J47: 647.82 | K47: 623.65 | L47: 603.45 | M47: 65.19211
A48: 38 | B48: BAJAJ-AUTO | C48: 2734.6 | D48: 2718.13 | E48: 2686.47 | F48: 2638.33 | G48: 2606.67 | H48: 2766.27 | I48: 2797.93 | J48: 2846.07 | K48: 2749.8 | L48: 2670 | M48: 4.10582
A49: 39 | B49: BAJAJCORP | C49: 361.9 | D49: 359.80 | E49: 355.60 | F49: 349.30 | G49: 345.10 | H49: 366.10 | I49: 370.30 | J49: 376.60 | K49: 364 | L49: 353.5 | M49: 0.12612
A50: 40 | B50: BAJAJELEC | C50: 495.4 | D50: 495.32 | E50: 488.08 | F50: 480.77 | G50: 473.53 | H50: 502.63 | I50: 509.87 | J50: 517.18 | K50: 502.55 | L50: 488 | M50: 0.93936
A51: 41 | B51: BAJAJFINSV | C51: 6439.05 | D51: 6351.35 | E51: 6237.70 | F51: 6036.35 | G51: 5922.70 | H51: 6552.70 | I51: 6666.35 | J51: 6867.70 | K51: 6465 | L51: 6150 | M51: 2.7261
A52: 42 | B52: BAJAJHIND | C52: 8.7 | D52: 8.73 | E52: 8.57 | F52: 8.43 | G52: 8.27 | H52: 8.87 | I52: 9.03 | J52: 9.17 | K52: 8.9 | L52: 8.6 | M52: 20.53121
A53: 43 | B53: BAJAJHLDNG | C53: 2859.45 | D53: 2840.67 | E53: 2757.48 | F53: 2655.52 | G53: 2572.33 | H53: 2942.63 | I53: 3025.82 | J53: 3127.78 | K53: 2923.85 | L53: 2738.7 | M53: 1.16124
A54: 44 | B54: BAJFINANCE | C54: 2567.4 | D54: 2551.35 | E54: 2519.75 | F54: 2472.10 | G54: 2440.50 | H54: 2599.00 | I54: 2630.60 | J54: 2678.25 | K54: 2582.95 | L54: 2503.7 | M54: 16.62068
A55: 45 | B55: BALKRISIND | C55: 907.6 | D55: 904.32 | E55: 893.63 | F55: 879.67 | G55: 868.98 | H55: 918.28 | I55: 928.97 | J55: 942.93 | K55: 915 | L55: 890.35 | M55: 4.14195
A56: 46 | B56: BALLARPUR | C56: 5.5 | D56: 5.45 | E56: 5.35 | F56: 5.20 | G56: 5.10 | H56: 5.60 | I56: 5.70 | J56: 5.85 | K56: 5.55 | L56: 5.3 | M56: 2.10444
A57: 47 | B57: BALMLAWRIE | C57: 202.8 | D57: 200.10 | E57: 196.20 | F57: 189.60 | G57: 185.70 | H57: 206.70 | I57: 210.60 | J57: 217.20 | K57: 204 | L57: 193.5 | M57: 0.87731
A58: 48 | B58: BALRAMCHIN | C58: 101.35 | D58: 101.15 | E58: 99.60 | F58: 97.85 | G58: 96.30 | H58: 102.90 | I58: 104.45 | J58: 106.20 | K58: 102.7 | L58: 99.4 | M58: 12.98716
A59: 49 | B59: BANKBARODA | C59: 117.7 | D59: 116.50 | E59: 114.10 | F59: 110.50 | G59: 108.10 | H59: 120.10 | I59: 122.50 | J59: 126.10 | K59: 118.9 | L59: 112.9 | M59: 138.05517
A60: 50 | B60: BANKINDIA | C60: 100.65 | D60: 99.75 | E60: 97.95 | F60: 95.25 | G60: 93.45 | H60: 102.45 | I60: 104.25 | J60: 106.95 | K60: 101.55 | L60: 97.05 | M60: 170.19629
A61: 51 | B61: BASF | C61: 1585.4 | D61: 1579.82 | E61: 1556.73 | F61: 1528.07 | G61: 1504.98 | H61: 1608.48 | I61: 1631.57 | J61: 1660.23 | K61: 1602.9 | L61: 1551.15 | M61: 0.07021
A62: 52 | B62: BATAINDIA | C62: 1096.65 | D62: 1093.27 | E62: 1078.63 | F62: 1060.62 | G62: 1045.98 | H62: 1111.28 | I62: 1125.92 | J62: 1143.93 | K62: 1107.9 | L62: 1075.25 | M62: 6.65666
A63: 53 | B63: BBTC | C63: 1266.2 | D63: 1263.52 | E63: 1240.68 | F63: 1215.17 | G63: 1192.33 | H63: 1289.03 | I63: 1311.87 | J63: 1337.38 | K63: 1286.35 | L63: 1238 | M63: 0.60487
A64: 54 | B64: BEL | C64: 88.7 | D64: 87.82 | E64: 86.13 | F64: 83.57 | G64: 81.88 | H64: 90.38 | I64: 92.07 | J64: 94.63 | K64: 89.5 | L64: 85.25 | M64: 126.11262
A65: 55 | B65: BEML | C65: 899.8 | D65: 885.77 | E65: 866.53 | F65: 833.27 | G65: 814.03 | H65: 919.03 | I65: 938.27 | J65: 971.53 | K65: 905 | L65: 852.5 | M65: 60.26948
A66: 56 | B66: BERGEPAINT | C66: 328.3 | D66: 327.13 | E66: 321.27 | F66: 314.23 | G66: 308.37 | H66: 334.17 | I66: 340.03 | J66: 347.07 | K66: 333 | L66: 320.1 | M66: 9.90882
A67: 57 | B67: BFUTILITIE | C67: 207.9 | D67: 205.52 | E67: 198.43 | F67: 188.97 | G67: 181.88 | H67: 214.98 | I67: 222.07 | J67: 231.53 | K67: 212.6 | L67: 196.05 | M67: 6.31362
A68: 58 | B68: BGRENERGY | C68: 59.85 | D68: 59.43 | E68: 58.67 | F68: 57.48 | G68: 56.72 | H68: 60.62 | I68: 61.38 | J68: 62.57 | K68: 60.2 | L68: 58.25 | M68: 0.48245
A69: 59 | B69: BHARATFIN | C69: 990.7 | D69: 983.10 | E69: 965.20 | F69: 939.70 | G69: 921.80 | H69: 1008.60 | I69: 1026.50 | J69: 1052.00 | K69: 1001 | L69: 957.6 | M69: 7.03858
A70: 60 | B70: BHARATFORG | C70: 505.45 | D70: 502.72 | E70: 496.93 | F70: 488.42 | G70: 482.63 | H70: 511.23 | I70: 517.02 | J70: 525.53 | K70: 508.5 | L70: 494.2 | M70: 11.42633
A71: 61 | B71: BHARTIARTL | C71: 320.45 | D71: 315.35 | E71: 307.70 | F71: 294.95 | G71: 287.30 | H71: 328.10 | I71: 335.75 | J71: 348.50 | K71: 323 | L71: 302.6 | M71: 75.4097
A72: 62 | B72: BHEL | C72: 71.55 | D72: 70.88 | E72: 69.92 | F72: 68.28 | G72: 67.32 | H72: 72.52 | I72: 73.48 | J72: 75.12 | K72: 71.85 | L72: 69.25 | M72: 135.78782
A73: 63 | B73: BIOCON | C73: 614.7 | D73: 610.90 | E73: 604.80 | F73: 594.90 | G73: 588.80 | H73: 620.80 | I73: 626.90 | J73: 636.80 | K73: 617 | L73: 601 | M73: 12.66619
A74: 64 | B74: BIRLACORPN | C74: 612.7 | D74: 608.18 | E74: 598.17 | F74: 583.63 | G74: 573.62 | H74: 622.72 | I74: 632.73 | J74: 647.27 | K74: 618.2 | L74: 593.65 | M74: 0.32115
A75: 65 | B75: BLISSGVS | C75: 137.95 | D75: 138.07 | E75: 134.88 | F75: 131.82 | G75: 128.63 | H75: 141.13 | I75: 144.32 | J75: 147.38 | K75: 141.25 | L75: 135 | M75: 6.0818
A76: 66 | B76: BLUEDART | C76: 3176.5 | D76: 3138.45 | E76: 3063.55 | F76: 2950.60 | G76: 2875.70 | H76: 3251.40 | I76: 3326.30 | J76: 3439.25 | K76: 3213.35 | L76: 3025.5 | M76: 0.04722
A77: 67 | B77: BLUESTARCO | C77: 610.4 | D77: 615.98 | E77: 600.52 | F77: 590.63 | G77: 575.17 | H77: 625.87 | I77: 641.33 | J77: 651.22 | K77: 631.45 | L77: 606.1 | M77: 0.13747
A78: 68 | B78: BOMDYEING | C78: 110.1 | D78: 108.93 | E78: 105.37 | F78: 100.63 | G78: 97.07 | H78: 113.67 | I78: 117.23 | J78: 121.97 | K78: 112.5 | L78: 104.2 | M78: 10.45706
A79: 69 | B79: BOSCHLTD | C79: 19526.55 | D79: 19445.77 | E79: 19251.53 | F79: 18976.52 | G79: 18782.28 | H79: 19720.78 | I79: 19915.02 | J79: 20190.03 | K79: 19640 | L79: 19170.75 | M79: 0.10735
A80: 70 | B80: BPCL | C80: 366.35 | D80: 365.28 | E80: 359.27 | F80: 352.18 | G80: 346.17 | H80: 372.37 | I80: 378.38 | J80: 385.47 | K80: 371.3 | L80: 358.2 | M80: 64.77931
A81: 71 | B81: BRFL | C81: 9.2 | D81: 9.45 | E81: 8.90 | F81: 8.60 | G81: 8.05 | H81: 9.75 | I81: 10.30 | J81: 10.60 | K81: 10 | L81: 9.15 | M81: 1.69412
A82: 72 | B82: BRIGADE | C82: 236 | D82: 231.00 | E82: 217.15 | F82: 198.30 | G82: 184.45 | H82: 249.85 | I82: 263.70 | J82: 282.55 | K82: 244.85 | L82: 212.15 | M82: 18.1144
A83: 73 | B83: BRITANNIA | C83: 3088.95 | D83: 3081.32 | E83: 3048.63 | F83: 3008.32 | G83: 2975.63 | H83: 3121.63 | I83: 3154.32 | J83: 3194.63 | K83: 3114 | L83: 3041 | M83: 1.59442
A84: 74 | B84: BSE | C84: 586.6 | D84: 583.38 | E84: 576.77 | F84: 566.93 | G84: 560.32 | H84: 593.22 | I84: 599.83 | J84: 609.67 | K84: 590 | L84: 573.55 | M84: 1.12639
A85: 75 | B85: CADILAHC | C85: 339.4 | D85: 339.32 | E85: 336.28 | F85: 333.17 | G85: 330.13 | H85: 342.43 | I85: 345.47 | J85: 348.58 | K85: 342.35 | L85: 336.2 | M85: 5.22052
A86: 77 | B86: CANBK | C86: 270.9 | D86: 268.03 | E86: 262.52 | F86: 254.13 | G86: 248.62 | H86: 276.42 | I86: 281.93 | J86: 290.32 | K86: 273.55 | L86: 259.65 | M86: 47.15909
A87: 78 | B87: CANFINHOME | C87: 288.95 | D87: 283.15 | E87: 273.80 | F87: 258.65 | G87: 249.30 | H87: 298.30 | I87: 307.65 | J87: 322.80 | K87: 292.5 | L87: 268 | M87: 21.40115
A88: 79 | B88: CAPF | C88: 592.45 | D88: 589.93 | E88: 582.52 | F88: 572.58 | G88: 565.17 | H88: 599.87 | I88: 607.28 | J88: 617.22 | K88: 597.35 | L88: 580 | M88: 16.26028
A89: 80 | B89: CAPLIPOINT | C89: 380.3 | D89: 380.97 | E89: 378.43 | F89: 376.57 | G89: 374.03 | H89: 382.83 | I89: 385.37 | J89: 387.23 | K89: 383.5 | L89: 379.1 | M89: 0.11185
A90: 81 | B90: CARBORUNIV | C90: 348.3 | D90: 350.58 | E90: 344.67 | F90: 341.03 | G90: 335.12 | H90: 354.22 | I90: 360.13 | J90: 363.77 | K90: 356.5 | L90: 346.95 | M90: 0.54101
A91: 82 | B91: CARERATING | C91: 969.35 | D91: 964.85 | E91: 955.30 | F91: 941.25 | G91: 931.70 | H91: 978.90 | I91: 988.45 | J91: 1002.50 | K91: 974.4 | L91: 950.8 | M91: 0.57188
A92: 83 | B92: CASTROLIND | C92: 152.35 | D92: 152.05 | E92: 150.30 | F92: 148.25 | G92: 146.50 | H92: 154.10 | I92: 155.85 | J92: 157.90 | K92: 153.8 | L92: 150 | M92: 13.17088
A93: 84 | B93: CCL | C93: 271.7 | D93: 272.22 | E93: 269.53 | F93: 267.37 | G93: 264.68 | H93: 274.38 | I93: 277.07 | J93: 279.23 | K93: 274.9 | L93: 270.05 | M93: 0.20255
A94: 85 | B94: CDSL | C94: 224.65 | D94: 223.95 | E94: 221.40 | F94: 218.15 | G94: 215.60 | H94: 227.20 | I94: 229.75 | J94: 233.00 | K94: 226.5 | L94: 220.7 | M94: 2.44572
A95: 86 | B95: CEATLTD | C95: 1264.7 | D95: 1253.50 | E95: 1231.20 | F95: 1197.70 | G95: 1175.40 | H95: 1287.00 | I95: 1309.30 | J95: 1342.80 | K95: 1275.8 | L95: 1220 | M95: 11.18942
A96: 87 | B96: CENTRALBK | C96: 34.1 | D96: 33.75 | E96: 32.35 | F96: 30.60 | G96: 29.20 | H96: 35.50 | I96: 36.90 | J96: 38.65 | K96: 35.15 | L96: 32 | M96: 5.55727
A97: 88 | B97: CENTURYPLY | C97: 171.7 | D97: 171.88 | E97: 169.82 | F97: 167.93 | G97: 165.87 | H97: 173.77 | I97: 175.83 | J97: 177.72 | K97: 173.95 | L97: 170 | M97: 1.65729
A98: 89 | B98: CENTURYTEX | C98: 896.6 | D98: 891.98 | E98: 876.97 | F98: 857.33 | G98: 842.32 | H98: 911.62 | I98: 926.63 | J98: 946.27 | K98: 907 | L98: 872.35 | M98: 7.34872
A99: 90 | B99: CERA | C99: 2376.75 | D99: 2380.60 | E99: 2356.20 | F99: 2335.65 | G99: 2311.25 | H99: 2401.15 | I99: 2425.55 | J99: 2446.10 | K99: 2405 | L99: 2360.05 | M99: 0.02715
A100: 91 | B100: CGPOWER | C100: 44.1 | D100: 43.58 | E100: 42.57 | F100: 41.03 | G100: 40.02 | H100: 45.12 | I100: 46.13 | J100: 47.67 | K100: 44.6 | L100: 42.05 | M100: 102.42729
A101: 92 | B101: CHAMBLFERT | C101: 140.85 | D101: 141.45 | E101: 139.70 | F101: 138.55 | G101: 136.80 | H101: 142.60 | I101: 144.35 | J101: 145.50 | K101: 143.2 | L101: 140.3 | M101: 2.83219
A102: 93 | B102: CHENNPETRO | C102: 280.7 | D102: 281.53 | E102: 274.72 | F102: 268.73 | G102: 261.92 | H102: 287.52 | I102: 294.33 | J102: 300.32 | K102: 288.35 | L102: 275.55 | M102: 14.56982
A103: 94 | B103: CHOLAFIN | C103: 1222.8 | D103: 1203.58 | E103: 1178.12 | F103: 1133.43 | G103: 1107.97 | H103: 1248.27 | I103: 1273.73 | J103: 1318.42 | K103: 1229.05 | L103: 1158.9 | M103: 7.09282
A104: 95 | B104: CIPLA | C104: 514.3 | D104: 513.53 | E104: 508.07 | F104: 501.83 | G104: 496.37 | H104: 519.77 | I104: 525.23 | J104: 531.47 | K104: 519 | L104: 507.3 | M104: 13.1856
A105: 96 | B105: COALINDIA | C105: 247.05 | D105: 247.82 | E105: 245.23 | F105: 243.42 | G105: 240.83 | H105: 249.63 | I105: 252.22 | J105: 254.03 | K105: 250.4 | L105: 246 | M105: 50.69728
A106: 97 | B106: COCHINSHIP | C106: 377.3 | D106: 377.60 | E106: 375.20 | F106: 373.10 | G106: 370.70 | H106: 379.70 | I106: 382.10 | J106: 384.20 | K106: 380 | L106: 375.5 | M106: 0.26294
A107: 98 | B107: COFFEEDAY | C107: 271.45 | D107: 269.80 | E107: 266.65 | F107: 261.85 | G107: 258.70 | H107: 274.60 | I107: 277.75 | J107: 282.55 | K107: 272.95 | L107: 265 | M107: 0.82074
A108: 99 | B108: COLPAL | C108: 1302.15 | D108: 1303.72 | E108: 1291.48 | F108: 1280.82 | G108: 1268.58 | H108: 1314.38 | I108: 1326.62 | J108: 1337.28 | K108: 1315.95 | L108: 1293.05 | M108: 5.22671
A109: 100 | B109: CONCOR | C109: 652.6 | D109: 648.48 | E109: 640.22 | F109: 627.83 | G109: 619.57 | H109: 660.87 | I109: 669.13 | J109: 681.52 | K109: 656.75 | L109: 636.1 | M109: 6.49225
A110: 101 | B110: COROMANDEL | C110: 445.45 | D110: 441.80 | E110: 430.60 | F110: 415.75 | G110: 404.55 | H110: 456.65 | I110: 467.85 | J110: 482.70 | K110: 453 | L110: 426.95 | M110: 1.40745
A111: 102 | B111: COX&KINGS | C111: 159.55 | D111: 160.45 | E111: 157.50 | F111: 155.45 | G111: 152.50 | H111: 162.50 | I111: 165.45 | J111: 167.50 | K111: 163.4 | L111: 158.4 | M111: 0.63674
A112: 103 | B112: CRISIL | C112: 1619.1 | D112: 1602.38 | E112: 1564.77 | F112: 1510.43 | G112: 1472.82 | H112: 1656.72 | I112: 1694.33 | J112: 1748.67 | K112: 1640 | L112: 1548.05 | M112: 0.03954
A113: 104 | B113: CROMPTON | C113: 227.2 | D113: 225.28 | E113: 220.02 | F113: 212.83 | G113: 207.57 | H113: 232.47 | I113: 237.73 | J113: 244.92 | K113: 230.55 | L113: 218.1 | M113: 5.05954
A114: 105 | B114: CUB | C114: 185 | D114: 185.00 | E114: 182.60 | F114: 180.20 | G114: 177.80 | H114: 187.40 | I114: 189.80 | J114: 192.20 | K114: 187.4 | L114: 182.6 | M114: 6.18983
A115: 106 | B115: CUMMINSIND | C115: 802.7 | D115: 794.93 | E115: 780.07 | F115: 757.43 | G115: 742.57 | H115: 817.57 | I115: 832.43 | J115: 855.07 | K115: 809.8 | L115: 772.3 | M115: 5.94851
A116: 107 | B116: CYIENT | C116: 601.7 | D116: 603.88 | E116: 597.82 | F116: 593.93 | G116: 587.87 | H116: 607.77 | I116: 613.83 | J116: 617.72 | K116: 609.95 | L116: 600 | M116: 0.48313
A117: 108 | B117: DABUR | C117: 422.6 | D117: 422.20 | E117: 414.60 | F117: 406.60 | G117: 399.00 | H117: 430.20 | I117: 437.80 | J117: 445.80 | K117: 429.8 | L117: 414.2 | M117: 73.49664
A118: 109 | B118: DBCORP | C118: 170.05 | D118: 168.98 | E118: 166.17 | F118: 162.28 | G118: 159.47 | H118: 172.87 | I118: 175.68 | J118: 179.57 | K118: 171.8 | L118: 165.1 | M118: 0.29306
A119: 110 | B119: DBL | C119: 420.4 | D119: 420.20 | E119: 415.60 | F119: 410.80 | G119: 406.20 | H119: 425.00 | I119: 429.60 | J119: 434.40 | K119: 424.8 | L119: 415.4 | M119: 1.11842
A120: 111 | B120: DBREALTY | C120: 25.8 | D120: 25.90 | E120: 25.30 | F120: 24.80 | G120: 24.20 | H120: 26.40 | I120: 27.00 | J120: 27.50 | K120: 26.5 | L120: 25.4 | M120: 4.99873
A121: 112 | B121: DCAL | C121: 228.65 | D121: 228.42 | E121: 225.83 | F121: 223.02 | G121: 220.43 | H121: 231.23 | I121: 233.82 | J121: 236.63 | K121: 231 | L121: 225.6 | M121: 2.21944
A122: 113 | B122: DCBBANK | C122: 162.75 | D122: 161.58 | E122: 159.67 | F122: 156.58 | G122: 154.67 | H122: 164.67 | I122: 166.58 | J122: 169.67 | K122: 163.5 | L122: 158.5 | M122: 17.87696
A123: 114 | B123: DCMSHRIRAM | C123: 347.65 | D123: 342.30 | E123: 335.35 | F123: 323.05 | G123: 316.10 | H123: 354.60 | I123: 361.55 | J123: 373.85 | K123: 349.25 | L123: 330 | M123: 0.53919
A124: 115 | B124: DEEPAKFERT | C124: 145.05 | D124: 144.52 | E124: 143.03 | F124: 141.02 | G124: 139.53 | H124: 146.53 | I124: 148.02 | J124: 150.03 | K124: 146 | L124: 142.5 | M124: 1.1871
A125: 116 | B125: DELTACORP | C125: 242.75 | D125: 242.33 | E125: 239.42 | F125: 236.08 | G125: 233.17 | H125: 245.67 | I125: 248.58 | J125: 251.92 | K125: 245.25 | L125: 239 | M125: 7.51123
A126: 117 | B126: DEN | C126: 69.9 | D126: 69.70 | E126: 69.25 | F126: 68.60 | G126: 68.15 | H126: 70.35 | I126: 70.80 | J126: 71.45 | K126: 70.15 | L126: 69.05 | M126: 2.58422
A127: 118 | B127: DENABANK | C127: 16.7 | D127: 16.63 | E127: 16.42 | F127: 16.13 | G127: 15.92 | H127: 16.92 | I127: 17.13 | J127: 17.42 | K127: 16.85 | L127: 16.35 | M127: 9.14785
A128: 119 | B128: DHFL | C128: 237.95 | D128: 234.60 | E128: 229.90 | F128: 221.85 | G128: 217.15 | H128: 242.65 | I128: 247.35 | J128: 255.40 | K128: 239.3 | L128: 226.55 | M128: 105.61279
A129: 120 | B129: DISHTV | C129: 37.3 | D129: 37.00 | E129: 36.00 | F129: 34.70 | G129: 33.70 | H129: 38.30 | I129: 39.30 | J129: 40.60 | K129: 38 | L129: 35.7 | M129: 53.13069
A130: 121 | B130: DIVISLAB | C130: 1455.8 | D130: 1447.62 | E130: 1436.23 | F130: 1416.67 | G130: 1405.28 | H130: 1467.18 | I130: 1478.57 | J130: 1498.13 | K130: 1459 | L130: 1428.05 | M130: 3.45177
A131: 122 | B131: DIXON | C131: 2059.2 | D131: 2074.77 | E131: 2033.53 | F131: 2007.87 | G131: 1966.63 | H131: 2100.43 | I131: 2141.67 | J131: 2167.33 | K131: 2116 | L131: 2049.1 | M131: 0.15558
A132: 123 | B132: DLF | C132: 177.6 | D132: 176.38 | E132: 173.02 | F132: 168.43 | G132: 165.07 | H132: 180.97 | I132: 184.33 | J132: 188.92 | K132: 179.75 | L132: 171.8 | M132: 75.74429
A133: 124 | B133: DMART | C133: 1554.85 | D133: 1539.68 | E133: 1516.47 | F133: 1478.08 | G133: 1454.87 | H133: 1578.07 | I133: 1601.28 | J133: 1639.67 | K133: 1562.9 | L133: 1501.3 | M133: 5.44718
A134: 125 | B134: DREDGECORP | C134: 353.05 | D134: 351.82 | E134: 345.83 | F134: 338.62 | G134: 332.63 | H134: 359.03 | I134: 365.02 | J134: 372.23 | K134: 357.8 | L134: 344.6 | M134: 1.25223
A135: 126 | B135: DRREDDY | C135: 2622.3 | D135: 2608.50 | E135: 2589.00 | F135: 2555.70 | G135: 2536.20 | H135: 2641.80 | I135: 2661.30 | J135: 2694.60 | K135: 2628 | L135: 2575.2 | M135: 7.53624
A136: 127 | B136: ECLERX | C136: 1076.2 | D136: 1069.05 | E136: 1052.15 | F136: 1028.10 | G136: 1011.20 | H136: 1093.10 | I136: 1110.00 | J136: 1134.05 | K136: 1085.95 | L136: 1045 | M136: 0.06809
A137: 128 | B137: EDELWEISS | C137: 185.95 | D137: 184.48 | E137: 180.07 | F137: 174.18 | G137: 169.77 | H137: 190.37 | I137: 194.78 | J137: 200.67 | K137: 188.9 | L137: 178.6 | M137: 11.18125
A138: 129 | B138: EICHERMOT | C138: 23081.35 | D138: 23077.12 | E138: 22704.23 | F138: 22327.12 | G138: 21954.23 | H138: 23454.23 | I138: 23827.12 | J138: 24204.23 | K138: 23450 | L138: 22700 | M138: 0.55049
A139: 130 | B139: EIDPARRY | C139: 208.35 | D139: 206.03 | E139: 202.42 | F139: 196.48 | G139: 192.87 | H139: 211.97 | I139: 215.58 | J139: 221.52 | K139: 209.65 | L139: 200.1 | M139: 0.65665
A140: 131 | B140: EIHOTEL | C140: 194.6 | D140: 194.30 | E140: 189.10 | F140: 183.60 | G140: 178.40 | H140: 199.80 | I140: 205.00 | J140: 210.50 | K140: 199.5 | L140: 188.8 | M140: 1.01882
A141: 132 | B141: EMAMILTD | C141: 405.15 | D141: 403.07 | E141: 398.08 | F141: 391.02 | G141: 386.03 | H141: 410.13 | I141: 415.12 | J141: 422.18 | K141: 408.05 | L141: 396 | M141: 2.00046
A142: 133 | B142: ENDURANCE | C142: 1159.3 | D142: 1157.42 | E142: 1146.88 | F142: 1134.47 | G142: 1123.93 | H142: 1169.83 | I142: 1180.37 | J142: 1192.78 | K142: 1167.95 | L142: 1145 | M142: 0.08127
A143: 134 | B143: ENGINERSIN | C143: 126.7 | D143: 125.07 | E143: 122.78 | F143: 118.87 | G143: 116.58 | H143: 128.98 | I143: 131.27 | J143: 135.18 | K143: 127.35 | L143: 121.15 | M143: 19.13499
A144: 135 | B144: EQUITAS | C144: 125.9 | D144: 124.18 | E144: 121.97 | F144: 118.03 | G144: 115.82 | H144: 128.12 | I144: 130.33 | J144: 134.27 | K144: 126.4 | L144: 120.25 | M144: 16.87398
A145: 136 | B145: ERIS | C145: 661.7 | D145: 663.85 | E145: 652.85 | F145: 644.00 | G145: 633.00 | H145: 672.70 | I145: 683.70 | J145: 692.55 | K145: 674.85 | L145: 655 | M145: 0.06182
A146: 137 | B146: EROSMEDIA | C146: 86.2 | D146: 85.63 | E146: 84.32 | F146: 82.43 | G146: 81.12 | H146: 87.52 | I146: 88.83 | J146: 90.72 | K146: 86.95 | L146: 83.75 | M146: 2.62995
A147: 138 | B147: ESCORTS | C147: 681.8 | D147: 675.47 | E147: 665.98 | F147: 650.17 | G147: 640.68 | H147: 691.28 | I147: 700.77 | J147: 716.58 | K147: 684.95 | L147: 659.65 | M147: 15.69431
A148: 139 | B148: EVEREADY | C148: 185.85 | D148: 185.55 | E148: 182.80 | F148: 179.75 | G148: 177.00 | H148: 188.60 | I148: 191.35 | J148: 194.40 | K148: 188.3 | L148: 182.5 | M148: 0.63336
A149: 140 | B149: EXIDEIND | C149: 261.8 | D149: 258.27 | E149: 253.88 | F149: 245.97 | G149: 241.58 | H149: 266.18 | I149: 270.57 | J149: 278.48 | K149: 262.65 | L149: 250.35 | M149: 14.67191
A150: 141 | B150: FCONSUMER | C150: 46.35 | D150: 46.25 | E150: 45.60 | F150: 44.85 | G150: 44.20 | H150: 47.00 | I150: 47.65 | J150: 48.40 | K150: 46.9 | L150: 45.5 | M150: 14.71993
A151: 142 | B151: FEDERALBNK | C151: 92.45 | D151: 92.53 | E151: 91.22 | F151: 89.98 | G151: 88.67 | H151: 93.77 | I151: 95.08 | J151: 96.32 | K151: 93.85 | L151: 91.3 | M151: 139.47969
A152: 143 | B152: FINCABLES | C152: 455.05 | D152: 459.87 | E152: 445.68 | F152: 436.32 | G152: 422.13 | H152: 469.23 | I152: 483.42 | J152: 492.78 | K152: 474.05 | L152: 450.5 | M152: 0.46636
A153: 144 | B153: FINPIPE | C153: 539.35 | D153: 539.93 | E153: 534.42 | F153: 529.48 | G153: 523.97 | H153: 544.87 | I153: 550.38 | J153: 555.32 | K153: 545.45 | L153: 535 | M153: 0.14277
A154: 145 | B154: FLFL | C154: 400.35 | D154: 401.68 | E154: 396.37 | F154: 392.38 | G154: 387.07 | H154: 405.67 | I154: 410.98 | J154: 414.97 | K154: 407 | L154: 397.7 | M154: 0.3204
A155: 146 | B155: FSL | C155: 47.7 | D155: 47.17 | E155: 46.43 | F155: 45.17 | G155: 44.43 | H155: 48.43 | I155: 49.17 | J155: 50.43 | K155: 47.9 | L155: 45.9 | M155: 15.96901
A156: 147 | B156: GAIL | C156: 353.4 | D156: 349.93 | E156: 345.47 | F156: 337.53 | G156: 333.07 | H156: 357.87 | I156: 362.33 | J156: 370.27 | K156: 354.4 | L156: 342 | M156: 19.12786
A157: 148 | B157: GATI | C157: 87.15 | D157: 87.23 | E157: 85.72 | F157: 84.28 | G157: 82.77 | H157: 88.67 | I157: 90.18 | J157: 91.62 | K157: 88.75 | L157: 85.8 | M157: 7.1564
A158: 149 | B158: GDL | C158: 130 | D158: 130.77 | E158: 127.73 | F158: 125.47 | G158: 122.43 | H158: 133.03 | I158: 136.07 | J158: 138.33 | K158: 133.8 | L158: 128.5 | M158: 0.53762
A159: 150 | B159: GEPIL | C159: 825.45 | D159: 829.80 | E159: 818.55 | F159: 811.65 | G159: 800.40 | H159: 836.70 | I159: 847.95 | J159: 854.85 | K159: 841.05 | L159: 822.9 | M159: 0.07129
A160: 151 | B160: GESHIP | C160: 319.15 | D160: 316.38 | E160: 310.77 | F160: 302.38 | G160: 296.77 | H160: 324.77 | I160: 330.38 | J160: 338.77 | K160: 322 | L160: 308 | M160: 0.54854
A161: 152 | B161: GET&D | C161: 284.95 | D161: 278.47 | E161: 267.93 | F161: 250.92 | G161: 240.38 | H161: 295.48 | I161: 306.02 | J161: 323.03 | K161: 289 | L161: 261.45 | M161: 1.45563
A162: 153 | B162: GHCL | C162: 238.75 | D162: 237.88 | E162: 235.87 | F162: 232.98 | G162: 230.97 | H162: 240.77 | I162: 242.78 | J162: 245.67 | K162: 239.9 | L162: 235 | M162: 0.59806
A163: 154 | B163: GICRE | C163: 257.45 | D163: 256.18 | E163: 248.37 | F163: 239.28 | G163: 231.47 | H163: 265.27 | I163: 273.08 | J163: 282.17 | K163: 264 | L163: 247.1 | M163: 3.41536
A164: 155 | B164: GILLETTE | C164: 6497.2 | D164: 6481.90 | E164: 6445.80 | F164: 6394.40 | G164: 6358.30 | H164: 6533.30 | I164: 6569.40 | J164: 6620.80 | K164: 6518 | L164: 6430.5 | M164: 0.01573
A165: 156 | B165: GLAXO | C165: 1497.1 | D165: 1479.03 | E165: 1438.07 | F165: 1379.03 | G165: 1338.07 | H165: 1538.07 | I165: 1579.03 | J165: 1638.07 | K165: 1520 | L165: 1420 | M165: 0.17872
A166: 157 | B166: GLENMARK | C166: 671.05 | D166: 669.95 | E166: 663.90 | F166: 656.75 | G166: 650.70 | H166: 677.10 | I166: 683.15 | J166: 690.30 | K166: 676 | L166: 662.8 | M166: 5.90655
A167: 158 | B167: GMDCLTD | C167: 87.2 | D167: 87.57 | E167: 86.58 | F167: 85.97 | G167: 84.98 | H167: 88.18 | I167: 89.17 | J167: 89.78 | K167: 88.55 | L167: 86.95 | M167: 0.71417
A168: 159 | B168: GMRINFRA | C168: 16.2 | D168: 15.98 | E168: 15.67 | F168: 15.13 | G168: 14.82 | H168: 16.52 | I168: 16.83 | J168: 17.37 | K168: 16.3 | L168: 15.45 | M168: 191.33761
A169: 160 | B169: GNFC | C169: 340.2 | D169: 339.07 | E169: 334.23 | F169: 328.27 | G169: 323.43 | H169: 345.03 | I169: 349.87 | J169: 355.83 | K169: 343.9 | L169: 333.1 | M169: 3.23021
A170: 161 | B170: GODFRYPHLP | C170: 844.05 | D170: 833.20 | E170: 777.40 | F170: 710.75 | G170: 654.95 | H170: 899.85 | I170: 955.65 | J170: 1022.30 | K170: 889 | L170: 766.55 | M170: 4.67488
A171: 162 | B171: GODREJAGRO | C171: 495.45 | D171: 496.73 | E171: 491.72 | F171: 487.98 | G171: 482.97 | H171: 500.47 | I171: 505.48 | J171: 509.22 | K171: 501.75 | L171: 493 | M171: 0.49584
A172: 163 | B172: GODREJCP | C172: 799.3 | D172: 794.45 | E172: 785.65 | F172: 772.00 | G172: 763.20 | H172: 808.10 | I172: 816.90 | J172: 830.55 | K172: 803.25 | L172: 780.8 | M172: 5.65588
A173: 164 | B173: GODREJIND | C173: 522.5 | D173: 517.28 | E173: 510.22 | F173: 497.93 | G173: 490.87 | H173: 529.57 | I173: 536.63 | J173: 548.92 | K173: 524.35 | L173: 505 | M173: 2.33747
A174: 165 | B174: GODREJPROP | C174: 675.9 | D174: 674.70 | E174: 668.40 | F174: 660.90 | G174: 654.60 | H174: 682.20 | I174: 688.50 | J174: 696.00 | K174: 681 | L174: 667.2 | M174: 1.93957
A175: 166 | B175: GPPL | C175: 103.5 | D175: 103.02 | E175: 101.03 | F175: 98.57 | G175: 96.58 | H175: 105.48 | I175: 107.47 | J175: 109.93 | K175: 105 | L175: 100.55 | M175: 0.93405
A176: 167 | B176: GRANULES | C176: 87.85 | D176: 87.72 | E176: 86.43 | F176: 85.02 | G176: 83.73 | H176: 89.13 | I176: 90.42 | J176: 91.83 | K176: 89 | L176: 86.3 | M176: 6.03713
A177: 168 | B177: GRAPHITE | C177: 753.25 | D177: 743.52 | E177: 712.03 | F177: 670.82 | G177: 639.33 | H177: 784.73 | I177: 816.22 | J177: 857.43 | K177: 775 | L177: 702.3 | M177: 19.19497
A178: 169 | B178: GRASIM | C178: 819.25 | D178: 812.20 | E178: 802.15 | F178: 785.05 | G178: 775.00 | H178: 829.30 | I178: 839.35 | J178: 856.45 | K178: 822.25 | L178: 795.1 | M178: 10.74004
A179: 170 | B179: GREAVESCOT | C179: 118 | D179: 118.03 | E179: 117.07 | F179: 116.13 | G179: 115.17 | H179: 118.97 | I179: 119.93 | J179: 120.87 | K179: 119 | L179: 117.1 | M179: 2.42736
A180: 171 | B180: GREENPLY | C180: 137.25 | D180: 136.25 | E180: 134.00 | F180: 130.75 | G180: 128.50 | H180: 139.50 | I180: 141.75 | J180: 145.00 | K180: 138.5 | L180: 133 | M180: 0.91919
A181: 172 | B181: GRUH | C181: 309.95 | D181: 307.67 | E181: 300.33 | F181: 290.72 | G181: 283.38 | H181: 317.28 | I181: 324.62 | J181: 334.23 | K181: 315 | L181: 298.05 | M181: 5.94678
A182: 173 | B182: GSFC | C182: 109.4 | D182: 108.82 | E182: 107.38 | F182: 105.37 | G182: 103.93 | H182: 110.83 | I182: 112.27 | J182: 114.28 | K182: 110.25 | L182: 106.8 | M182: 13.3881
A183: 174 | B183: GSKCONS | C183: 7492.25 | D183: 7464.07 | E183: 7398.18 | F183: 7304.12 | G183: 7238.23 | H183: 7558.13 | I183: 7624.02 | J183: 7718.08 | K183: 7529.95 | L183: 7370 | M183: 0.44312
A184: 175 | B184: GSPL | C184: 174.85 | D184: 174.90 | E184: 173.75 | F184: 172.65 | G184: 171.50 | H184: 176.00 | I184: 177.15 | J184: 178.25 | K184: 176.05 | L184: 173.8 | M184: 0.69383
A185: 176 | B185: GUJALKALI | C185: 529 | D185: 529.20 | E185: 524.40 | F185: 519.80 | G185: 515.00 | H185: 533.80 | I185: 538.60 | J185: 543.20 | K185: 534 | L185: 524.6 | M185: 0.20127
A186: 177 | B186: GUJFLUORO | C186: 883.55 | D186: 885.40 | E186: 873.70 | F186: 863.85 | G186: 852.15 | H186: 895.25 | I186: 906.95 | J186: 916.80 | K186: 897.1 | L186: 875.55 | M186: 0.28991
A187: 178 | B187: GUJGASLTD | C187: 664.1 | D187: 667.37 | E187: 656.73 | F187: 649.37 | G187: 638.73 | H187: 674.73 | I187: 685.37 | J187: 692.73 | K187: 678 | L187: 660 | M187: 0.16139
A188: 179 | B188: GULFOILLUB | C188: 818.35 | D188: 819.82 | E188: 811.63 | F188: 804.92 | G188: 796.73 | H188: 826.53 | I188: 834.72 | J188: 841.43 | K188: 828 | L188: 813.1 | M188: 0.10841
A189: 180 | B189: GVKPIL | C189: 7.85 | D189: 7.80 | E189: 7.65 | F189: 7.45 | G189: 7.30 | H189: 8.00 | I189: 8.15 | J189: 8.35 | K189: 7.95 | L189: 7.6 | M189: 9.91472
A190: 181 | B190: HATHWAY | C190: 31.05 | D190: 31.02 | E190: 30.88 | F190: 30.72 | G190: 30.58 | H190: 31.18 | I190: 31.32 | J190: 31.48 | K190: 31.15 | L190: 30.85 | M190: 2.33566
A191: 182 | B191: HATSUN | C191: 621.35 | D191: 617.83 | E191: 613.67 | F191: 605.98 | G191: 601.82 | H191: 625.52 | I191: 629.68 | J191: 637.37 | K191: 622 | L191: 610.15 | M191: 0.03281
A192: 183 | B192: HAVELLS | C192: 677.2 | D192: 670.48 | E192: 661.72 | F192: 646.23 | G192: 637.47 | H192: 685.97 | I192: 694.73 | J192: 710.22 | K192: 679.25 | L192: 655 | M192: 10.32249
A193: 184 | B193: HCC | C193: 11.45 | D193: 11.48 | E193: 11.32 | F193: 11.18 | G193: 11.02 | H193: 11.62 | I193: 11.78 | J193: 11.92 | K193: 11.65 | L193: 11.35 | M193: 41.53648
A194: 185 | B194: HCL-INSYS | C194: 24.9 | D194: 24.83 | E194: 24.52 | F194: 24.13 | G194: 23.82 | H194: 25.22 | I194: 25.53 | J194: 25.92 | K194: 25.15 | L194: 24.45 | M194: 5.65744
A195: 186 | B195: HCLTECH | C195: 942.8 | D195: 940.50 | E195: 933.30 | F195: 923.80 | G195: 916.60 | H195: 950.00 | I195: 957.20 | J195: 966.70 | K195: 947.7 | L195: 931 | M195: 12.17032
A196: 187 | B196: HDFC | C196: 1933.35 | D196: 1920.42 | E196: 1896.13 | F196: 1858.92 | G196: 1834.63 | H196: 1957.63 | I196: 1981.92 | J196: 2019.13 | K196: 1944.7 | L196: 1883.2 | M196: 15.36116
A197: 188 | B197: HDFCBANK | C197: 2122.35 | D197: 2106.12 | E197: 2085.23 | F197: 2048.12 | G197: 2027.23 | H197: 2143.23 | I197: 2164.12 | J197: 2201.23 | K197: 2127 | L197: 2069 | M197: 19.00479
A198: 189 | B198: HDIL | C198: 23.05 | D198: 23.15 | E198: 22.65 | F198: 22.25 | G198: 21.75 | H198: 23.55 | I198: 24.05 | J198: 24.45 | K198: 23.65 | L198: 22.75 | M198: 34.27617
A199: 190 | B199: HEG | C199: 3572.3 | D199: 3562.77 | E199: 3489.53 | F199: 3406.77 | G199: 3333.53 | H199: 3645.53 | I199: 3718.77 | J199: 3801.53 | K199: 3636 | L199: 3480 | M199: 4.05035
A200: 191 | B200: HEIDELBERG | C200: 151.1 | D200: 150.43 | E200: 148.37 | F200: 145.63 | G200: 143.57 | H200: 153.17 | I200: 155.23 | J200: 157.97 | K200: 152.5 | L200: 147.7 | M200: 0.65135
A201: 192 | B201: HERITGFOOD | C201: 532.2 | D201: 528.28 | E201: 515.57 | F201: 498.93 | G201: 486.22 | H201: 544.92 | I201: 557.63 | J201: 574.27 | K201: 541 | L201: 511.65 | M201: 0.29112
A202: 193 | B202: HEROMOTOCO | C202: 3175.2 | D202: 3174.42 | E202: 3136.83 | F202: 3098.47 | G202: 3060.88 | H202: 3212.78 | I202: 3250.37 | J202: 3288.73 | K202: 3212 | L202: 3136.05 | M202: 5.06895
A203: 194 | B203: HEXAWARE | C203: 315.75 | D203: 313.37 | E203: 309.78 | F203: 303.82 | G203: 300.23 | H203: 319.33 | I203: 322.92 | J203: 328.88 | K203: 316.95 | L203: 307.4 | M203: 7.41835
A204: 195 | B204: HFCL | C204: 21.25 | D204: 21.08 | E204: 20.77 | F204: 20.28 | G204: 19.97 | H204: 21.57 | I204: 21.88 | J204: 22.37 | K204: 21.4 | L204: 20.6 | M204: 19.87897
A205: 196 | B205: HIMATSEIDE | C205: 212.85 | D205: 214.63 | E205: 208.27 | F205: 203.68 | G205: 197.32 | H205: 219.22 | I205: 225.58 | J205: 230.17 | K205: 221 | L205: 210.05 | M205: 0.44003
A206: 197 | B206: HINDALCO | C206: 218.6 | D206: 217.10 | E206: 214.40 | F206: 210.20 | G206: 207.50 | H206: 221.30 | I206: 224.00 | J206: 228.20 | K206: 219.8 | L206: 212.9 | M206: 65.54865
... 304 more rows

Sheet Bulk Deals
E6: Back To Main Page
A7: Subject : | B7: BULK DEAL | D7: =Main!B10 -> 2018-12-27
A9: Date | B9: Scrip code | C9: Scrip Name | D9: Client Name | E9: Buy / Sell | F9: Quantity Traded | G9: Trade Price / Wt.Avg.trade price | H9: Exchange
A10: 2018-12-26 | B10: 540776 | C10: 5PAISA | D10: SATPAL KHATTAR | E10: SELL | F10: 246,861 | G10: 190 | H10: BSE
A11: 2018-12-26 | B11: 535467 | C11: AIFL | D11: HARSHAD HIRJI THAKKAR | E11: SELL | F11: 128,008 | G11: 31.09 | H11: BSE
A12: 2018-12-26 | B12: 541702 | C12: ASHNI | D12: RAJNIKANT BABULAL PARIKH | E12: BUY | F12: 31,000 | G12: 8.49 | H12: BSE
A13: 2018-12-26 | B13: 541702 | C13: ASHNI | D13: EAST WEST TRADELINK PRIVATE LIMITED | E13: SELL | F13: 23,996 | G13: 8.34 | H13: BSE
A14: 2018-12-26 | B14: 511144 | C14: ASYAINFO | D14: RATNA SANJEEV PATEL | E14: SELL | F14: 101,369 | G14: 8 | H14: BSE
A15: 2018-12-26 | B15: 511144 | C15: ASYAINFO | D15: DHAVAL VIPULBHAI SHAH | E15: BUY | F15: 103,992 | G15: 8.01 | H15: BSE
A16: 2018-12-26 | B16: 532330 | C16: BIOPAC | D16: AMIT KHIMJI DEDHIA | E16: SELL | F16: 100,000 | G16: 7.77 | H16: BSE
A17: 2018-12-26 | B17: 532330 | C17: BIOPAC | D17: KHYATI AMIT DEDHIA | E17: BUY | F17: 102,485 | G17: 7.77 | H17: BSE
A18: 2018-12-26 | B18: 539335 | C18: CHPLIND | D18: DIMPLE SURANA | E18: BUY | F18: 37,550 | G18: 10.62 | H18: BSE
A19: 2018-12-26 | B19: 539335 | C19: CHPLIND | D19: RASHMI RAVI SHARMA | E19: SELL | F19: 37,950 | G19: 10.62 | H19: BSE
A20: 2018-12-26 | B20: 540455 | C20: ESCORP | D20: AMARKUMAR SHAH HIRAL | E20: BUY | F20: 80,000 | G20: 15.75 | H20: BSE
A21: 2018-12-26 | B21: 540455 | C21: ESCORP | D21: PARESH B SHAH | E21: SELL | F21: 48,000 | G21: 15.75 | H21: BSE
A22: 2018-12-26 | B22: 500151 | C22: GOLDENTOBC | D22: VANDANA AGARWAL | E22: SELL | F22: 123,732 | G22: 36.25 | H22: BSE
A23: 2018-12-26 | B23: 500151 | C23: GOLDENTOBC | D23: GLOBE CAPITAL MARKET LIMITED | E23: SELL | F23: 175,412 | G23: 36.25 | H23: BSE
A24: 2018-12-26 | B24: 539679 | C24: KAPILRAJ | D24: UMANG ARUNKUMAR DESAI | E24: BUY | F24: 31,000 | G24: 7.95 | H24: BSE
A25: 2018-12-26 | B25: 539679 | C25: KAPILRAJ | D25: DHIREN BHUPATRAI PAREKH | E25: SELL | F25: 36,160 | G25: 7.94 | H25: BSE
A26: 2018-12-26 | B26: 535204 | C26: MUKTA | D26: SARVOTTAM SECURITIES PRIVATE LIMITED | E26: BUY | F26: 120,000 | G26: 29.45 | H26: BSE
A27: 2018-12-26 | B27: 535204 | C27: MUKTA | D27: KHUSHBOO VANRAJ KAHOR | E27: BUY | F27: 163,559 | G27: 29.31 | H27: BSE
A28: 2018-12-26 | B28: 535204 | C28: MUKTA | D28: KHUSHBOO VANRAJ KAHOR | E28: SELL | F28: 163,559 | G28: 29.41 | H28: BSE
A29: 2018-12-26 | B29: 504378 | C29: NYSSACORP | D29: SEETHARAMAIAH | E29: BUY | F29: 180,000 | G29: 1.15 | H29: BSE
A30: 2018-12-26 | B30: 504378 | C30: NYSSACORP | D30: SIDDHARTH CHIMANLAL SHAH | E30: SELL | F30: 185,450 | G30: 1.15 | H30: BSE
A31: 2018-12-26 | B31: 531512 | C31: ORIENTTR | D31: RAVINDER KAUR BEDI | E31: SELL | F31: 90,000 | G31: 22.26 | H31: BSE
A32: 2018-12-26 | B32: 531512 | C32: ORIENTTR | D32: TANIA BEDI | E32: BUY | F32: 81,537 | G32: 22.15 | H32: BSE
A33: 2018-12-26 | B33: 526905 | C33: PADMAIND | D33: MULTIPLIER SHARE & STOCK ADVISORS PRIVATE LIMITED | E33: BUY | F33: 60000 | G33: 104.5 | H33: BSE
A34: 2018-12-26 | B34: 526905 | C34: PADMAIND | D34: DEEP PARESH SHAH | E34: SELL | F34: 60000 | G34: 104.5 | H34: BSE
A35: 2018-12-26 | B35: 542145 | C35: RONI | D35: ARCHANA VEERENDRASINH PAWAR | E35: BUY | F35: 48000 | G35: 25 | H35: BSE
A36: 2018-12-26 | B36: 542145 | C36: RONI | D36: ARCHANA VEERENDRASINH PAWAR | E36: SELL | F36: 18000 | G36: 21.86 | H36: BSE
A37: 2018-12-26 | B37: 542145 | C37: RONI | D37: AMAR MUKESHBHAI SHAH | E37: SELL | F37: 48000 | G37: 25 | H37: BSE
A38: 2018-12-26 | B38: 540715 | C38: SAGAR | D38: SHERWOOD SECURITIES PVT LTD | E38: SELL | F38: 201000 | G38: 11 | H38: BSE
A39: 2018-12-26 | B39: 538557 | C39: SAIBABA | D39: DAXABEN JAGDISHCHANDRA PATEL | E39: SELL | F39: 1200000 | G39: 1.72 | H39: BSE
A40: 2018-12-26 | B40: 506906 | C40: SCBL | D40: PIYUSH SHARMA | E40: BUY | F40: 55323 | G40: 9.23 | H40: BSE
A41: 2018-12-26 | B41: 506906 | C41: SCBL | D41: PIYUSH SHARMA | E41: SELL | F41: 45476 | G41: 8.35 | H41: BSE
A42: 2018-12-26 | B42: 506906 | C42: SCBL | D42: VISHNU BANWARILAL SHARMA | E42: BUY | F42: 68897 | G42: 8.88 | H42: BSE
A43: 2018-12-26 | B43: 506906 | C43: SCBL | D43: VISHNU BANWARILAL SHARMA | E43: SELL | F43: 10850 | G43: 8.12 | H43: BSE
A44: 2018-12-26 | B44: 539520 | C44: SHAILJA | D44: NAVEEN GUPTA | E44: BUY | F44: 21,871 | G44: 10.3 | H44: BSE
A45: 2018-12-26 | B45: 539520 | C45: SHAILJA | D45: NAVEEN GUPTA | E45: SELL | F45: 16,969 | G45: 10.64 | H45: BSE
A46: 2018-12-26 | B46: 539520 | C46: SHAILJA | D46: SANJAYPBHANDARIHUF | E46: SELL | F46: 20,000 | G46: 10.32 | H46: BSE
A47: 2018-12-26 | B47: 512257 | C47: SVARTCORP | D47: ROY AMALRAJ | E47: BUY | F47: 200,002 | G47: 3.8 | H47: BSE
A48: 2018-12-26 | B48: 539402 | C48: VAL | D48: ARYAMAN BROKING LIMITED | E48: BUY | F48: 200,000 | G48: 19 | H48: BSE
A49: 2018-12-26 | B49: 539402 | C49: VAL | D49: TARUN CHAUHAN | E49: SELL | F49: 276,000 | G49: 19 | H49: BSE
A50: 2018-12-26 | B50: 539402 | C50: VAL | D50: SURESHKUMAR KHIMAJIBHAI DOSHI | E50: BUY | F50: 76,000 | G50: 19 | H50: BSE
A51: 2018-12-26 | B51: AIFL | C51: Ashapura Inti Fashion Ltd | D51: ALPHA LEON ENTERPRISES LLP | E51: BUY | F51: 375,693 | G51: 28.28 | H51: NSE
A52: 2018-12-26 | B52: AIFL | C52: Ashapura Inti Fashion Ltd | D52: CHETAN RASIKLAL SHAH | E52: BUY | F52: 125,073 | G52: 28.72 | H52: NSE
A53: 2018-12-26 | B53: AIFL | C53: Ashapura Inti Fashion Ltd | D53: GAURAV PALIWAL | E53: BUY | F53: 167,608 | G53: 29.51 | H53: NSE
A54: 2018-12-26 | B54: AIFL | C54: Ashapura Inti Fashion Ltd | D54: SHETH BROTHERS | E54: BUY | F54: 148,056 | G54: 29.83 | H54: NSE
A55: 2018-12-26 | B55: AKASH | C55: Akash Infra-Projects Ltd. | D55: SILKON TRADES LLP | E55: BUY | F55: 80,000 | G55: 100 | H55: NSE
A56: 2018-12-26 | B56: BEML | C56: BEML Limited | D56: ALPHAGREP SECURITIES PRIVATE LIMITED | E56: BUY | F56: 534,239 | G56: 880.63 | H56: NSE
A57: 2018-12-26 | B57: BEML | C57: BEML Limited | D57: TOWER RESEARCH CAPITAL MARKETS INDIA PRIVATE LIMITED | E57: BUY | F57: 273,054 | G57: 878.03 | H57: NSE
A58: 2018-12-26 | B58: JETAIRWAYS | C58: Jet Airways (India) Ltd. | D58: TOWER RESEARCH CAPITAL MARKETS INDIA PRIVATE LIMITED | E58: BUY | F58: 1,318,991 | G58: 260.05 | H58: NSE
A59: 2018-12-26 | B59: MOHOTAIND | C59: Mohota Industries Ltd. | D59: ABHISHEK AGARWAL HUF | E59: BUY | F59: 24,000 | G59: 81.7 | H59: NSE
A60: 2018-12-26 | B60: MOHOTAIND | C60: Mohota Industries Ltd. | D60: KARAN SURESH MAJITHIA | E60: BUY | F60: 108,194 | G60: 81.73 | H60: NSE
A61: 2018-12-26 | B61: RCOM | C61: Reliance Comm. Ltd. | D61: SKYVEIL TRADE SOLUTIONS LLP | E61: BUY | F61: 26,212,413 | G61: 14.1 | H61: NSE
A62: 2018-12-26 | B62: RIIL | C62: Reliance Indl Infra Ltd | D62: BERKELEY SECURITIES LIMITED | E62: BUY | F62: 81,529 | G62: 321.96 | H62: NSE
A63: 2018-12-26 | B63: AIFL | C63: Ashapura Inti Fashion Ltd | D63: ALPHA LEON ENTERPRISES LLP | E63: SELL | F63: 246,700 | G63: 29.02 | H63: NSE
A64: 2018-12-26 | B64: AIFL | C64: Ashapura Inti Fashion Ltd | D64: CHETAN RASIKLAL SHAH | E64: SELL | F64: 203,875 | G64: 29.4 | H64: NSE
A65: 2018-12-26 | B65: AIFL | C65: Ashapura Inti Fashion Ltd | D65: GAURAV PALIWAL | E65: SELL | F65: 167608 | G65: 29.47 | H65: NSE
A66: 2018-12-26 | B66: AIFL | C66: Ashapura Inti Fashion Ltd | D66: HARSHAD HIRJI THAKKAR | E66: SELL | F66: 466520 | G66: 31.15 | H66: NSE
A67: 2018-12-26 | B67: AIFL | C67: Ashapura Inti Fashion Ltd | D67: SHETH BROTHERS | E67: SELL | F67: 141078 | G67: 29.82 | H67: NSE
A68: 2018-12-26 | B68: BEML | C68: BEML Limited | D68: ALPHAGREP SECURITIES PRIVATE LIMITED | E68: SELL | F68: 534239 | G68: 880.98 | H68: NSE
A69: 2018-12-26 | B69: BEML | C69: BEML Limited | D69: TOWER RESEARCH CAPITAL MARKETS INDIA PRIVATE LIMITED | E69: SELL | F69: 273054 | G69: 878.81 | H69: NSE
A70: 2018-12-26 | B70: CUPID | C70: Cupid Limited | D70: TAMOHARA INVESTMENT MANAGERS PRIVATE LTD | E70: SELL | F70: 71540 | G70: 148.95 | H70: NSE
A71: 2018-12-26 | B71: GOLDENTOBC | C71: Golden Tobacco Limited | D71: SMS HOLDINGS PVT LTD | E71: SELL | F71: 114582 | G71: 35 | H71: NSE
A72: 2018-12-26 | B72: JETAIRWAYS | C72: Jet Airways (India) Ltd. | D72: TOWER RESEARCH CAPITAL MARKETS INDIA PRIVATE LIMITED | E72: SELL | F72: 1318991 | G72: 260.22 | H72: NSE
A73: 2018-12-26 | B73: MIC | C73: MIC Electronics Limited | D73: USHA RANI MAGANTI | E73: SELL | F73: 1450000 | G73: 1.51 | H73: NSE
A74: 2018-12-26 | B74: MOHOTAIND | C74: Mohota Industries Ltd. | D74: ABHISHEK AGARWAL HUF | E74: SELL | F74: 117000 | G74: 81.71 | H74: NSE
A75: 2018-12-26 | B75: ONMOBILE | C75: OnMobile Global Limited | D75: VERTEX CUSTOMER MANAGEMENT INDIA PRIVATE LIMITED | E75: SELL | F75: 929608 | G75: 34.6 | H75: NSE
A76: 2018-12-26 | B76: RCOM | C76: Reliance Comm. Ltd. | D76: SKYVEIL TRADE SOLUTIONS LLP | E76: SELL | F76: 26212321 | G76: 14.11 | H76: NSE
A77: 2018-12-26 | B77: RIIL | C77: Reliance Indl Infra Ltd | D77: BERKELEY SECURITIES LIMITED | E77: SELL | F77: 81529 | G77: 322.32 | H77: NSE
A78: 2018-12-26 | B78: ROLTA | C78: Rolta India Ltd. | D78: CENTRAL BANK OF INDIA (CAPITAL MARKET SERVICE BRANCH) | E78: SELL | F78: 970151 | G78: 8.88 | H78: NSE

Sheet Call Tracker (Equity & F&O)
M5: Back To Main Page
A6: Retail Research Technical Calls & Fundamental Performance Report for the month of December -2018
M7: =Main!B10 -> 2018-12-27
B8: Positional Call
A9: Sr.no | B9: Date | D9: Company | E9: Rec | F9: Rec Price | G9: Stop Loss*** | H9: Call Closed At | I9: Target | J9: Remark | K9: Profit / Loss per Share | L9: Gain / Loss % | M9: Status | N9: Closed Date | O9: NSE Closed Price
A10: 1 | B10: 2018-11-14 | D10: ASHOKLEY | E10: Buy | F10: 108 | G10: 100.7 | H10: 111.25 | I10: 122-125 | J10: Part Profit of Rs.3.25/- | K10: =H10-F10 -> 3.25 | L10: =K10/F10 -> 3.01% | M10: Successful | N10: 2018-11-30 | R10: R
A11: 2 | B11: 2018-11-21 | D11: ADANIPORTS | E11: Sell | F11: 359.5 | G11: 377.7 | H11: 349 | I11: 322-326 | J11: Profit of Rs.10.5/- | K11: =F11-H11 -> 10.5 | L11: 2.92% | M11: Successful | N11: 2018-12-11 | R11: R
A12: 3 | B12: 2018-11-29 | D12: JSWSTEEL | E12: Buy{} | F12: 312 | G12: 297.7 | H12: =(322+296)/2 -> 309 | I12: 344-350 | J12: Loss of Rs.3/- | K12: =H12-F12 -> -3 | L12: =K12/F12 -> -0.96% | M12: Unsuccessful | N12: 2018-12-07 | R12: R
A13: 4 | B13: 2018-11-30 | D13: RAYMOND | E13: Sell | F13: 820 | G13: 861.6 | H13: 789 | I13: 745-735 | J13: Profit of Rs.31/- | K13: =F13-H13 -> 31 | L13: 3.78% | M13: Successful | N13: 2018-12-07 | R13: R
A14: 5 | B14: 2018-11-30 | D14: INFY | E14: Buy | F14: 665 | G14: 628 | H14: 685 | I14: 725 | J14: Profit of Rs.20/- | K14: 20 | L14: =K14/F14 -> 3.01% | M14: Successful | N14: 2018-12-07 | R14: H
A15: 6 | B15: 2018-12-13 | D15: JSWSTEEL | E15: Buy | F15: 301.5 | G15: 289 | H15: 310.75 | I15: 325-330 | J15: Profit of Rs.9.25/- | K15: =H15-F15 -> 9.25 | L15: =K15/F15 -> 3.07% | M15: Successful | N15: 2018-12-19 | R15: H
A16: 7 | B16: 2018-12-17 | D16: COALINDIA | E16: Buy | F16: 245.5 | G16: 233 | H16: 253.4 | I16: 260-265 | J16: Profit of Rs.7.9/- | K16: =H16-F16 -> 7.9 | L16: =K16/F16 -> 3.22% | M16: Successful | N16: 2018-12-20 | R16: H
A17: 8 | B17: 2018-12-21 | D17: TATAGLOBAL | E17: Buy | F17: 217 | G17: 209 | H17: 223.5 | I17: 235-240 | J17: Part Profit of Rs.6.25/- | K17: 6.5 | L17: 3.00% | M17: Successful | N17: 2018-12-24 | R17: H
A18: 9 | B18: 2018-12-24 | D18: JSWSTEEL | E18: Buy | F18: 299-300 | G18: 289 | I18: 320-325 | J18: Open | O18: =VLOOKUP(D18,Sheet2!A2:M1497,6,0) -> 296.3 | R18: H
A19: 10 | B19: 2018-12-24 | D19: TATAPOWER | E19: Buy | F19: 77.2-77.4 | G19: 73.7 | I19: 83-84 | J19: Open | O19: =VLOOKUP(D19,Sheet2!A3:M1498,6,0) -> 75.95 | R19: R
A20: 11 | B20: 2018-12-26 | D20: CONCOR | E20: Buy | F20: 638-643 | G20: 608.8 | I20: 700-710 | J20: Open | O20: =VLOOKUP(D20,Sheet2!A4:M1499,6,0) -> 652.6 | R20: R
A34: CLBS = Closing Basis *** | F34: Reinitiated $
A35: Dividend adjusted <> | F35: Revised stoploss #
A36: Part book {}
A37: Master Trade High Risk
A38: Sr.no | B38: Date | D38: Company | E38: Rec | F38: Rec Price | G38: Stop Loss | H38: Call Closed At | I38: Target | J38: Remark | K38: Profit / Loss per share | L38: Gain / Loss per Lot | M38: Lot | N38: Status | O38: Closed Date
A39: 1 | B39: 2018-11-30 | D39: KOTAKBANK DEC FUT | E39: Buy | F39: 1229.5 | G39: 1195 | H39: 1202.5 | I39: 1270-1290 | J39: Loss of Rs. 15.5 /- | K39: =H39-F39 -> -27 | L39: =-15.5*800 -> -12400 | M39: 800 | N39: Unsuccessful | O39: 2018-12-07 | R39: H
D40: KOTAKBANK DEC 1260 CE | E40: Sell | F40: 23.5 | H40: 12 | K40: =F40-H40 -> 11.5 | R40: H
A41: 2 | B41: 2018-12-03 | D41: ADANIPORTS DEC FUT | E41: Sell | F41: 373 | G41: 382.5 | H41: 370 | I41: 360 | J41: Profit of Rs. 3 /- | K41: 3 | L41: 7500 | M41: 2500 | N41: Successful | O41: 2018-12-07 | R41: H
D42: ADANIPORTS DEC 360 PE | E42: Sell | F42: 9 | H42: 9 | K42: 0 | R42: H
A43: 3 | B43: 2018-12-07 | D43: NIFTY DEC FUT | E43: Sell | F43: 10657.5 | G43: 10786 | H43: 10575 | I43: 10400 | J43: Profit of Rs. 62.50 /- | K43: =F43-H43 -> 82.5 | L43: =M43*62.5 -> 4687.5 | M43: 75 | N43: Successful | O43: 2018-12-10 | R43: H
D44: NIFTY DEC 10500 PE | E44: Sell | F44: 125 | H44: 145 | K44: =F44-H44 -> -20 | R44: H
A45: 4 | B45: 2018-12-17 | D45: ADANIPORTS DEC FUT | E45: Sell | F45: 375.5 | G45: 382.5 | H45: 371.5 | I45: 360 | J45: Profit of Rs. 3 /- | K45: =F45-H45 -> 4 | L45: 7500 | M45: 2500 | N45: Successful | O45: 2018-12-17 | R45: H
D46: ADANIPORTS DEC 370 PE | E46: Sell | F46: 6.5 | H46: 7.5 | K46: =F46-H46 -> -1 | R46: H
A47: 5 | B47: 2018-12-18 | D47: COLPAL DEC FUT | E47: Sell | F47: 1312 | G47: 1335 | H47: 1335 | I47: 1260 | J47: Loss of Rs. 14.5 /- | K47: =F47-G47 -> -23 | L47: =-(700*14.5) -> -10150 | M47: 700 | N47: Unsuccessful | O47: 2018-12-19 | R47: H
D48: COLPAL DEC 1280 PE | E48: Sell | F48: 12 | H48: 3.5 | K48: =F48-H48 -> 8.5 | R48: H
A49: 6 | B49: 2018-12-19 | D49: ADANIPORTS DEC FUT | E49: Sell | F49: 375.5 | G49: 382.5 | H49: 371.5 | I49: 365 | J49: Profit of Rs. 3.5 /- | K49: =F49-H49 -> 4 | L49: =M49*3.5 -> 8750 | M49: 2500 | N49: Successful | O49: 2018-12-19 | R49: H
D50: ADANIPORTS DEC 370 PE | E50: Sell | F50: 5.25 | H50: 5.75 | K50: =F50-H50 -> -0.5 | R50: H
A51: 7 | B51: 2018-12-19 | D51: ADANIPORTS DEC FUT | E51: Sell | F51: 376.5 | G51: 382.5 | H51: 369.5 | I51: 365 | J51: Profit of Rs. 4.75 /- | K51: =F51-H51 -> 7 | L51: =M51*4.75 -> 11875 | M51: 2500 | N51: Successful | O51: 2018-12-21 | R51: H
D52: ADANIPORTS DEC 370 PE | E52: Sell | F52: 4.5 | H52: 6.75 | K52: =F52-H52 -> -2.25 | R52: H
A53: 8 | B53: 2018-12-26 | D53: NIFTY JAN FUT | E53: Buy | F53: 10582.5 | G53: 10440 | H53: 10672.5 | I53: 10800 | J53: Profit of Rs. 57.50 /- | K53: =H53-F53 -> 90 | L53: =M53*57.5 -> 4312.5 | M53: 75 | N53: Successful | O53: 2018-12-26 | R53: H
D54: Nifty JAN 10700 CE | E54: Sell | F54: 160 | H54: 192.5 | K54: =F54-H54 -> -32.5 | R54: H
A57: Master Trade Medium Risk
A58: Sr.no | B58: Date | D58: Company | E58: Rec | F58: Rec Price | G58: Stop Loss | H58: Call Closed At | I58: Target | J58: Remark | K58: Profit/ Loss per lot | L58: Gain / Loss per Lot | M58: Lot | N58: Status | O58: Closed Date
A59: 1 | B59: 2018-12-03 | D59: Nifty DEC 10900 PE | E59: Buy | F59: 180 | H59: 222.5 | J59: Profit of Rs 18.5/- | K59: =H59-F59 -> 42.5 | L59: =75*20 -> 1500 | M59: 75 | N59: Successful | O59: 2018-12-05 | R59: H
D60: Nifty DEC 10700 PE | E60: Sell | F60: 115 | H60: 139 | K60: =F60-H60 -> -24 | R60: H
A61: 2 | B61: 2018-12-04 | D61: ITC DEC 285 CE | E61: Buy | F61: 5.5-6 | J61: Open | R61: H
D62: ITC DEC 290 CE | E62: Sell | F62: 4-4.5 | R62: H
A63: 3 | B63: 2018-12-26 | D63: NIFTY DEC 10600 CE | E63: Buy | F63: 37 | H63: 59.5 | I63: 100 | J63: Profit of Rs.22.5/- | K63: =H63-F63 -> 22.5 | L63: =M63*K63 -> 1687.5 | M63: 75 | N63: Successful | O63: 2018-12-26 | R63: R
A64: 4 | B64: 2018-12-26 | D64: BANKNIFTY DEC 26600 CE | E64: Buy | F64: 72.5 | H64: 111 | I64: 200 | J64: Profit of Rs.38.5/- | K64: =H64-F64 -> 38.5 | L64: =M64*K64 -> 770 | M64: 20 | N64: Successful | O64: 2018-12-26 | R64: R
B75: Smart Delivery Trade
A76: Sr.no | B76: Date | D76: Company | E76: Rec | F76: Rec Price | G76: Stop Loss*** | H76: Call Closed At | I76: Target | J76: Remark | K76: Profit / Loss per Share | L76: Gain / Loss % | M76: Status | N76: Closed Date | O76: NSE Closed Price
A77: 1 | B77: 2018-11-27 | D77: MGL | E77: Buy | F77: 818.5 | G77: 793.7 | H77: 847.5 | I77: 860-870 | J77: Profit of Rs.29/- | K77: =H77-F77 -> 29 | L77: =K77/F77 -> 3.54% | M77: Successful | N77: 2018-12-03 | R77: R
A78: 2 | B78: 2018-11-28 | D78: ESCORTS | E78: Buy | F78: 691 | G78: 669 | H78: 716.5 | I78: 725-735 | J78: Profit of Rs.25.5/- | K78: =H78-F78 -> 25.5 | L78: =K78/F78 -> 3.69% | M78: Successful | N78: 2018-12-03 | R78: R
A79: 3 | B79: 2018-11-28 | D79: RELIANCE | E79: Sell | F79: 1152.5 | G79: 1186 | H79: 1152.5 | I79: 1100-1090 | J79: Neutral | K79: =F79-H79 -> 0 | L79: 0.00% | M79: Neutral | N79: 2018-12-05 | R79: H
A80: 4 | B80: 2018-11-30 | D80: BAJAJ-AUTO | E80: Buy | F80: 2760 | G80: 2680 | H80: 2837 | I80: 2870-2900 | J80: Profit of Rs.77/- | K80: =H80-F80 -> 77 | L80: 2.79% | M80: Successful | N80: 2018-12-12 | R80: H
A81: 5 | B81: 2018-12-03 | D81: PVR | E81: Sell | F81: 1454 | G81: 1505 | H81: 1505 | I81: 1370-1350 | J81: Loss of Rs.51/- | K81: =F81-H81 -> -51 | L81: =K81/F81 -> -3.51% | M81: Unsuccessful | N81: 2018-12-03 | R81: H
A82: 6 | B82: 2018-12-07 | D82: TATASTEEL | E82: Buy | F82: 516 | G82: 495 | H82: 529.5 | I82: 550 | J82: Profit of Rs.13.5/- | K82: =H82-F82 -> 13.5 | L82: 2.62% | M82: Successful | N82: 2018-12-19 | R82: H
A83: 7 | B83: 2018-12-07 | D83: RAMCOCEM | E83: Buy | F83: 597.5 | G83: 580 | H83: 615 | I83: 635-640 | J83: Profit of Rs.17.5/- | K83: =H83-F83 -> 17.5 | L83: =K83/F83 -> 2.93% | M83: Successful | N83: 2018-12-12 | R83: R
A84: 8 | B84: 2018-12-10 | D84: CONCOR | E84: Buy | F84: 648 | G84: 627.7 | H84: 679 | I84: 680-690 | J84: Profit of Rs.31/- | K84: =H84-F84 -> 31 | L84: =K84/F84 -> 4.78% | M84: Successful | N84: 2018-12-10 | R84: R
A85: 9 | B85: 2018-12-12 | D85: LUPIN | E85: Buy | F85: 817.5 | G85: 788.7 | H85: 811 | I85: 865-875 | J85: Neutral | K85: -6.5 | L85: -0.80% | M85: Neutral | N85: 2018-12-13 | R85: R
A86: 10 | B86: 2018-12-17 | D86: TVSMOTOR | E86: Buy | F86: 574 | G86: 548 | H86: 577.5 | I86: 600-610 | J86: Neutral | K86: =H86-F86 -> 3.5 | L86: =K86/F86 -> 0.61% | M86: Neutral | N86: 2018-12-21 | R86: H
A87: 11 | B87: 2018-12-18 | D87: BAJFINANCE | E87: Sell | F87: 2455 | G87: 2525.25 | H87: 2525.25 | I87: 2320-2300 | J87: Loss of Rs.70.25/- | K87: =F87-H87 -> -70.25 | L87: =K87/F87 -> -2.86% | M87: Unsuccessful | N87: 2018-12-18 | R87: R
A88: 12 | B88: 2018-12-18 | D88: BHEL | E88: Sell | F88: 69.85 | G88: 72 | H88: 71.75 | I88: 66 | J88: Loss of Rs.1.9/- | K88: =F88-H88 -> -1.9 | L88: =K88/F88 -> -2.72% | M88: Unsuccessful | N88: 2018-12-24 | R88: H
A89: 13 | B89: 2018-12-19 | D89: BIOCON | E89: Buy | F89: 635 | G89: 615 | H89: 612.5 | I89: 670-680 | J89: Loss of Rs.22.5/- | K89: =H89-F89 -> -22.5 | L89: -3.54% | M89: Unsuccessful | N89: 2018-12-24 | R89: H
A90: 14 | B90: 2018-12-20 | D90: AUROPHARMA | E90: Buy | F90: 730-735 | G90: 709.3 | I90: 775-785 | J90: Open | O90: =VLOOKUP(D90,Sheet2!A74:M1569,6,0) -> 718.5 | R90: R
A91: 15 | B91: 2018-12-24 | D91: RELIANCE | E91: Buy | F91: 1090-1096 | G91: 1057 | I91: 1150-1180 | J91: Open | O91: =VLOOKUP(D91,Sheet2!A75:M1570,6,0) -> 1098.35 | R91: H
A92: 16 | B92: 2018-12-26 | D92: ACC | E92: Buy | F92: 1438-1448 | G92: 1395 | I92: 1510-1530 | J92: Open | O92: =VLOOKUP(D92,Sheet2!A1:N1633,6,0) -> 1479.4 | R92: H
A93: 17 | B93: 2018-12-26 | D93: TITAN | E93: Buy | F93: 885-890 | G93: 858.8 | I93: 935-945 | J93: Open | O93: =VLOOKUP(D93,Sheet2!A77:M1572,6,0) -> 889.15 | R93: R
A94: 18 | B94: 2018-12-26 | D94: ADANIPORTS | E94: Sell | F94: 374-375 | G94: 386.6 | I94: 350-355 | J94: Open | O94: =VLOOKUP(D94,Sheet2!A3:N1635,6,0) -> 376.55 | R94: R
A96: CLBS = Closing Basis *** | F96: Reinitiated $
A97: Dividend adjusted <> | F97: Revised stoploss #
B100: Momentum Call
A101: Sr.no | B101: Date | D101: Company | E101: Rec | F101: Rec Price | G101: Stop Loss | H101: Call Closed At | I101: Target | J101: Remark | K101: Profit / Loss per Share/Lot | L101: Gain / Loss % | M101: Gain / Loss per Lot | N101: Lot | O101: Status | P101: Closed Date
A102: 1 | B102: 2018-11-29 | D102: AMARAJABAT DEC FUT | E102: Buy | F102: 723.5 | G102: 705 | H102: 705 | I102: 750 | J102: Loss of Rs.18.5/- | K102: =H102-F102 -> -18.5 | M102: =N102*K102 -> -11100 | N102: 600 | O102: Unsuccessful | P102: 2018-12-03 | R102: N
A103: 2 | B103: 2018-11-30 | D103: TATASTEEL | E103: Buy | F103: 534 | G103: 517 | H103: 549.5 | I103: 555-560 | J103: Profit of Rs.15.5/- | K103: =H103-F103 -> 15.5 | L103: =K103/F103 -> 2.90% | O103: Successful | P103: 2018-12-03 | R103: H
A104: 3 | B104: 2018-11-30 | D104: PIDILITIND DEC FUT | E104: Sell | F104: 1171 | G104: 1195 | H104: 1156.5 | I104: 1140-1130 | J104: Profit of Rs.14.5/- | K104: =F104-H104 -> 14.5 | M104: =N104*K104 -> 7250 | N104: 500 | O104: Successful | P104: 2018-12-03 | R104: H
A105: 4 | B105: 2018-12-03 | D105: UPL | E105: Buy | F105: 749 | G105: 737 | H105: 739.5 | I105: 774 | J105: Loss of Rs.9.5/- | K105: =H105-F105 -> -9.5 | M105: -11400 | N105: 1200 | O105: Unsuccessful | P105: 2018-12-03 | R105: N
A106: 5 | B106: 2018-12-03 | D106: ICICIBANK DEC FUT | E106: Sell | F106: 357.25 | G106: 362 | H106: 356 | I106: 348-346 | J106: Profit of Rs.1.25/- | K106: =F106-H106 -> 1.25 | M106: 3437.5 | N106: 2750 | O106: Neutral | P106: 2018-12-05 | R106: H
A107: 6 | B107: 2018-12-04 | D107: DRREDDY DEC FUT | E107: Sell | F107: 2721 | G107: 2760 | H107: 2692 | I107: 2650 | J107: Profit of Rs.29/- | K107: =F107-H107 -> 29 | M107: =N107*K107 -> 7250 | N107: 250 | O107: Successful | P107: 2018-12-05 | R107: R
A108: 7 | B108: 2018-12-04 | D108: TCS DEC FUT | E108: Buy | F108: 2005 | G108: 1945 | H108: 2030 | I108: 2080-2100 | J108: Profit of Rs.25/- | K108: =H108-F108 -> 25 | M108: =N108*K108 -> 6250 | N108: 250 | O108: Successful | P108: 2018-12-13 | R108: H
A109: 8 | B109: 2018-12-04 | D109: TATACHEM DEC FUT | E109: Buy | F109: 688 | G109: 673 | H109: 673 | I109: 710 | J109: Loss of Rs.15/- | K109: =H109-F109 -> -15 | M109: =N109*K109 -> -11250 | N109: 750 | O109: Unsuccessful | P109: 2018-12-05 | R109: N
A110: 9 | B110: 2018-12-04 | D110: AUROPHARMA DEC FUT | E110: Buy | F110: 824.5 | G110: 813 | H110: 813 | I110: 845-850 | J110: Loss of Rs.11.5/- | K110: =H110-F110 -> -11.5 | M110: =N110*K110 -> -11500 | N110: 1000 | O110: Unsuccessful | P110: 2018-12-05 | R110: H
A111: 10 | B111: 2018-12-05 | D111: DIVISLAB DEC FUT | E111: Sell | F111: 1507.5 | G111: 1532 | H111: 1486.5 | I111: 1460 | J111: Profit of Rs.21/- | K111: =F111-H111 -> 21 | M111: =N111*K111 -> 8400 | N111: 400 | O111: Successful | P111: 2018-12-05 | R111: R
A112: 11 | B112: 2018-12-05 | D112: PIDILITIND DEC FUT | E112: Sell | F112: 1171.5 | G112: 1192 | H112: 1145 | I112: 1130 | J112: Profit of Rs.26.5/- | K112: 26.5 | M112: =N112*K112 -> 10600 | N112: 400 | O112: Successful | P112: 2018-12-05 | R112: R
A113: 12 | B113: 2018-12-07 | D113: DRREDDY DEC FUT | E113: Sell | F113: 2707.5 | G113: 2747 | H113: 2674.5 | I113: 2630 | J113: Profit of Rs.33/- | K113: 33 | M113: 8250 | N113: 250 | O113: Successful | P113: 2018-12-07 | R113: R
A114: 13 | B114: 2018-12-07 | D114: BATAINDIA DEC FUT | E114: Sell | F114: 1062 | G114: 1083 | H114: 1037.5 | I114: 1020 | J114: Profit of Rs.24.5/- | K114: 24.5 | M114: =N114*K114 -> 13475 | N114: 550 | O114: Successful | P114: 2018-12-10 | R114: R
A115: 14 | B115: 2018-12-13 | D115: NIFTY DEC FUT | E115: Sell | F115: 10835 | G115: 10930 | H115: 10785 | I115: 10750-10700 | J115: Profit of Rs.50/- | K115: 50 | M115: 3750 | N115: 75 | O115: Successful | P115: 2018-12-13 | R115: H
A116: 15 | B116: 2018-12-13 | D116: BANKNIFTY DEC FUT | E116: Sell | F116: 26980 | G116: 27250 | H116: 26880 | I116: 26400 | J116: Profit of Rs.100/- | K116: 100 | M116: =N116*K116 -> 2000 | N116: 20 | O116: Successful | P116: 2018-12-13 | R116: H
A117: 16 | B117: 2018-12-14 | D117: NIFTY DEC FUT | E117: Sell | F117: 10800 | G117: 10905 | H117: 10905 | I117: 10650 | J117: Loss of Rs.105/- | K117: =F117-H117 -> -105 | M117: -7875 | N117: 75 | O117: Unsuccessful | P117: 2018-12-17 | R117: H
A118: 17 | B118: 2018-12-14 | D118: BATAINDIA DEC FUT | E118: Sell | F118: 1079 | G118: 1102 | H118: 1102 | I118: 1050-1040 | J118: Loss of Rs.23/- | K118: =F118-H118 -> -23 | M118: =N118*K118 -> -12650 | N118: 550 | O118: Unsuccessful | P118: 2018-12-18 | R118: R
A119: 18 | B119: 2018-12-14 | D119: PEL DEC FUT | E119: Sell | F119: 2155 | G119: 2191.3 | H119: 2132.5 | I119: 2100 | J119: Profit of Rs.22.5/- | K119: =F119-H119 -> 22.5 | M119: =N119*K119 -> 6795 | N119: 302 | O119: Successful | P119: 2018-12-14 | R119: R
A120: 19 | B120: 2018-12-17 | D120: NIITTECH DEC FUT | E120: Buy | F120: 1129 | G120: 1113 | H120: 1140 | I120: 1160 | J120: Profit of Rs.11/- | K120: =H120-F120 -> 11 | M120: 8250 | N120: 750 | O120: Successful | P120: 2018-12-17 | R120: R
A121: 20 | B121: 2018-12-17 | D121: GODREJIND DEC FUT | E121: Buy | F121: 541 | G121: 533 | H121: 549 | I121: 555 | J121: Profit of Rs.8/- | K121: =H121-F121 -> 8 | M121: =N121*K121 -> 12000 | N121: 1500 | O121: Successful | P121: 2018-12-17 | R121: N
A122: 21 | B122: 2018-12-18 | D122: BALKRISIND DEC FUT | E122: Buy | F122: 939 | G122: 922 | H122: 951.5 | I122: 968 | J122: Profit of Rs.12.5/- | K122: =H122-F122 -> 12.5 | M122: =N122*K122 -> 10000 | N122: 800 | O122: Successful | P122: 2018-12-20 | R122: R
A123: 22 | B123: 2018-12-18 | D123: HEROMOTOCO DEC FUT | E123: Sell | F123: 3270 | G123: 3325 | H123: 3325 | I123: 3180-3160 | J123: Loss of Rs.55/- | K123: =F123-H123 -> -55 | M123: =N123*K123 -> -11000 | N123: 200 | O123: Unsuccessful | P123: 2018-12-19 | R123: R
A124: 23 | B124: 2018-12-18 | D124: AJANTPHARM DEC FUT | E124: Buy | F124: 1096.5 | G124: 1074 | H124: 1118.5 | I124: 1140 | J124: Profit of Rs.22/- | K124: =H124-F124 -> 22 | M124: =N124*K124 -> 11000 | N124: 500 | O124: Successful | P124: 2018-12-18 | R124: N
A125: 24 | B125: 2018-12-18 | D125: VOLTAS DEC FUT | E125: Sell | F125: 562 | G125: 574 | H125: 571 | I125: 542 | J125: Loss of Rs.9/- | K125: =F125-H125 -> -9 | M125: -9000 | N125: 1000 | O125: Unsuccessful | P125: 2018-12-19 | R125: R
A126: 25 | B126: 2018-12-19 | D126: AMARAJABAT DEC FUT | E126: Buy | F126: 733 | G126: 716 | H126: 743 | I126: 760 | J126: Profit of Rs.10/- | K126: =H126-F126 -> 10 | M126: =N126*K126 -> 7000 | N126: 700 | O126: Successful | P126: 2018-12-19 | R126: N
A127: 26 | B127: 2018-12-19 | D127: MCDOWELL-N DEC FUT | E127: Buy | F127: 651 | G127: 641 | H127: 642.5 | I127: 672 | J127: Loss of Rs.8.5/- | K127: =H127-F127 -> -8.5 | M127: =N127*K127 -> -10625 | N127: 1250 | O127: Unsuccessful | P127: 2018-12-19 | R127: N
A128: 27 | B128: 2018-12-19 | D128: SBIN DEC FUT | E128: Buy | F128: 300.5 | G128: 296.5 | H128: 296.5 | I128: 310 | J128: Loss of Rs.4/- | K128: =H128-F128 -> -4 | M128: =N128*K128 -> -12000 | N128: 3000 | O128: Unsuccessful | P128: 2018-12-20 | R128: H
A129: 28 | B129: 2018-12-20 | D129: NIITTECH DEC FUT | E129: Buy | F129: 1141 | G129: 1125 | H129: 1125 | I129: 1175 | J129: Loss of Rs.16/- | K129: =H129-F129 -> -16 | M129: =N129*K129 -> -12000 | N129: 750 | O129: Unsuccessful | P129: 2018-12-21 | R129: R
A130: 29 | B130: 2018-12-20 | D130: GODREJIND DEC FUT | E130: Buy | F130: 540 | G130: 532 | H130: 547 | I130: 555 | J130: Profit of Rs.7/- | K130: =H130-F130 -> 7 | M130: =N130*K130 -> 10500 | N130: 1500 | O130: Successful | P130: 2018-12-21 | R130: N
A131: 30 | B131: 2018-12-20 | D131: INFRATEL DEC FUT | E131: Sell | F131: 263.5 | G131: 271 | H131: 259.5 | I131: 250 | J131: Profit of Rs.4/- | K131: =F131-H131 -> 4 | M131: =N131*K131 -> 6800 | N131: 1700 | O131: Successful | P131: 2018-12-21 | R131: N
A132: 31 | B132: 2018-12-20 | D132: COLPAL DEC FUT | E132: Sell | F132: 1325 | G132: 1341 | H132: 1313 | I132: 1300 | J132: Profit of Rs.12/- | K132: =F132-H132 -> 12 | M132: 8400 | N132: 700 | O132: Successful | P132: 2018-12-24 | R132: R
A133: 32 | B133: 2018-12-21 | D133: BATAINDIA DEC FUT | E133: Sell | F133: 1103 | G133: 1125 | H133: 1125 | I133: 1060-1050 | J133: Loss of Rs.22/- | K133: =F133-H133 -> -22 | M133: =N133*K133 -> -12100 | N133: 550 | O133: Unsuccessful | P133: 2018-12-21 | R133: R
A134: 33 | B134: 2018-12-21 | D134: TATASTEEL DEC FUT | E134: Sell | F134: 523 | G134: 534 | H134: 515.5 | I134: 500 | J134: Profit of Rs.7.5/- | K134: =F134-H134 -> 7.5 | M134: 7957.5 | N134: 1061 | O134: Successful | P134: 2018-12-24 | R134: R
A135: 34 | B135: 2018-12-21 | D135: HEROMOTOCO JAN FUT | E135: Sell | F135: 3340 | G135: 3410 | H135: 3245 | I135: 3250 | J135: Profit of Rs.95/- | K135: =F135-H135 -> 95 | M135: =N135*K135 -> 19000 | N135: 200 | O135: Successful | P135: 2018-12-24 | R135: H
A136: 35 | B136: 2018-12-24 | D136: EXIDEIND DEC FUT | E136: Buy | F136: 262.5 | G136: 256.5 | H136: 256 | I136: 275 | J136: Loss of Rs.6.5/- | K136: =H136-F136 -> -6.5 | M136: -13000 | N136: 2000 | O136: Unsuccessful | P136: 2018-12-26 | R136: N
A137: 36 | B137: 2018-12-24 | D137: GODREJIND DEC FUT | E137: Buy | F137: 521 | G137: 514 | H137: 514 | I137: 535 | J137: Loss of Rs.7/- | K137: =H137-F137 -> -7 | M137: =N137*K137 -> -10500 | N137: 1500 | O137: Unsuccessful | P137: 2018-12-26 | R137: R
A138: 37 | B138: 2018-12-26 | D138: JUBLFOOD DEC FUT | E138: Buy | F138: 1157.5 | G138: 1138 | H138: 1183 | I138: 1190 | J138: Profit of Rs.25.5/- | K138: 25.5 | M138: 12750 | N138: 500 | O138: Successful | P138: 2018-12-26 | R138: R
A139: 38 | B139: 2018-12-26 | D139: MCDOWELL-N | E139: Buy | F139: 611 | G139: 595 | H139: 620.5 | I139: 640-645 | J139: Profit of Rs.9.5/- | K139: 9.5 | L139: =K139/F139 -> 1.55% | O139: Successful | P139: 2018-12-26 | R139: H
A140: 39 | B140: 2018-12-26 | D140: AMARAJABAT JAN FUT | E140: Buy | F140: 739-741 | G140: 724 | I140: 770 | J140: Open | R140: N
A145: CLBS = Closing Basis ***
A146: Dividend adjusted <> | F146: Reinitiated $
F147: Revised stoploss #
B148: Quick Pick Intraday
A149: Sr.no | B149: Date | D149: Company | E149: Rec | F149: Rec Price | G149: Stop Loss*** | H149: Call Closed At | I149: Target | J149: Remark | K149: Profit / Loss per Share | L149: Status | M149: Closed Date
A163: Techno -Funda (positional)
A164: Sr.no | B164: Date | D164: Company | E164: Rec | F164: Rec Price | G164: Stop Loss*** | H164: Call Closed At | I164: Target | J164: Remark | K164: Profit / Loss per Share | L164: Gain / Loss % | M164: Status | N164: Closed Date | O164: NSE Closed Price
A167: CLBS = Closing Basis *** | F167: Reinitiated $
A168: Dividend adjusted <> | F168: Revised stoploss #
B173: Investment Idea
A174: Sr.no | B174: Date | D174: Company | E174: Rec | F174: Rec Price | G174: Point of Review | H174: Close Rate | I174: Target | J174: Remark | K174: Profit / Loss per Share | L174: Gain / Loss % | M174: Status | N174: Closed Date
A175: 1 | B175: 2013-11-01 | D175: L&T Finance Holding | E175: Accu | F175: 82.00 | G175: - | H175: 100 | I175: 100.00 | J175: Target Achieved | K175: =H175-F175 -> 18.00 | L175: =K175/F175 -> 21.95% | M175: Successful | N175: 2016-10-14
A176: 2 | B176: 2014-06-04 | D176: Finolex Inds | E176: Buy | F176: 257.00 | G176: - | H176: 300 | I176: 300.00 | J176: Target Achieved | K176: =H176-F176 -> 43.00 | L176: 16.73% | M176: Successful | N176: 2014-07-02
A177: =1+A176 -> 3 | B177: 2014-07-08 | D177: JK Cement | E177: Buy | F177: 393.00 | G177: - | H177: 468 | I177: 468.00 | J177: Target Achieved | K177: =H177-F177 -> 75.00 | L177: 19.08% | M177: Successful | N177: 2014-08-12
A178: 4 | B178: 2014-08-06 | D178: Finolex Cables | E178: Buy | F178: 205.00 | G178: - | H178: 275 | I178: 250.00 | J178: Target Achieved | K178: 70.00 | L178: 34.15% | M178: Successful | N178: 2014-11-19
A179: 5 | B179: 2014-09-04 | D179: Exide Inds | E179: Buy | F179: 162.00 | G179: - | H179: 190 | I179: 190.00 | J179: Target Achieved | K179: 28.00 | L179: 17.28% | M179: Successful | N179: 2015-01-02
A180: 6 | B180: 2014-09-04 | D180: Deepak Nitrite | E180: Buy | F180: 75.00 | G180: - | H180: 91.5 | I180: 95-100 | J180: Profit of Rs.16.50/- | K180: 16.50 | L180: 22.00% | M180: Successful | N180: 2014-11-11
A181: 7 | B181: 2014-10-01 | D181: Mercks | E181: Buy | F181: 850.00 | G181: - | H181: 982.5 | I181: 1050.00 | J181: Profit of Rs.132.50/- | K181: 132.50 | L181: 15.59% | M181: Successful | N181: 2015-02-04
A182: 8 | B182: 2014-10-01 | D182: Grindwell Norton | E182: Buy | F182: 475.00 | G182: - | H182: 515 | I182: 600.00 | J182: Profit of Rs.40/- | K182: 40.00 | L182: 8.42% | M182: Successful | N182: 2014-10-27
A183: 9 | B183: 2014-10-01 | D183: Snowman Logistics | E183: Buy | F183: 86.00 | G183: - | H183: 99 | I183: 140.00 | J183: Profit of Rs.13.00/- | K183: 13.00 | L183: 15.12% | M183: Successful | N183: 2014-10-27
A184: 10 | B184: 2014-10-14 | D184: Birla Corp | E184: Buy | F184: 496.60 | G184: - | H184: 621 | I184: 580.00 | J184: Target Achieved | K184: 124.40 | L184: 25.05% | M184: Successful | N184: 2016-08-23
A185: 11 | B185: 2014-10-14 | D185: Ultratech Cem | E185: Buy | F185: 2481.90 | G185: - | H185: 2840 | I185: 2870.00 | J185: Profit of Rs.358.10/- | K185: 358.10 | L185: 14.43% | M185: Successful | N185: 2015-01-13
A186: =1+A183 -> 10 | B186: 2014-10-16 | D186: Sintex Inds | E186: Buy | F186: 84.50 | G186: - | H186: 93 | I186: 110.00 | J186: Profit of Rs.8.50/- | K186: 8.50 | L186: 10.06% | M186: Successful | N186: 2014-10-27
A187: =1+A186 -> 11 | B187: 2014-10-16 | D187: HSIL | E187: Buy | F187: 401.00 | G187: - | H187: 428 | I187: 450.00 | J187: Profit of Rs.27.00/- | K187: 27.00 | L187: 6.73% | M187: Successful | N187: 2015-01-16
A188: 12 | B188: 2014-10-16 | D188: Eveready Inds | E188: Buy | F188: 101.00 | G188: - | H188: 112 | I188: 120.00 | J188: Profit of Rs.11.00/- | K188: 11.00 | L188: 10.89% | M188: Successful | N188: 2014-10-27
A189: 13 | B189: 2014-11-11 | D189: Pennar Inds | E189: Buy | F189: 59.00 | G189: - | H189: 76 | I189: 76.00 | J189: Target Achieved | K189: 17.00 | L189: 28.81% | M189: Successful | N189: 2017-10-24
A190: 14 | B190: 2014-11-11 | D190: Snowman Logistics | E190: Buy | F190: 99.00 | G190: - | H190: 120 | I190: 120.00 | J190: Profit of Rs.21/- | K190: 21.00 | L190: 21.21% | M190: Successful | N190: 2014-11-17
A191: 15 | B191: 2014-11-13 | D191: Dharamsi Morarji Chem | E191: Buy | F191: 22.00 | G191: - | H191: 33.55 | I191: 32.00 | J191: Profit of Rs 11.55/- | K191: 11.55 | L191: 52.50% | M191: Successful | N191: 2015-07-03
A192: 16 | B192: 2014-12-03 | D192: Tatachem | E192: Buy | F192: 440.00 | G192: - | H192: 520 | I192: 520.00 | J192: Profit of Rs 80.00/- | K192: 80.00 | L192: 18.18% | M192: Successful | N192: 2015-07-23
A193: 17 | B193: 2014-12-03 | D193: Advanta | E193: Buy | F193: 360.00 | G193: - | H193: 427 | I193: 425.00 | J193: Profit of Rs.67.00/- | K193: 67.00 | L193: 18.61% | M193: Successful | N193: 2015-02-23
A194: 18 | B194: 2015-01-08 | D194: GDL | E194: Buy | F194: 360.00 | G194: - | H194: 455 | I194: 420.00 | J194: Profit of Rs.95.00/- | K194: 95.00 | L194: 26.39% | M194: Successful | N194: 2015-01-20
A195: 19 | B195: 2015-01-08 | D195: NRB Bearing | E195: Buy | F195: 130.00 | H195: 175.5 | I195: 165.00 | J195: Profit of Rs 45.50/- | K195: 45.50 | L195: 35.00% | M195: Successful | N195: 2017-12-19
A196: 20 | B196: 2015-02-05 | D196: GSFC | E196: Accu | F196: 98.00 | H196: 120 | I196: 120.00 | J196: Target Achieved | K196: 22.00 | L196: 22.45% | M196: Successful | N196: 2017-01-18
A197: 21 | B197: 2015-02-05 | D197: Sundrmfast | E197: Accu | F197: 196.00 | H197: 262 | I197: 255.00 | J197: Target Achieved | K197: 66.00 | L197: 33.67% | M197: Successful | N197: 2016-08-17
A198: 22 | B198: 2015-03-04 | D198: GPPL | E198: Accu | F198: 230-240 | I198: 280-285 | J198: Open
A199: 23 | B199: 2015-03-04 | D199: ORIENTCEM | E199: Accu | F199: 185.00 | H199: 224 | I199: 220-225 | J199: Target Achieved | K199: 39.00 | L199: =K199/F199 -> 21.08% | M199: Successful | N199: 2016-10-04
A200: 24 | B200: 2015-03-27 | D200: PFS | E200: Accu | F200: 49-50 | I200: 67.00 | J200: Open
A201: 25 | B201: 2015-03-30 | D201: Walchandnagar Ind Ltd | E201: Accu | F201: 183.50 | H201: 219 | I201: 218.00 | J201: Profit of Rs.35.50/- | K201: 35.50 | L201: =K201/F201 -> 19.35% | M201: Successful | N201: 2015-04-09
A202: 26 | B202: 2015-04-20 | D202: Kalpataru Power Transmission Ltd | E202: Accu | F202: =(227+237)/2 -> 232.00 | H202: 298 | I202: 298.00 | J202: Target Achieved | K202: 66.00 | L202: 28.45% | M202: Successful | N202: 2017-03-29
A203: 27 | B203: 2015-05-04 | D203: Mastek Ltd | E203: Buy | F203: 385.00 | H203: =212.5+331 -> 543.5 | I203: 510.00 | J203: Profit of Rs 158.50/- | K203: 158.50 | L203: 41.17% | M203: Successful | N203: 2015-08-19
A204: 28 | B204: 2015-05-04 | D204: Suprajit Eng | E204: Buy | F204: 115.50 | H204: 146 | I204: 142.00 | J204: Profit of Rs 30.50/- | K204: 30.50 | L204: 26.41% | M204: Successful | N204: 2015-07-17
A205: 29 | B205: 2015-05-27 | D205: TCI | E205: Buy | F205: 237.50 | H205: 279.5 | I205: 278.00 | J205: Target Achieved | K205: 42.00 | L205: 17.68% | M205: Successful | N205: 2015-08-06
A206: 30 | B206: 2015-06-19 | D206: HSIL | E206: Accu | F206: 340.00 | H206: 448 | I206: 448.00 | J206: Target Achieved | K206: 108.00 | L206: 31.76% | M206: Successful | N206: 2017-10-10
A207: 31 | B207: 2015-07-06 | D207: Capital First | E207: Accu | F207: 390.00 | H207: 460 | I207: 460.00 | J207: Target Achieved | K207: 70.00 | L207: 17.95% | M207: Successful | N207: 2016-04-18
A208: 32 | B208: 2015-07-10 | D208: Dolphin OffShore | E208: Accu | F208: 122.5 | H208: 61.00 | I208: 172.00 | J208: Loss of Rs.61.50/- | K208: -61.50 | L208: -50.20% | M208: Unsuccessful | N208: 2018-08-21
A209: 33 | B209: 2015-08-03 | D209: Allcargo logistics | E209: Accu | F209: 297.50 | H209: 350 | I209: 360.00 | J209: Profit of Rs 52.50/- | K209: 52.50 | L209: =K209/F209 -> 17.65% | M209: Successful | N209: 2015-08-16
A210: 34 | B210: 2015-08-03 | D210: Camline Fine | E210: Accu | F210: 115.50 | H210: 149 | I210: 140.00 | J210: Profit of Rs 33.50/- | K210: 33.50 | L210: 29.00% | M210: Successful | N210: 2017-01-05
A211: 35 | B211: 2015-09-04 | D211: TCI | E211: Accu | F211: 226.00 | H211: 292 | I211: 292.00 | J211: Target Achieved | K211: 66.00 | L211: 29.20% | M211: Successful | N211: 2015-10-09
A212: 36 | B212: 2015-09-07 | D212: Kalpataru Power Transmission Ltd | E212: Accu | F212: 232.50 | H212: 312.5 | I212: 310.00 | J212: Target Achieved | K212: 80.00 | L212: 34.41% | M212: Successful | N212: 2017-03-29
A213: 37 | B213: 2015-09-21 | D213: LLOYD ELECTRIC & ENG LTD | E213: Accu | F213: 196.50 | H213: 238 | I213: 238.00 | J213: Target Achieved | K213: 41.50 | L213: 21.12% | M213: Successful | N213: 2015-10-14
A214: 38 | B214: 2015-09-24 | D214: L&T Finance Holding | E214: Accu | F214: 65.00 | H214: 82 | I214: 82.00 | J214: Target Achieved | K214: 17.00 | L214: 26.15% | M214: Successful | N214: 2016-07-27
A215: 39 | B215: 2015-10-14 | D215: KEC International ltd | E215: Accu | F215: 144.00 | H215: 182.5 | I215: 181.00 | J215: Target Achieved | K215: 38.50 | L215: 26.74% | M215: Successful | N215: 2017-03-23
A216: 40 | B216: 2015-10-14 | D216: Gruh Finance | E216: Accu | F216: 264.00 | H216: 311 | I216: 311.00 | J216: Target Achieved | K216: 47.00 | L216: 17.80% | M216: Successful | N216: 2016-08-22
A217: 41 | B217: 2015-11-10 | D217: Pidilitind | E217: Buy | F217: 549.50 | H217: 630 | I217: 630.00 | J217: Target Achieved | K217: 80.50 | L217: 14.65% | M217: Successful | N217: 2016-02-19
A218: 42 | B218: 2015-12-04 | D218: Zensar Technology | E218: Accu | F218: 1027.50 | H218: 1315 | I218: 1250.00 | J218: Target Achieved | K218: =H218-F218 -> 287.50 | L218: 27.98% | M218: Successful | N218: 2018-05-24
A219: 43 | B219: 2015-12-29 | D219: Vinati Organics Ltd | E219: Accu | F219: 465.00 | H219: 540 | I219: 540.00 | J219: Target Achieved | K219: 75.00 | L219: =K219/F219 -> 16.13% | M219: Successful | N219: 2016-06-09
A220: 44 | B220: 2016-01-11 | D220: GSFC | E220: Buy | F220: 81.00 | H220: 110 | I220: 110.00 | J220: Target Achieved | K220: 29.00 | L220: 35.80% | M220: Successful | N220: 2017-01-10
A221: 45 | B221: 2016-01-13 | D221: SSWL | E221: Buy | F221: 417.50 | H221: 547 | I221: 535.00 | J221: Target Achieved | K221: 129.50 | L221: 31.02% | M221: Successful | N221: 2016-07-27
A222: 46 | B222: 2016-02-08 | D222: Persistent System Ltd | E222: Accu | F222: 650.00 | H222: 800 | I222: 800.00 | J222: Target Achieved | K222: 150.00 | L222: 23.08% | M222: Successful | N222: 2018-02-23
A223: 47 | B223: 2016-03-04 | D223: UPL | E223: Accu | F223: 437.50 | H223: 504.5 | I223: 522.00 | J223: Profit of Rs.67/- | K223: 67.00 | L223: 15.31% | M223: Successful | N223: 2016-04-20
A224: 48 | B224: 2016-03-09 | D224: Ashoka Buildcon Ltd | E224: Accu | F224: 189.50 | H224: 218 | I224: 218.00 | J224: Target Achieved | K224: 28.50 | L224: 15.04% | M224: Successful | N224: 2017-10-26
A225: 49 | B225: 2016-04-11 | D225: PTC INDIA FIN SERV LTD | E225: Accu | F225: 36-37 | I225: 60.00 | J225: Open
A226: 50 | B226: 2016-04-12 | D226: CAMLINFINE $ | E226: Accu | F226: 93.00 | H226: 149 | I226: 140.00 | J226: Profit of Rs 56/- | K226: 56.00 | L226: =K226/F226 -> 60.22% | M226: Successful | N226: 2017-01-05
A227: 51 | B227: 2016-04-12 | D227: Greaves Cotton Ltd. | E227: Accu | F227: 130.00 | H227: 150 | I227: 150-155 | J227: Target Achieved | K227: 20.00 | L227: 15.38% | M227: Successful | N227: 2016-07-13
A228: 52 | B228: 2016-04-13 | D228: DHFL | E228: Accu | F228: 196.00 | H228: 299 | I228: 299.00 | J228: Target Achieved | K228: 103.00 | L228: 52.55% | M228: Successful | N228: 2016-09-07
A229: 53 | B229: 2016-04-13 | D229: Magma | E229: Accu | F229: 88.00 | H229: 103 | I229: 103.00 | J229: Target Achieved | K229: 15.00 | L229: 17.05% | M229: Successful | N229: 2016-06-09
A230: 54 | B230: 2016-05-02 | D230: KEC International ltd $ | E230: Accu | F230: 127.50 | H230: 148 | I230: 148-150 | J230: Target Achieved | K230: 20.50 | L230: 16.08% | M230: Successful | N230: 2016-07-13
A231: 55 | B231: 2016-05-03 | D231: Mindtree | E231: Accu | F231: 675.00 | H231: 815 | I231: 790-800 | J231: Target Achieved | K231: 140.00 | L231: 20.74% | M231: Successful | N231: 2018-02-23
A232: 56 | B232: 2016-06-01 | D232: Atulauto | E232: Accu | F232: 495-505 | I232: 565-570 | J232: Open
A233: 57 | B233: 2016-06-06 | D233: TRITURBINE | E233: Accu | F233: 110.00 | H233: 126.5 | I233: 125.00 | J233: Profit of Rs.16.50/- | K233: 16.50 | L233: =K233/F233 -> 15.00% | M233: Successful | N233: 2016-07-01
A234: 58 | B234: 2016-06-17 | D234: Pennar Industries Ltd | E234: Accu | F234: 44.00 | H234: 69.5 | I234: 69.50 | J234: Profit of Rs.25.50/- | K234: 25.50 | L234: =K234/F234 -> 57.95% | M234: Successful | N234: 2017-08-30
A235: 59 | B235: 2016-06-28 | D235: EVEREADY INDS. IND. LTD. | E235: Accu | F235: 262.50 | H235: 340 | I235: 333.00 | J235: Profit of Rs.77.50/- | K235: 77.50 | L235: =K235/F235 -> 29.52% | M235: Successful | N235: 2017-10-09
A236: 60 | B236: 2016-06-28 | D236: FIEM INDUSTRIES LIMITED | E236: Accu | F236: 840.00 | H236: 1230 | I236: 1230.00 | J236: Target Achieved | K236: 390.00 | L236: =K236/F236 -> 46.43% | M236: Successful | N236: 2016-10-06
A237: 61 | B237: 2016-07-05 | D237: Bajaj Corp Ltd | E237: Accu | F237: 395 | H237: 468.50 | I237: 510.00 | J237: Part profit of Rs.73.50/- | K237: 73.50 | L237: =K237/F237 -> 19% | M237: Successful | N237: 2017-08-30
A238: 62 | B238: 2016-08-02 | D238: GPPL $ | E238: Buy | F238: 167-172 | I238: 198-200 | J238: Open
A239: 63 | B239: 2016-08-04 | D239: WONDERLA HOLIDAYS LTD | E239: Accu | F239: 395-405 | I239: 475.00 | J239: Open
A240: 64 | B240: 2016-08-11 | D240: CAMLINFINE | E240: Accu | F240: 86.50 | H240: 130 | I240: 130.00 | J240: Profit of Rs.43.50/- | K240: =H240-F240 -> 43.50 | L240: =K240/F240 -> 50.29% | M240: Successful | N240: 2017-12-22
A241: 65 | B241: 2016-08-18 | D241: GRANULES | E241: Accu | F241: 133.5 | H241: 126.50 | I241: 178.00 | J241: Exit | K241: -7.00 | L241: -5.24% | M241: Unsuccessful | N241: 2016-09-02
A242: 66 | B242: 2016-08-31 | D242: VA TECH WABAG | E242: Accu | F242: 560.00 | H242: 725 | I242: 725.00 | J242: Target Achieved | K242: 165.00 | L242: 29.46% | M242: Successful | N242: 2016-03-27
A243: 67 | B243: 2016-09-01 | D243: SKIPPER LIMITED | E243: Accu | F243: 160.50 | H243: 210 | I243: 210.00 | J243: Target Achieved | K243: 49.50 | L243: 30.84% | M243: Successful | N243: 2017-05-16
A244: 68 | B244: 2016-10-03 | D244: IFB Industries | E244: Accu | F244: 430.00 | H244: 596 | I244: 575.00 | J244: Profit of Rs.166/- | K244: 166.00 | L244: 38.60% | M244: Successful | N244: 2017-02-03
A245: 69 | B245: 2016-10-14 | D245: ASIANTILES | E245: Accu | F245: 280.00 | H245: 345 | I245: 345.00 | J245: Target Achieved | K245: 65.00 | L245: 23.21% | M245: Successful | N245: 2017-03-20
A246: 70 | B246: 2016-10-14 | D246: DEEPIND | E246: Accu | F246: 245.00 | H246: 325.5 | I246: 330.00 | J246: Profit of Rs.80.5/- | K246: 80.50 | L246: 32.86% | M246: Successful | N246: 2017-02-03
A247: 71 | B247: 2016-10-17 | D247: DCBBANK | E247: Accu | F247: 125.00 | H247: 160 | I247: 160.00 | J247: Target Achieved | K247: 35.00 | L247: 28.00% | M247: Successful | N247: 2017-03-09
A248: 72 | B248: 2016-10-17 | D248: ORIENTREF | E248: Accu | F248: 114.00 | H248: 145 | I248: 145.00 | J248: Target Achieved | K248: 31.00 | L248: =K248/F248 -> 27.19% | M248: Successful | N248: 2017-05-04
A249: 73 | B249: 2016-10-17 | D249: GANECOS | E249: Accu | F249: 212.00 | H249: 280 | I249: 276.00 | J249: Profit of Rs.68/- | K249: 68.00 | L249: =K249/F249 -> 32.08% | M249: Successful | N249: 2017-05-03
A250: 74 | B250: 2016-11-04 | D250: NBCC | E250: Accu | F250: 155.00 | H250: 210 | I250: 210.00 | J250: Profit of Rs.55/- | K250: 55.00 | L250: =K250/F250 -> 35.48% | M250: Successful | N250: 2017-07-28
A251: 75 | B251: 2016-12-06 | D251: PRECAM | E251: Accu | F251: 150.5 | H251: 72.50 | I251: 174.00 | J251: Loss of Rs.78/- | K251: -78.00 | L251: =K251/F251 -> -51.83% | M251: Unsuccessful | N251: 2018-08-21
A252: 76 | B252: 2016-12-08 | D252: INFRATEL | E252: Accu | F252: 380.00 | H252: 478 | I252: 468.00 | J252: Target Achieved | K252: 98.00 | L252: =K252/F252 -> 25.79% | M252: Successful | N252: 2017-10-17
A253: 77 | B253: 2016-12-30 | D253: GODREJPROP | E253: Accu | F253: 305.00 | H253: 375 | I253: 375.00 | J253: Target Achieved | K253: 70.00 | L253: 22.95% | M253: Successful | N253: 2017-02-02
A254: 78 | B254: 2017-01-04 | D254: DEEPAKNTR | E254: Accu | F254: 99.50 | H254: 158 | I254: 158.00 | J254: Target Achieved | K254: 58.50 | L254: 58.79% | M254: Successful | N254: 2017-06-12
A255: 79 | B255: 2017-02-20 | D255: SUBROS | E255: Accu | F255: 202.50 | H255: 234 | I255: 234.00 | J255: Target Achieved | K255: 31.50 | L255: 15.56% | M255: Successful | N255: 2017-04-11
... 65 more rows

Sheet Sheet2 (hidden)
A1: SYMBOL | B1: SERIES | C1: OPEN | D1: HIGH | E1: LOW | F1: CLOSE | G1: LAST | H1: PREVCLOSE | I1: TOTTRDQTY | J1: TOTTRDVAL | K1: TIMESTAMP | L1: TOTALTRADES | M1: ISIN | N1: ISIN
A2: 20MICRONS | B2: EQ | C2: 41.75 | D2: 42.8 | E2: 41.4 | F2: 41.8 | G2: 41.65 | H2: 41.6 | I2: 12075 | J2: 505694.75 | K2: 2018-12-26 | L2: 205 | M2: INE144J01027
A3: 21STCENMGM | B3: EQ | C3: 24.8 | D3: 24.8 | E3: 24.75 | F3: 24.75 | G3: 24.75 | H3: 24.85 | I3: 254 | J3: 6299.05 | K3: 2018-12-26 | L3: 8 | M3: INE253B01015
A4: 3IINFOTECH | B4: EQ | C4: 3.6 | D4: 3.6 | E4: 3.45 | F4: 3.5 | G4: 3.5 | H4: 3.55 | I4: 1672336 | J4: 5853954.35 | K4: 2018-12-26 | L4: 691 | M4: INE748C01020
A5: 3MINDIA | B5: EQ | C5: 20800 | D5: 20800 | E5: 19644 | F5: 20597.55 | G5: 20500 | H5: 21535.15 | I5: 18652 | J5: 374628567.2 | K5: 2018-12-26 | L5: 4920 | M5: INE470A01017
A6: 3PLAND | B6: EQ | C6: 11 | D6: 13 | E6: 11 | F6: 12.4 | G6: 12.4 | H6: 11.15 | I6: 6266 | J6: 78389.35 | K6: 2018-12-26 | L6: 33 | M6: INE105C01023
A7: 5PAISA | B7: EQ | C7: 194.5 | D7: 206.85 | E7: 190 | F7: 193.2 | G7: 193 | H7: 194.5 | I7: 16127 | J7: 3207602.3 | K7: 2018-12-26 | L7: 629 | M7: INE618L01018
A8: 63MOONS | B8: EQ | C8: 95.3 | D8: 96.8 | E8: 93.3 | F8: 94.65 | G8: 94.35 | H8: 97.15 | I8: 217481 | J8: 20680198.15 | K8: 2018-12-26 | L8: 3565 | M8: INE111B01023
A9: 8KMILES | B9: EQ | C9: 151 | D9: 155.1 | E9: 144.75 | F9: 145.4 | G9: 145.4 | H9: 152.35 | I9: 456910 | J9: 67345961.45 | K9: 2018-12-26 | L9: 5763 | M9: INE650K01021
A10: A2ZINFRA | B10: EQ | C10: 12.8 | D10: 13.15 | E10: 12.3 | F10: 12.95 | G10: 12.95 | H10: 12.85 | I10: 173809 | J10: 2222424.3 | K10: 2018-12-26 | L10: 388 | M10: INE619I01012
A11: AARTIDRUGS | B11: EQ | C11: 567.8 | D11: 579.5 | E11: 558.15 | F11: 574.4 | G11: 572 | H11: 564.8 | I11: 4968 | J11: 2810481.6 | K11: 2018-12-26 | L11: 393 | M11: INE767A01016
A12: AARTIIND | B12: EQ | C12: 1418.5 | D12: 1444.7 | E12: 1398.6 | F12: 1427.25 | G12: 1421.15 | H12: 1427.1 | I12: 50102 | J12: 71394140.05 | K12: 2018-12-26 | L12: 4322 | M12: INE769A01020
A13: AARVEEDEN | B13: EQ | C13: 24.15 | D13: 24.9 | E13: 22.6 | F13: 23.75 | G13: 23.95 | H13: 24.25 | I13: 12938 | J13: 306409.2 | K13: 2018-12-26 | L13: 109 | M13: INE273D01019
A14: AAVAS | B14: EQ | C14: 788.45 | D14: 868 | E14: 735 | F14: 800.35 | G14: 800 | H14: 788.4 | I14: 41382 | J14: 32381883.2 | K14: 2018-12-26 | L14: 5555 | M14: INE216P01012
A15: ABAN | B15: EQ | C15: 73.7 | D15: 73.75 | E15: 71.3 | F15: 73.2 | G15: 73.05 | H15: 74.2 | I15: 351311 | J15: 25566561.85 | K15: 2018-12-26 | L15: 4622 | M15: INE421A01028
A16: ABB | B16: EQ | C16: 1301.2 | D16: 1318 | E16: 1285 | F16: 1295.3 | G16: 1300 | H16: 1302.15 | I16: 125511 | J16: 163314719.1 | K16: 2018-12-26 | L16: 9744 | M16: INE117A01022
A17: ABBOTINDIA | B17: EQ | C17: 7509 | D17: 7509 | E17: 7386 | F17: 7498.3 | G17: 7500 | H17: 7466.25 | I17: 1872 | J17: 13976300.3 | K17: 2018-12-26 | L17: 677 | M17: INE358A01014
A18: ABCAPITAL | B18: EQ | C18: 96.8 | D18: 97.75 | E18: 95.65 | F18: 97.1 | G18: 97 | H18: 97.05 | I18: 1299891 | J18: 125461336.8 | K18: 2018-12-26 | L18: 18413 | M18: INE674K01013
A19: ABFRL | B19: EQ | C19: 206.5 | D19: 210.6 | E19: 201.65 | F19: 205.9 | G19: 206 | H19: 206.75 | I19: 723425 | J19: 149503660.9 | K19: 2018-12-26 | L19: 10895 | M19: INE647O01011
A20: ACC | B20: EQ | C20: 1442.3 | D20: 1486 | E20: 1421.1 | F20: 1479.4 | G20: 1482 | H20: 1447.65 | I20: 597239 | J20: 867537549.6 | K20: 2018-12-26 | L20: 18726 | M20: INE012A01025
A21: ACCELYA | B21: EQ | C21: 949 | D21: 957 | E21: 949 | F21: 950 | G21: 950 | H21: 960.35 | I21: 794 | J21: 755456.25 | K21: 2018-12-26 | L21: 161 | M21: INE793A01012
A22: ACE | B22: EQ | C22: 91 | D22: 91.8 | E22: 89 | F22: 90.2 | G22: 90 | H22: 89.9 | I22: 97047 | J22: 8742470.7 | K22: 2018-12-26 | L22: 1946 | M22: INE731H01025
A23: ADANIENT | B23: EQ | C23: 156.85 | D23: 164.1 | E23: 155.1 | F23: 161.25 | G23: 160.8 | H23: 158.55 | I23: 4065516 | J23: 645741209.9 | K23: 2018-12-26 | L23: 19548 | M23: INE423A01024
A24: ADANIGAS | B24: EQ | C24: 97.85 | D24: 103.2 | E24: 96.5 | F24: 100.5 | G24: 100.9 | H24: 98.3 | I24: 1298911 | J24: 130719377.6 | K24: 2018-12-26 | L24: 10575 | M24: INE399L01023
A25: ADANIGREEN | B25: EQ | C25: 42.2 | D25: 42.4 | E25: 40.15 | F25: 41.55 | G25: 41.35 | H25: 42.15 | I25: 517905 | J25: 21362008.75 | K25: 2018-12-26 | L25: 3201 | M25: INE364U01010
A26: ADANIPORTS | B26: EQ | C26: 360.2 | D26: 378.5 | E26: 357.5 | F26: 376.55 | G26: 376 | H26: 361.1 | I26: 4519020 | J26: 1665960304 | K26: 2018-12-26 | L26: 47416 | M26: INE742F01042
A27: ADANIPOWER | B27: EQ | C27: 50.5 | D27: 51.9 | E27: 49.5 | F27: 50.85 | G27: 50.75 | H27: 50.8 | I27: 12324109 | J27: 621402688 | K27: 2018-12-26 | L27: 17144 | M27: INE814H01011
A28: ADANITRANS | B28: EQ | C28: 201.1 | D28: 208 | E28: 195.6 | F28: 198.2 | G28: 197 | H28: 200.05 | I28: 401682 | J28: 80777131.65 | K28: 2018-12-26 | L28: 7635 | M28: INE931S01010
A29: ADFFOODS | B29: EQ | C29: 256.2 | D29: 259.9 | E29: 250.25 | F29: 256.85 | G29: 257.85 | H29: 259.55 | I29: 29566 | J29: 7540747.4 | K29: 2018-12-26 | L29: 877 | M29: INE982B01019
A30: ADHUNIK | B30: EQ | C30: 2.2 | D30: 2.25 | E30: 2.15 | F30: 2.2 | G30: 2.2 | H30: 2.2 | I30: 22424 | J30: 49369.8 | K30: 2018-12-26 | L30: 38 | M30: INE400H01019
A31: ADHUNIKIND | B31: EQ | C31: 45 | D31: 46.4 | E31: 45 | F31: 45.75 | G31: 46.4 | H31: 46.4 | I31: 1485 | J31: 67589.2 | K31: 2018-12-26 | L31: 84 | M31: INE452L01012
A32: ADLABS | B32: EQ | C32: 11.15 | D32: 11.2 | E32: 10.9 | F32: 10.95 | G32: 10.9 | H32: 11.15 | I32: 68926 | J32: 758002.2 | K32: 2018-12-26 | L32: 224 | M32: INE172N01012
A33: ADORWELD | B33: EQ | C33: 373 | D33: 375.75 | E33: 361.55 | F33: 370.2 | G33: 368.55 | H33: 375.8 | I33: 17079 | J33: 6296431.5 | K33: 2018-12-26 | L33: 883 | M33: INE045A01017
A34: ADROITINFO | B34: EQ | C34: 18.4 | D34: 18.4 | E34: 17.05 | F34: 17.35 | G34: 17.35 | H34: 18.4 | I34: 632 | J34: 11002.9 | K34: 2018-12-26 | L34: 19 | M34: INE737B01033
A35: ADSL | B35: EQ | C35: 14.65 | D35: 14.65 | E35: 14 | F35: 14.1 | G35: 14 | H35: 14.4 | I35: 6162 | J35: 87047.45 | K35: 2018-12-26 | L35: 65 | M35: INE102I01027
A36: ADVANIHOTR | B36: EQ | C36: 62.05 | D36: 64 | E36: 60.15 | F36: 63.4 | G36: 63.3 | H36: 62.95 | I36: 5931 | J36: 370868.85 | K36: 2018-12-26 | L36: 105 | M36: INE199C01026
A37: ADVENZYMES | B37: EQ | C37: 179 | D37: 181 | E37: 175.45 | F37: 177.3 | G37: 177.45 | H37: 179.25 | I37: 31860 | J37: 5660170.3 | K37: 2018-12-26 | L37: 833 | M37: INE837H01020
A38: AEGISCHEM | B38: EQ | C38: 188.5 | D38: 194.9 | E38: 185.05 | F38: 194.4 | G38: 194.6 | H38: 187.85 | I38: 94947 | J38: 18194295.15 | K38: 2018-12-26 | L38: 2091 | M38: INE208C01025
A39: AGARIND | B39: EQ | C39: 221.35 | D39: 222.9 | E39: 212.35 | F39: 216.4 | G39: 215.7 | H39: 225.65 | I39: 4803 | J39: 1038176.5 | K39: 2018-12-26 | L39: 191 | M39: INE204E01012
A40: AGCNET | B40: EQ | C40: 70.35 | D40: 73.85 | E40: 70.3 | F40: 72 | G40: 72 | H40: 70.45 | I40: 2198 | J40: 156445 | K40: 2018-12-26 | L40: 26 | M40: INE676A01019
A41: AGLSL | B41: EQ | C41: 68.9 | D41: 69 | E41: 62.65 | F41: 64.75 | G41: 64.05 | H41: 69 | I41: 78826 | J41: 5143668.45 | K41: 2018-12-26 | L41: 389 | M41: INE517U01013
A42: AGRITECH | B42: BE | C42: 64.4 | D42: 64.4 | E42: 61.1 | F42: 63.35 | G42: 63 | H42: 62.75 | I42: 3412 | J42: 212518.95 | K42: 2018-12-26 | L42: 54 | M42: INE449G01018
A43: AHLEAST | B43: EQ | C43: 244.2 | D43: 244.2 | E43: 237 | F43: 239.55 | G43: 240 | H43: 243.4 | I43: 1016 | J43: 243840.45 | K43: 2018-12-26 | L43: 357 | M43: INE926K01017
A44: AHLUCONT | B44: EQ | C44: 300.15 | D44: 316.05 | E44: 294.45 | F44: 311.4 | G44: 311.75 | H44: 304.25 | I44: 5190 | J44: 1594260.75 | K44: 2018-12-26 | L44: 399 | M44: INE758C01029
A45: AHLWEST | B45: EQ | C45: 289 | D45: 295.1 | E45: 289 | F45: 295 | G45: 295 | H45: 299 | I45: 25 | J45: 7363.15 | K45: 2018-12-26 | L45: 8 | M45: INE915K01010
A46: AIAENG | B46: EQ | C46: 1609.05 | D46: 1650 | E46: 1578.1 | F46: 1637.55 | G46: 1647 | H46: 1630.75 | I46: 17285 | J46: 27730615.05 | K46: 2018-12-26 | L46: 1591 | M46: INE212H01026
A47: AIFL | B47: EQ | C47: 31.15 | D47: 31.15 | E47: 28.25 | F47: 28.25 | G47: 28.25 | H47: 29.7 | I47: 3073726 | J47: 91387450.8 | K47: 2018-12-26 | L47: 7756 | M47: INE428O01016
A48: AIONJSW | B48: EQ | C48: 40.5 | D48: 40.85 | E48: 37.5 | F48: 39.85 | G48: 40.05 | H48: 41.2 | I48: 60090 | J48: 2381468.45 | K48: 2018-12-26 | L48: 360 | M48: INE743C01021
A49: AJANTPHARM | B49: EQ | C49: 1136.95 | D49: 1139.35 | E49: 1106.55 | F49: 1128.55 | G49: 1131.5 | H49: 1132.5 | I49: 226562 | J49: 253763702.4 | K49: 2018-12-26 | L49: 11155 | M49: INE031B01049
A50: AJMERA | B50: EQ | C50: 158.5 | D50: 167.6 | E50: 153.3 | F50: 163.8 | G50: 163.45 | H50: 160.4 | I50: 108102 | J50: 17360509.1 | K50: 2018-12-26 | L50: 3310 | M50: INE298G01027
A51: AKSHARCHEM | B51: EQ | C51: 446.95 | D51: 454.9 | E51: 440.55 | F51: 447.8 | G51: 447 | H51: 452.9 | I51: 1391 | J51: 620276.7 | K51: 2018-12-26 | L51: 106 | M51: INE542B01011
A52: AKSHOPTFBR | B52: EQ | C52: 24.4 | D52: 24.4 | E52: 23.9 | F52: 24.05 | G52: 24 | H52: 24.35 | I52: 541424 | J52: 13034997.55 | K52: 2018-12-26 | L52: 1687 | M52: INE523B01011
A53: AKZOINDIA | B53: EQ | C53: 1616.45 | D53: 1616.55 | E53: 1580 | F53: 1610.4 | G53: 1600 | H53: 1600.45 | I53: 2277 | J53: 3645665.4 | K53: 2018-12-26 | L53: 525 | M53: INE133A01011
A54: ALANKIT | B54: EQ | C54: 23.55 | D54: 24 | E54: 23.2 | F54: 23.8 | G54: 24 | H54: 23.7 | I54: 580491 | J54: 13724209.05 | K54: 2018-12-26 | L54: 1939 | M54: INE914E01040
A55: ALBERTDAVD | B55: EQ | C55: 434 | D55: 434 | E55: 405 | F55: 417 | G55: 416 | H55: 417.25 | I55: 3220 | J55: 1328310.5 | K55: 2018-12-26 | L55: 259 | M55: INE155C01010
A56: ALBK | B56: EQ | C56: 45.2 | D56: 46.45 | E56: 44 | F56: 46.05 | G56: 45.85 | H56: 45.8 | I56: 6458966 | J56: 291810307.8 | K56: 2018-12-26 | L56: 14918 | M56: INE428A01015
A57: ALCHEM | B57: BE | C57: 2.2 | D57: 2.3 | E57: 2.2 | F57: 2.3 | G57: 2.3 | H57: 2.2 | I57: 15398 | J57: 35052.05 | K57: 2018-12-26 | L57: 51 | M57: INE964B01033
A58: ALEMBICLTD | B58: EQ | C58: 44.95 | D58: 45 | E58: 43.75 | F58: 44.65 | G58: 44.85 | H58: 44.95 | I58: 190969 | J58: 8480648 | K58: 2018-12-26 | L58: 1500 | M58: INE426A01027
A59: ALICON | B59: EQ | C59: 625 | D59: 625.7 | E59: 580.05 | F59: 582.75 | G59: 588.8 | H59: 628.95 | I59: 30582 | J59: 18076615.3 | K59: 2018-12-26 | L59: 1181 | M59: INE062D01024
A60: ALKALI | B60: EQ | C60: 53.8 | D60: 55.7 | E60: 52.2 | F60: 55.3 | G60: 55.7 | H60: 54.05 | I60: 3568 | J60: 190804.05 | K60: 2018-12-26 | L60: 100 | M60: INE773I01017
A61: ALKEM | B61: EQ | C61: 1865 | D61: 1884 | E61: 1840 | F61: 1874.55 | G61: 1855.15 | H61: 1855.15 | I61: 16728 | J61: 31220174.85 | K61: 2018-12-26 | L61: 1985 | M61: INE540L01014
A62: ALKYLAMINE | B62: EQ | C62: 739.95 | D62: 740.5 | E62: 710 | F62: 734.6 | G62: 730 | H62: 718.8 | I62: 5242 | J62: 3827204.4 | K62: 2018-12-26 | L62: 353 | M62: INE150B01021
A63: ALLCARGO | B63: EQ | C63: 104.8 | D63: 107.95 | E63: 103.6 | F63: 107.5 | G63: 107.7 | H63: 105.25 | I63: 115035 | J63: 12260990.35 | K63: 2018-12-26 | L63: 1302 | M63: INE418H01029
A64: ALLSEC | B64: EQ | C64: 199.05 | D64: 215 | E64: 185.15 | F64: 200.25 | G64: 215 | H64: 197.45 | I64: 13444 | J64: 2627305 | K64: 2018-12-26 | L64: 464 | M64: INE835G01018
A65: ALMONDZ | B65: EQ | C65: 22.2 | D65: 22.9 | E65: 22.2 | F65: 22.5 | G65: 22.5 | H65: 22.3 | I65: 385 | J65: 8573.7 | K65: 2018-12-26 | L65: 8 | M65: INE326B01027
A66: ALOKTEXT | B66: EQ | C66: 3.7 | D66: 3.75 | E66: 3.6 | F66: 3.7 | G66: 3.75 | H66: 3.7 | I66: 1142888 | J66: 4182031.55 | K66: 2018-12-26 | L66: 571 | M66: INE270A01011
A67: ALPA | B67: EQ | C67: 24 | D67: 24 | E67: 23.55 | F67: 23.85 | G67: 23.9 | H67: 24.1 | I67: 12649 | J67: 300494.1 | K67: 2018-12-26 | L67: 91 | M67: INE385I01010
A68: ALPHAGEO | B68: EQ | C68: 460 | D68: 469 | E68: 453.25 | F68: 460.35 | G68: 458.6 | H68: 453.6 | I68: 4238 | J68: 1953218.15 | K68: 2018-12-26 | L68: 471 | M68: INE137C01018
A69: AMARAJABAT | B69: EQ | C69: 743.5 | D69: 744.2 | E69: 727.95 | F69: 731.8 | G69: 730.4 | H69: 745.7 | I69: 504209 | J69: 369836200.9 | K69: 2018-12-26 | L69: 13232 | M69: INE885A01032
A70: AMBER | B70: EQ | C70: 912.15 | D70: 926.55 | E70: 888 | F70: 898.05 | G70: 889 | H70: 920.9 | I70: 24318 | J70: 21995138.2 | K70: 2018-12-26 | L70: 1298 | M70: INE371P01015
A71: AMBIKCO | B71: EQ | C71: 1144.05 | D71: 1175 | E71: 1143 | F71: 1162.4 | G71: 1165 | H71: 1146.35 | I71: 821 | J71: 954284.65 | K71: 2018-12-26 | L71: 130 | M71: INE540G01014
A72: AMBUJACEM | B72: EQ | C72: 212.65 | D72: 222 | E72: 209.9 | F72: 221.1 | G72: 221.1 | H72: 213.25 | I72: 3303641 | J72: 715858086.8 | K72: 2018-12-26 | L72: 22127 | M72: INE079A01024
A73: AMDIND | B73: EQ | C73: 23.4 | D73: 23.4 | E73: 20.75 | F73: 21.1 | G73: 21.1 | H73: 21.7 | I73: 6318 | J73: 136489.7 | K73: 2018-12-26 | L73: 54 | M73: INE005I01014
A74: AMJLAND | B74: EQ | C74: 20.6 | D74: 20.6 | E74: 20.1 | F74: 20.45 | G74: 20.45 | H74: 20.9 | I74: 1799 | J74: 36968.35 | K74: 2018-12-26 | L74: 19 | M74: INE606A01024
A75: AMRUTANJAN | B75: EQ | C75: 281.7 | D75: 281.7 | E75: 265.25 | F75: 267.4 | G75: 267 | H75: 281.7 | I75: 61440 | J75: 16587214.15 | K75: 2018-12-26 | L75: 1876 | M75: INE098F01031
A76: ANANTRAJ | B76: EQ | C76: 35.9 | D76: 35.9 | E76: 34.75 | F76: 35.4 | G76: 35.3 | H76: 35.9 | I76: 251587 | J76: 8843511 | K76: 2018-12-26 | L76: 1168 | M76: INE242C01024
A77: ANDHRABANK | B77: EQ | C77: 29.05 | D77: 29.4 | E77: 28.65 | F77: 29.25 | G77: 29.2 | H77: 29.3 | I77: 589194 | J77: 17098539.9 | K77: 2018-12-26 | L77: 1629 | M77: INE434A01013
A78: ANDHRACEMT | B78: EQ | C78: 5.75 | D78: 5.8 | E78: 5.7 | F78: 5.75 | G78: 5.8 | H78: 5.75 | I78: 39231 | J78: 226216.15 | K78: 2018-12-26 | L78: 141 | M78: INE666E01012
A79: ANDHRSUGAR | B79: EQ | C79: 326.2 | D79: 329 | E79: 323 | F79: 324.65 | G79: 325.5 | H79: 328.85 | I79: 15588 | J79: 5085151 | K79: 2018-12-26 | L79: 539 | M79: INE715B01013
A80: ANGIND | B80: BE | C80: 1.35 | D80: 1.35 | E80: 1.35 | F80: 1.35 | G80: 1.35 | H80: 1.4 | I80: 841 | J80: 1135.35 | K80: 2018-12-26 | L80: 10 | M80: INE017D01010
A81: ANIKINDS | B81: EQ | C81: 23 | D81: 23.6 | E81: 22.5 | F81: 23 | G81: 23 | H81: 23.4 | I81: 999 | J81: 23014.05 | K81: 2018-12-26 | L81: 32 | M81: INE087B01017
A82: ANKITMETAL | B82: BE | C82: 0.45 | D82: 0.55 | E82: 0.45 | F82: 0.45 | G82: 0.45 | H82: 0.4 | I82: 107957 | J82: 52950.7 | K82: 2018-12-26 | L82: 77 | M82: INE106I01010
A83: ANSALAPI | B83: EQ | C83: 11.1 | D83: 11.35 | E83: 11 | F83: 11.25 | G83: 11.35 | H83: 11.2 | I83: 18358 | J83: 206090.65 | K83: 2018-12-26 | L83: 113 | M83: INE436A01026
A84: ANSALHSG | B84: EQ | C84: 10.9 | D84: 11.15 | E84: 10.7 | F84: 10.95 | G84: 10.9 | H84: 11 | I84: 18126 | J84: 198493.95 | K84: 2018-12-26 | L84: 137 | M84: INE880B01015
A85: ANTGRAPHIC | B85: BE | C85: 0.5 | D85: 0.5 | E85: 0.45 | F85: 0.5 | G85: 0.5 | H85: 0.5 | I85: 5562 | J85: 2767.9 | K85: 2018-12-26 | L85: 11 | M85: INE414B01021
A86: APARINDS | B86: EQ | C86: 636.5 | D86: 668.85 | E86: 636.5 | F86: 662.2 | G86: 668.55 | H86: 649.1 | I86: 7397 | J86: 4847344.4 | K86: 2018-12-26 | L86: 503 | M86: INE372A01015
A87: APCL | B87: EQ | C87: 135 | D87: 135 | E87: 127.95 | F87: 128.85 | G87: 128 | H87: 134.65 | I87: 1462 | J87: 189052.45 | K87: 2018-12-26 | L87: 86 | M87: INE071F01012
A88: APCOTEXIND | B88: EQ | C88: 520 | D88: 533 | E88: 506.15 | F88: 524.5 | G88: 521.75 | H88: 523.25 | I88: 7366 | J88: 3851063.85 | K88: 2018-12-26 | L88: 458 | M88: INE116A01024
A89: APEX | B89: EQ | C89: 376.6 | D89: 379 | E89: 372.95 | F89: 378 | G89: 378 | H89: 378.2 | I89: 55512 | J89: 20895247.6 | K89: 2018-12-26 | L89: 3172 | M89: INE346W01013
A90: APLAPOLLO | B90: EQ | C90: 1129.5 | D90: 1140 | E90: 1100.1 | F90: 1102.25 | G90: 1102 | H90: 1142.25 | I90: 57316 | J90: 63373825.65 | K90: 2018-12-26 | L90: 2882 | M90: INE702C01019
A91: APLLTD | B91: EQ | C91: 573 | D91: 578 | E91: 560.55 | F91: 564.55 | G91: 563.85 | H91: 573.5 | I91: 23365 | J91: 13276495.25 | K91: 2018-12-26 | L91: 1477 | M91: INE901L01018
A92: APOLLO | B92: EQ | C92: 120.95 | D92: 120.95 | E92: 116.2 | F92: 119.3 | G92: 120.6 | H92: 119.5 | I92: 9758 | J92: 1156171.4 | K92: 2018-12-26 | L92: 380 | M92: INE713T01010
A93: APOLLOHOSP | B93: EQ | C93: 1264 | D93: 1274 | E93: 1237.85 | F93: 1264.15 | G93: 1271 | H93: 1269.35 | I93: 275494 | J93: 345524779.9 | K93: 2018-12-26 | L93: 17229 | M93: INE437A01024
A94: APOLLOTYRE | B94: EQ | C94: 227 | D94: 235.25 | E94: 225.6 | F94: 233.35 | G94: 233.3 | H94: 229.05 | I94: 2417738 | J94: 558302207.8 | K94: 2018-12-26 | L94: 18169 | M94: INE438A01022
A95: APOLSINHOT | B95: EQ | C95: 1254.4 | D95: 1340 | E95: 1148.45 | F95: 1178.9 | G95: 1175 | H95: 1245.15 | I95: 53893 | J95: 66852264.65 | K95: 2018-12-26 | L95: 5659 | M95: INE451F01024
A96: APTECHT | B96: EQ | C96: 186.75 | D96: 194.85 | E96: 182 | F96: 193.55 | G96: 193 | H96: 188.15 | I96: 397644 | J96: 75783004.85 | K96: 2018-12-26 | L96: 6891 | M96: INE266F01018
A97: ARCHIDPLY | B97: EQ | C97: 40.1 | D97: 40.1 | E97: 38.1 | F97: 39.95 | G97: 40.1 | H97: 39.3 | I97: 17640 | J97: 692770.15 | K97: 2018-12-26 | L97: 278 | M97: INE877I01016
A98: ARCHIES | B98: EQ | C98: 31.35 | D98: 31.55 | E98: 29.5 | F98: 30.4 | G98: 30.3 | H98: 31.45 | I98: 152649 | J98: 4635533.25 | K98: 2018-12-26 | L98: 1185 | M98: INE731A01020
A99: ARCOTECH | B99: EQ | C99: 7.3 | D99: 7.6 | E99: 7 | F99: 7.5 | G99: 7.4 | H99: 7.35 | I99: 52801 | J99: 383202.1 | K99: 2018-12-26 | L99: 222 | M99: INE574I01035
A100: ARIES | B100: EQ | C100: 102.8 | D100: 102.8 | E100: 98 | F100: 101.15 | G100: 101.95 | H100: 100.5 | I100: 11970 | J100: 1192118.95 | K100: 2018-12-26 | L100: 398 | M100: INE298I01015
A101: ARIHANT | B101: EQ | C101: 31.65 | D101: 33.75 | E101: 30.5 | F101: 31.95 | G101: 31.95 | H101: 32.15 | I101: 676 | J101: 21310.85 | K101: 2018-12-26 | L101: 25 | M101: INE413D01011
A102: ARIHANTSUP | B102: EQ | C102: 55.35 | D102: 59.45 | E102: 55.35 | F102: 58.3 | G102: 58.9 | H102: 56.4 | I102: 27170 | J102: 1567850.95 | K102: 2018-12-26 | L102: 1592 | M102: INE643K01018
A103: ARMANFIN | B103: EQ | C103: 380.2 | D103: 395.5 | E103: 380.2 | F103: 391.5 | G103: 386 | H103: 388.6 | I103: 2355 | J103: 918792.8 | K103: 2018-12-26 | L103: 76 | M103: INE109C01017
A104: AROGRANITE | B104: EQ | C104: 53.4 | D104: 53.4 | E104: 50.7 | F104: 52.4 | G104: 53 | H104: 53.55 | I104: 8196 | J104: 424272.9 | K104: 2018-12-26 | L104: 156 | M104: INE210C01013
A105: ARROWGREEN | B105: EQ | C105: 115.9 | D105: 118.25 | E105: 112.95 | F105: 118.25 | G105: 118.25 | H105: 112.65 | I105: 52349 | J105: 6120230.65 | K105: 2018-12-26 | L105: 971 | M105: INE570D01018
A106: ARROWTEX | B106: EQ | C106: 24.75 | D106: 24.75 | E106: 23.1 | F106: 23.95 | G106: 23.7 | H106: 24 | I106: 3924 | J106: 93164.2 | K106: 2018-12-26 | L106: 54 | M106: INE933J01015
A107: ARSHIYA | B107: EQ | C107: 33.8 | D107: 34.45 | E107: 31.15 | F107: 31.95 | G107: 31.8 | H107: 34.35 | I107: 704732 | J107: 22840874.75 | K107: 2018-12-26 | L107: 4620 | M107: INE968D01022
A108: ARSSINFRA | B108: BE | C108: 30.4 | D108: 30.5 | E108: 27.6 | F108: 30.4 | G108: 30.45 | H108: 29.05 | I108: 19120 | J108: 574601.6 | K108: 2018-12-26 | L108: 111 | M108: INE267I01010
A109: ARVIND | B109: EQ | C109: 98.3 | D109: 99 | E109: 95.5 | F109: 97.1 | G109: 97.2 | H109: 98.55 | I109: 2801614 | J109: 270734365.9 | K109: 2018-12-26 | L109: 15550 | M109: INE034A01011
A110: ARVSMART | B110: EQ | C110: 132.3 | D110: 133.8 | E110: 127.05 | F110: 129.45 | G110: 129.2 | H110: 132.2 | I110: 89934 | J110: 11613941.35 | K110: 2018-12-26 | L110: 1107 | M110: INE034S01021
A111: ASAHIINDIA | B111: EQ | C111: 247.95 | D111: 247.95 | E111: 240 | F111: 243.2 | G111: 242 | H111: 246.4 | I111: 8020 | J111: 1950781.2 | K111: 2018-12-26 | L111: 475 | M111: INE439A01020
A112: ASAHISONG | B112: EQ | C112: 220 | D112: 224.6 | E112: 213 | F112: 218.2 | G112: 216 | H112: 215.75 | I112: 14948 | J112: 3281696.95 | K112: 2018-12-26 | L112: 297 | M112: INE228I01012
A113: ASAL | B113: EQ | C113: 62.1 | D113: 65 | E113: 61 | F113: 64.85 | G113: 64.9 | H113: 62.85 | I113: 18063 | J113: 1139579.9 | K113: 2018-12-26 | L113: 123 | M113: INE900C01027
A114: ASHAPURMIN | B114: EQ | C114: 30.4 | D114: 31.25 | E114: 29.7 | F114: 30.55 | G114: 31.25 | H114: 30.55 | I114: 76323 | J114: 2313150.1 | K114: 2018-12-26 | L114: 664 | M114: INE348A01023
A115: ASHIANA | B115: EQ | C115: 116.95 | D115: 117.1 | E115: 113.25 | F115: 116.1 | G115: 115.75 | H115: 115.2 | I115: 37155 | J115: 4285001.4 | K115: 2018-12-26 | L115: 595 | M115: INE365D01021
A116: ASHIMASYN | B116: EQ | C116: 16.75 | D116: 16.75 | E116: 15.6 | F116: 16.25 | G116: 16.35 | H116: 16.55 | I116: 57084 | J116: 920649.75 | K116: 2018-12-26 | L116: 304 | M116: INE440A01010
A117: ASHOKA | B117: EQ | C117: 124.7 | D117: 126 | E117: 122 | F117: 122.95 | G117: 122.5 | H117: 124.65 | I117: 58158 | J117: 7167960.15 | K117: 2018-12-26 | L117: 1676 | M117: INE442H01029
A118: ASHOKLEY | B118: EQ | C118: 104 | D118: 104.3 | E118: 102 | F118: 103.9 | G118: 103.9 | H118: 104.6 | I118: 10559085 | J118: 1090634738 | K118: 2018-12-26 | L118: 47352 | M118: INE208A01029
A119: ASIANHOTNR | B119: EQ | C119: 147.15 | D119: 153.85 | E119: 141.4 | F119: 147.2 | G119: 150 | H119: 144.25 | I119: 12147 | J119: 1787429.25 | K119: 2018-12-26 | L119: 44 | M119: INE363A01022
A120: ASIANPAINT | B120: EQ | C120: 1367.95 | D120: 1374.9 | E120: 1347.4 | F120: 1363 | G120: 1360.05 | H120: 1357.05 | I120: 1790087 | J120: 2438082292 | K120: 2018-12-26 | L120: 67982 | M120: INE021A01026
A121: ASIANTILES | B121: EQ | C121: 188.15 | D121: 189.45 | E121: 185.1 | F121: 187.45 | G121: 187 | H121: 190.4 | I121: 54760 | J121: 10219337.7 | K121: 2018-12-26 | L121: 3400 | M121: INE022I01019
A122: ASPINWALL | B122: EQ | C122: 168 | D122: 173.05 | E122: 168 | F122: 171.7 | G122: 170.2 | H122: 176 | I122: 78 | J122: 13292.2 | K122: 2018-12-26 | L122: 19 | M122: INE991I01015
A123: ASSAMCO | B123: BE | C123: 2.1 | D123: 2.15 | E123: 2 | F123: 2 | G123: 2 | H123: 2.1 | I123: 506966 | J123: 1022091.45 | K123: 2018-12-26 | L123: 248 | M123: INE442A01024
A124: ASTEC | B124: EQ | C124: 529.05 | D124: 530 | E124: 525 | F124: 526.75 | G124: 528.25 | H124: 531.2 | I124: 6083 | J124: 3205055.9 | K124: 2018-12-26 | L124: 187 | M124: INE563J01010
A125: ASTERDM | B125: EQ | C125: 148.65 | D125: 150.9 | E125: 146.2 | F125: 149.75 | G125: 148.7 | H125: 148.25 | I125: 104288 | J125: 15512876.15 | K125: 2018-12-26 | L125: 1461 | M125: INE914M01019
A126: ASTRAL | B126: EQ | C126: 1067 | D126: 1103.85 | E126: 1038.5 | F126: 1079.6 | G126: 1076 | H126: 1074.15 | I126: 119170 | J126: 127918121.8 | K126: 2018-12-26 | L126: 5983 | M126: INE006I01046
A127: ASTRAMICRO | B127: EQ | C127: 77.95 | D127: 78.05 | E127: 75.9 | F127: 76.75 | G127: 77 | H127: 77.65 | I127: 112228 | J127: 8618920.7 | K127: 2018-12-26 | L127: 1070 | M127: INE386C01029
A128: ASTRAZEN | B128: EQ | C128: 1479.2 | D128: 1480 | E128: 1458.05 | F128: 1475 | G128: 1470 | H128: 1470.3 | I128: 4408 | J128: 6487261.9 | K128: 2018-12-26 | L128: 452 | M128: INE203A01020
A129: ASTRON | B129: EQ | C129: 109.45 | D129: 109.45 | E129: 105.7 | F129: 108.9 | G129: 109 | H129: 108.1 | I129: 30990 | J129: 3336812.9 | K129: 2018-12-26 | L129: 577 | M129: INE646X01014
A130: ATFL | B130: EQ | C130: 568 | D130: 579.95 | E130: 563.1 | F130: 576.1 | G130: 577 | H130: 572.95 | I130: 3500 | J130: 1997097.4 | K130: 2018-12-26 | L130: 442 | M130: INE209A01019
A131: ATLANTA | B131: EQ | C131: 22.9 | D131: 22.9 | E131: 21.55 | F131: 21.8 | G131: 21.65 | H131: 22.3 | I131: 133252 | J131: 2908653.5 | K131: 2018-12-26 | L131: 3285 | M131: INE285H01022
A132: ATLASCYCLE | B132: BE | C132: 81.95 | D132: 81.95 | E132: 76.35 | F132: 77.45 | G132: 79.5 | H132: 80.35 | I132: 2839 | J132: 221103.25 | K132: 2018-12-26 | L132: 90 | M132: INE446A01025
A133: ATUL | B133: EQ | C133: 3343.1 | D133: 3451 | E133: 3326 | F133: 3434.75 | G133: 3449 | H133: 3375.35 | I133: 6085 | J133: 20667665.1 | K133: 2018-12-26 | L133: 1205 | M133: INE100A01010
A134: ATULAUTO | B134: EQ | C134: 290 | D134: 290 | E134: 283 | F134: 286.35 | G134: 285.05 | H134: 288.75 | I134: 8458 | J134: 2414219.05 | K134: 2018-12-26 | L134: 723 | M134: INE951D01028
A135: AUBANK | B135: EQ | C135: 602 | D135: 603.85 | E135: 582.5 | F135: 592.05 | G135: 590 | H135: 606.45 | I135: 294560 | J135: 174595980.9 | K135: 2018-12-26 | L135: 10919 | M135: INE949L01017
A136: AURIONPRO | B136: EQ | C136: 133.6 | D136: 137.9 | E136: 130.15 | F136: 131.05 | G136: 131.9 | H136: 133.6 | I136: 14434 | J136: 1909548.8 | K136: 2018-12-26 | L136: 282 | M136: INE132H01018
A137: AUROPHARMA | B137: EQ | C137: 715.95 | D137: 720.75 | E137: 697.1 | F137: 718.5 | G137: 718.8 | H137: 715.4 | I137: 3096253 | J137: 2198128570 | K137: 2018-12-26 | L137: 52833 | M137: INE406A01037
A138: AUSOMENT | B138: EQ | C138: 41 | D138: 41.75 | E138: 39.2 | F138: 41.3 | G138: 40.1 | H138: 41.65 | I138: 3758 | J138: 151837.85 | K138: 2018-12-26 | L138: 123 | M138: INE218C01016
A139: AUTOAXLES | B139: EQ | C139: 1345 | D139: 1359 | E139: 1316.05 | F139: 1349.05 | G139: 1340 | H139: 1348.8 | I139: 11015 | J139: 14728759.75 | K139: 2018-12-26 | L139: 1359 | M139: INE449A01011
A140: AUTOIND | B140: EQ | C140: 66.85 | D140: 72.95 | E140: 65 | F140: 65.6 | G140: 65 | H140: 63.95 | I140: 122767 | J140: 8160603.25 | K140: 2018-12-26 | L140: 1458 | M140: INE718H01014
A141: AUTOLITIND | B141: EQ | C141: 40.85 | D141: 40.9 | E141: 39.3 | F141: 39.65 | G141: 39.4 | H141: 40.05 | I141: 8808 | J141: 351510.1 | K141: 2018-12-26 | L141: 138 | M141: INE448A01013
A142: AVADHSUGAR | B142: EQ | C142: 377.65 | D142: 380 | E142: 368 | F142: 374 | G142: 372.45 | H142: 377.45 | I142: 12316 | J142: 4618469.6 | K142: 2018-12-26 | L142: 817 | M142: INE349W01017
A143: AVANTIFEED | B143: EQ | C143: 373 | D143: 383.9 | E143: 368.15 | F143: 379.2 | G143: 382.6 | H143: 377.95 | I143: 337830 | J143: 126984044 | K143: 2018-12-26 | L143: 11807 | M143: INE871C01038
A144: AVTNPL | B144: EQ | C144: 26.5 | D144: 26.95 | E144: 25.9 | F144: 26.05 | G144: 26 | H144: 26.6 | I144: 47563 | J144: 1244108.05 | K144: 2018-12-26 | L144: 384 | M144: INE488D01021
A145: AXISBANK | B145: EQ | C145: 611 | D145: 623.65 | E145: 603.45 | F145: 619.5 | G145: 618.95 | H145: 615 | I145: 6519211 | J145: 4014215613 | K145: 2018-12-26 | L145: 99749 | M145: INE238A01034
A146: AXISCADES | B146: EQ | C146: 82.55 | D146: 83.35 | E146: 80.45 | F146: 82.55 | G146: 82.25 | H146: 82.95 | I146: 35645 | J146: 2916492.7 | K146: 2018-12-26 | L146: 780 | M146: INE555B01013
A147: AXISGOLD | B147: EQ | C147: 2787 | D147: 2787 | E147: 2755 | F147: 2760 | G147: 2760 | H147: 2754 | I147: 173 | J147: 480025.9 | K147: 2018-12-26 | L147: 50 | M147: INF846K01347
A148: AXISNIFTY | B148: EQ | C148: 1079.67 | D148: 1095.11 | E148: 1078 | F148: 1095.11 | G148: 1095.11 | H148: 1097.04 | I148: 20 | J148: 21667.26 | K148: 2018-12-26 | L148: 7 | M148: INF846K01ZL0
A149: AYMSYNTEX | B149: EQ | C149: 41.1 | D149: 42 | E149: 39.55 | F149: 41 | G149: 41 | H149: 40.9 | I149: 4808 | J149: 194492.6 | K149: 2018-12-26 | L149: 57 | M149: INE193B01039
A150: BAFNAPHARM | B150: EQ | C150: 11.7 | D150: 11.7 | E150: 11.2 | F150: 11.45 | G150: 11.5 | H150: 11.4 | I150: 5885 | J150: 67289.4 | K150: 2018-12-26 | L150: 43 | M150: INE878I01014
A151: BAGFILMS | B151: EQ | C151: 4.8 | D151: 4.95 | E151: 4.75 | F151: 4.9 | G151: 4.9 | H151: 4.8 | I151: 77278 | J151: 375611.95 | K151: 2018-12-26 | L151: 159 | M151: INE116D01028
A152: BAJAJ-AUTO | B152: EQ | C152: 2713.7 | D152: 2749.8 | E152: 2670 | F152: 2734.6 | G152: 2744.35 | H152: 2724.65 | I152: 410582 | J152: 1113098336 | K152: 2018-12-26 | L152: 46378 | M152: INE917I01010
A153: BAJAJCORP | B153: EQ | C153: 361 | D153: 364 | E153: 353.5 | F153: 361.9 | G153: 361.95 | H153: 359.1 | I153: 12612 | J153: 4524221.25 | K153: 2018-12-26 | L153: 912 | M153: INE933K01021
A154: BAJAJELEC | B154: EQ | C154: 501.4 | D154: 502.55 | E154: 488 | F154: 495.4 | G154: 495 | H154: 503.35 | I154: 93936 | J154: 46422257.55 | K154: 2018-12-26 | L154: 3254 | M154: INE193E01025
A155: BAJAJFINSV | B155: EQ | C155: 6272 | D155: 6465 | E155: 6150 | F155: 6439.05 | G155: 6465 | H155: 6274.45 | I155: 272610 | J155: 1723444984 | K155: 2018-12-26 | L155: 26810 | M155: INE918I01018
A156: BAJAJHIND | B156: EQ | C156: 8.9 | D156: 8.9 | E156: 8.6 | F156: 8.7 | G156: 8.7 | H156: 8.9 | I156: 2053121 | J156: 17877821.9 | K156: 2018-12-26 | L156: 2421 | M156: INE306A01021
A157: BAJAJHLDNG | B157: EQ | C157: 2920.05 | D157: 2923.85 | E157: 2738.7 | F157: 2859.45 | G157: 2861.55 | H157: 2937.85 | I157: 116124 | J157: 330510434.6 | K157: 2018-12-26 | L157: 4724 | M157: INE118A01012
A158: BAJFINANCE | B158: EQ | C158: 2560 | D158: 2582.95 | E158: 2503.7 | F158: 2567.4 | G158: 2575 | H158: 2564.9 | I158: 1662068 | J158: 4230029671 | K158: 2018-12-26 | L158: 62517 | M158: INE296A01024
A159: BALAJITELE | B159: EQ | C159: 90.1 | D159: 91.2 | E159: 89 | F159: 90.65 | G159: 90.15 | H159: 90.65 | I159: 111900 | J159: 10123131.3 | K159: 2018-12-26 | L159: 1240 | M159: INE794B01026
A160: BALAMINES | B160: EQ | C160: 451.1 | D160: 452.95 | E160: 440.3 | F160: 447.55 | G160: 448 | H160: 451.1 | I160: 10133 | J160: 4535454.3 | K160: 2018-12-26 | L160: 1057 | M160: INE050E01027
A161: BALKRISHNA | B161: EQ | C161: 48 | D161: 49.95 | E161: 48 | F161: 49.4 | G161: 49.45 | H161: 49.85 | I161: 4194 | J161: 206848.25 | K161: 2018-12-26 | L161: 122 | M161: INE875R01011
A162: BALKRISIND | B162: EQ | C162: 915 | D162: 915 | E162: 890.35 | F162: 907.6 | G162: 907.05 | H162: 911.2 | I162: 414195 | J162: 373769105.8 | K162: 2018-12-26 | L162: 12392 | M162: INE787D01026
A163: BALLARPUR | B163: EQ | C163: 5.5 | D163: 5.55 | E163: 5.3 | F163: 5.5 | G163: 5.55 | H163: 5.5 | I163: 210444 | J163: 1148536.85 | K163: 2018-12-26 | L163: 386 | M163: INE294A01037
A164: BALMLAWRIE | B164: EQ | C164: 196.35 | D164: 204 | E164: 193.5 | F164: 202.8 | G164: 203 | H164: 196.35 | I164: 87731 | J164: 17503952.75 | K164: 2018-12-26 | L164: 1799 | M164: INE164A01016
A165: BALPHARMA | B165: EQ | C165: 79.35 | D165: 81.65 | E165: 79.25 | F165: 80.1 | G165: 80.4 | H165: 80.4 | I165: 8169 | J165: 654467.35 | K165: 2018-12-26 | L165: 242 | M165: INE083D01012
A166: BALRAMCHIN | B166: EQ | C166: 102.7 | D166: 102.7 | E166: 99.4 | F166: 101.35 | G166: 101.6 | H166: 102.3 | I166: 1298716 | J166: 131067231.8 | K166: 2018-12-26 | L166: 6389 | M166: INE119A01028
A167: BANARBEADS | B167: EQ | C167: 45.4 | D167: 48.7 | E167: 45.4 | F167: 48.55 | G167: 48.7 | H167: 47.7 | I167: 545 | J167: 26206.6 | K167: 2018-12-26 | L167: 12 | M167: INE655B01011
A168: BANARISUG | B168: EQ | C168: 1501.05 | D168: 1501.05 | E168: 1430.1 | F168: 1470.55 | G168: 1463 | H168: 1504.15 | I168: 161 | J168: 236434.65 | K168: 2018-12-26 | L168: 74 | M168: INE459A01010
A169: BANCOINDIA | B169: EQ | C169: 184.6 | D169: 187.75 | E169: 181 | F169: 184.9 | G169: 184.5 | H169: 184.7 | I169: 105674 | J169: 19532038.4 | K169: 2018-12-26 | L169: 1551 | M169: INE213C01025
A170: BANDHANBNK | B170: EQ | C170: 523 | D170: 551.85 | E170: 507.25 | F170: 545.35 | G170: 548 | H170: 524.25 | I170: 1730042 | J170: 915203572 | K170: 2018-12-26 | L170: 42104 | M170: INE545U01014
A171: BANG | B171: EQ | C171: 58.45 | D171: 58.75 | E171: 55.3 | F171: 56.8 | G171: 55.35 | H171: 58.05 | I171: 81371 | J171: 4628073.8 | K171: 2018-12-26 | L171: 845 | M171: INE863I01016
A172: BANKBARODA | B172: EQ | C172: 115 | D172: 118.9 | E172: 112.9 | F172: 117.7 | G172: 118.5 | H172: 115.4 | I172: 13805517 | J172: 1592900187 | K172: 2018-12-26 | L172: 40521 | M172: INE028A01039
A173: BANKBEES | B173: EQ | C173: 2712 | D173: 2758.4 | E173: 2690 | F173: 2755.8 | G173: 2757.5 | H173: 2727.37 | I173: 59587 | J173: 161320082.7 | K173: 2018-12-26 | L173: 712 | M173: INF732E01078
A174: BANKINDIA | B174: EQ | C174: 100.2 | D174: 101.55 | E174: 97.05 | F174: 100.65 | G174: 100.6 | H174: 100.9 | I174: 17019629 | J174: 1683468786 | K174: 2018-12-26 | L174: 48333 | M174: INE084A01016
A175: BANSWRAS | B175: EQ | C175: 80 | D175: 82 | E175: 78.25 | F175: 79.9 | G175: 80 | H175: 80.5 | I175: 10841 | J175: 867205.3 | K175: 2018-12-26 | L175: 42 | M175: INE629D01012
A176: BARTRONICS | B176: EQ | C176: 7.25 | D176: 7.25 | E176: 7.15 | F176: 7.15 | G176: 7.2 | H176: 7.25 | I176: 18490 | J176: 133739.05 | K176: 2018-12-26 | L176: 31 | M176: INE855F01034
A177: BASF | B177: EQ | C177: 1602.9 | D177: 1602.9 | E177: 1551.15 | F177: 1585.4 | G177: 1575.75 | H177: 1586.5 | I177: 7021 | J177: 11068018.95 | K177: 2018-12-26 | L177: 837 | M177: INE373A01013
A178: BASML | B178: EQ | C178: 223.4 | D178: 223.4 | E178: 204 | F178: 210.4 | G178: 207 | H178: 206.95 | I178: 1529 | J178: 320204.6 | K178: 2018-12-26 | L178: 51 | M178: INE186H01014
A179: BATAINDIA | B179: EQ | C179: 1107.9 | D179: 1107.9 | E179: 1075.25 | F179: 1096.65 | G179: 1097.9 | H179: 1109 | I179: 665666 | J179: 726260623.3 | K179: 2018-12-26 | L179: 20057 | M179: INE176A01028
A180: BAYERCROP | B180: EQ | C180: 4175.75 | D180: 4290.3 | E180: 4142 | F180: 4248.55 | G180: 4240 | H180: 4217.9 | I180: 5085 | J180: 21426805.75 | K180: 2018-12-26 | L180: 1188 | M180: INE462A01022
A181: BBL | B181: EQ | C181: 1134.8 | D181: 1154.95 | E181: 1114.35 | F181: 1144.9 | G181: 1154.95 | H181: 1129.15 | I181: 4383 | J181: 4966743 | K181: 2018-12-26 | L181: 333 | M181: INE464A01028
A182: BBTC | B182: EQ | C182: 1280 | D182: 1286.35 | E182: 1238 | F182: 1266.2 | G182: 1263.8 | H182: 1277.85 | I182: 60487 | J182: 76252380.75 | K182: 2018-12-26 | L182: 4301 | M182: INE050A01025
A183: BCG | B183: EQ | C183: 2.9 | D183: 2.9 | E183: 2.7 | F183: 2.75 | G183: 2.75 | H183: 2.8 | I183: 416673 | J183: 1157822.25 | K183: 2018-12-26 | L183: 203 | M183: INE425B01027
A184: BDL | B184: EQ | C184: 276.1 | D184: 279.85 | E184: 273.15 | F184: 275.75 | G184: 275 | H184: 278.45 | I184: 8593 | J184: 2368489.2 | K184: 2018-12-26 | L184: 724 | M184: INE171Z01018
A185: BEARDSELL | B185: EQ | C185: 24.35 | D185: 24.4 | E185: 23.5 | F185: 23.75 | G185: 24 | H185: 24.35 | I185: 650 | J185: 15624.35 | K185: 2018-12-26 | L185: 14 | M185: INE520H01022
A186: BEDMUTHA | B186: BE | C186: 20 | D186: 20.85 | E186: 19.55 | F186: 20.05 | G186: 20.05 | H186: 20.1 | I186: 861 | J186: 17059.5 | K186: 2018-12-26 | L186: 18 | M186: INE844K01012
A187: BEL | B187: EQ | C187: 87.75 | D187: 89.5 | E187: 85.25 | F187: 88.7 | G187: 88.75 | H187: 87.95 | I187: 12611262 | J187: 1107797159 | K187: 2018-12-26 | L187: 47318 | M187: INE263A01024
A188: BEML | B188: EQ | C188: 871.2 | D188: 905 | E188: 852.5 | F188: 899.8 | G188: 902.9 | H188: 869.85 | I188: 6026948 | J188: 5307175175 | K188: 2018-12-26 | L188: 104726 | M188: INE258A01016
A189: BEPL | B189: EQ | C189: 91 | D189: 93.5 | E189: 89.4 | F189: 90.85 | G189: 90.8 | H189: 91.5 | I189: 983287 | J189: 89838715.9 | K189: 2018-12-26 | L189: 7278 | M189: INE922A01025
A190: BERGEPAINT | B190: EQ | C190: 325.9 | D190: 333 | E190: 320.1 | F190: 328.3 | G190: 327.65 | H190: 323.5 | I190: 990882 | J190: 323046789.4 | K190: 2018-12-26 | L190: 14645 | M190: INE463A01038
A191: BFINVEST | B191: EQ | C191: 234.6 | D191: 240.2 | E191: 226.85 | F191: 236.5 | G191: 238 | H191: 235.6 | I191: 108469 | J191: 25407655.8 | K191: 2018-12-26 | L191: 3966 | M191: INE878K01010
A192: BFUTILITIE | B192: EQ | C192: 203.7 | D192: 212.6 | E192: 196.05 | F192: 207.9 | G192: 207.2 | H192: 204.65 | I192: 631362 | J192: 130911473.3 | K192: 2018-12-26 | L192: 10825 | M192: INE243D01012
A193: BGLOBAL | B193: BE | C193: 3 | D193: 3 | E193: 2.85 | F193: 3 | G193: 3 | H193: 3 | I193: 7504 | J193: 22331.25 | K193: 2018-12-26 | L193: 18 | M193: INE224M01013
A194: BGRENERGY | B194: EQ | C194: 59.2 | D194: 60.2 | E194: 58.25 | F194: 59.85 | G194: 59.85 | H194: 59.5 | I194: 48245 | J194: 2853242.95 | K194: 2018-12-26 | L194: 803 | M194: INE661I01014
A195: BHAGERIA | B195: EQ | C195: 281 | D195: 284.65 | E195: 278 | F195: 282.55 | G195: 282.55 | H195: 285.4 | I195: 6579 | J195: 1845817.55 | K195: 2018-12-26 | L195: 502 | M195: INE354C01027
A196: BHAGYANGR | B196: EQ | C196: 29.45 | D196: 30.6 | E196: 28.25 | F196: 29.6 | G196: 29.35 | H196: 29.3 | I196: 7435 | J196: 216125 | K196: 2018-12-26 | L196: 58 | M196: INE458B01036
A197: BHAGYAPROP | B197: EQ | C197: 29.35 | D197: 29.35 | E197: 27.45 | F197: 28 | G197: 28 | H197: 28 | I197: 5494 | J197: 153832.8 | K197: 2018-12-26 | L197: 10 | M197: INE363W01018
A198: BHANDARI | B198: EQ | C198: 2.15 | D198: 2.2 | E198: 1.95 | F198: 2.05 | G198: 2 | H198: 2.1 | I198: 336368 | J198: 694869.25 | K198: 2018-12-26 | L198: 163 | M198: INE474E01029
A199: BHARATFIN | B199: EQ | C199: 975 | D199: 1001 | E199: 957.6 | F199: 990.7 | G199: 1000.25 | H199: 983.85 | I199: 703858 | J199: 689129218.5 | K199: 2018-12-26 | L199: 15959 | M199: INE180K01011
A200: BHARATFORG | B200: EQ | C200: 501.55 | D200: 508.5 | E200: 494.2 | F200: 505.45 | G200: 504.95 | H200: 502.45 | I200: 1142633 | J200: 574249836.4 | K200: 2018-12-26 | L200: 17030 | M200: INE465A01025
... 1433 more rows

Sheet Sheet1 (hidden)
